{"text_format":"1","workbook":"xlsx","n_sheets":3,"sheets":["#1","#2","#3"],"not_rendered":{"charts":0,"images":0,"macros":1,"external_links":0,"defined_names":6,"comments":0,"pivot_tables":0},"unopened":[],"bounds":{"document_bytes":16777216,"sheet_cells":100000,"rows_first":2000,"rows_last":500,"rows_between":2000,"halvings":0,"cell_chars":16384,"cell_head_chars":4096},"cells_cut":0,"cells_raw":0,"read":"whole","date_system":"1900"}

{"sheet":"#1","index":0,"n_rows":578,"n_cols":9,"rows_kept":578,"cut":false,"hidden":false,"merged":[]}
["CUSTOMER","PRODUCTS","SALES PERSON","SALES REGION","ORDER DATE","SALES","FINANCIAL YEAR","SALES MONTH","SALES QTR"]
["LONG ISLANDS INC","SOFT DRINKS","Michael Jackson","AMERICAS","2012-04-13",24640,2012,"January","Q1"]
["LONG ISLANDS INC","SOFT DRINKS","Michael Jackson","AMERICAS","2012-12-21",24640,2012,"February","Q1"]
["LONG ISLANDS INC","SOFT DRINKS","Michael Jackson","AMERICAS","2012-12-24",29923,2012,"March","Q1"]
["LONG ISLANDS INC","SOFT DRINKS","Michael Jackson","AMERICAS","2012-12-24",66901,2012,"April","Q2"]
["LONG ISLANDS INC","SOFT DRINKS","Michael Jackson","AMERICAS","2012-12-29",63116,2012,"May","Q2"]
["LONG ISLANDS INC","SOFT DRINKS","Michael Jackson","AMERICAS","2012-06-28",38281,2012,"June","Q2"]
["LONG ISLANDS INC","SOFT DRINKS","Michael Jackson","AMERICAS","2012-06-28",57650,2012,"July","Q3"]
["LONG ISLANDS INC","SOFT DRINKS","Michael Jackson","AMERICAS","2012-06-29",90967,2012,"August","Q3"]
["LONG ISLANDS INC","SOFT DRINKS","Michael Jackson","AMERICAS","2012-06-29",11910,2012,"September","Q3"]
["LONG ISLANDS INC","SOFT DRINKS","Michael Jackson","AMERICAS","2012-07-06",59531,2012,"October","Q4"]
["LONG ISLANDS INC","SOFT DRINKS","Michael Jackson","AMERICAS","2012-07-06",88297,2012,"November","Q4"]
["LONG ISLANDS INC","SOFT DRINKS","Michael Jackson","AMERICAS","2012-09-08",87868,2012,"December","Q4"]
["LONG ISLANDS INC","BOTTLES","Michael Jackson","AMERICAS","2012-09-08",95527,2012,"January","Q1"]
["LONG ISLANDS INC","BOTTLES","Michael Jackson","AMERICAS","2012-06-30",90599,2012,"February","Q1"]
["LONG ISLANDS INC","BOTTLES","Michael Jackson","AMERICAS","2012-12-23",17030,2012,"March","Q1"]
["LONG ISLANDS INC","BOTTLES","Michael Jackson","AMERICAS","2012-12-08",65026,2012,"April","Q2"]
["LONG ISLANDS INC","BOTTLES","Michael Jackson","AMERICAS","2012-10-28",57579,2012,"May","Q2"]
["LONG ISLANDS INC","BOTTLES","Michael Jackson","AMERICAS","2012-10-28",34338,2012,"June","Q2"]
["LONG ISLANDS INC","BOTTLES","Michael Jackson","AMERICAS","2012-09-15",90387,2012,"July","Q3"]
["LONG ISLANDS INC","BOTTLES","Michael Jackson","AMERICAS","2012-10-28",62324,2012,"August","Q3"]
["LONG ISLANDS INC","BOTTLES","Michael Jackson","AMERICAS","2012-10-31",28871,2012,"September","Q3"]
["LONG ISLANDS INC","BOTTLES","Michael Jackson","AMERICAS","2012-12-29",34714,2012,"October","Q4"]
["LONG ISLANDS INC","BOTTLES","Michael Jackson","AMERICAS","2012-04-15",38668,2012,"November","Q4"]
["LONG ISLANDS INC","BOTTLES","Michael Jackson","AMERICAS","2012-12-08",59810,2012,"December","Q4"]
["LONG ISLANDS INC","ICE CUBES","Michael Jackson","AMERICAS","2012-12-01",19056,2012,"January","Q1"]
["LONG ISLANDS INC","ICE CUBES","Michael Jackson","AMERICAS","2012-12-01",34096,2012,"February","Q1"]
["LONG ISLANDS INC","ICE CUBES","Michael Jackson","AMERICAS","2012-10-28",80441,2012,"March","Q1"]
["LONG ISLANDS INC","ICE CUBES","Michael Jackson","AMERICAS","2012-08-19",15306,2012,"April","Q2"]
["LONG ISLANDS INC","ICE CUBES","Michael Jackson","AMERICAS","2012-02-08",11347,2012,"May","Q2"]
["LONG ISLANDS INC","ICE CUBES","Michael Jackson","AMERICAS","2012-10-31",11136,2012,"June","Q2"]
["LONG ISLANDS INC","ICE CUBES","Michael Jackson","AMERICAS","2012-10-21",88672,2012,"July","Q3"]
["LONG ISLANDS INC","ICE CUBES","Michael Jackson","AMERICAS","2012-07-26",82202,2012,"August","Q3"]
["LONG ISLANDS INC","ICE CUBES","Michael Jackson","AMERICAS","2012-08-19",70480,2012,"September","Q3"]
["LONG ISLANDS INC","ICE CUBES","Michael Jackson","AMERICAS","2012-08-19",17523,2012,"October","Q4"]
["LONG ISLANDS INC","ICE CUBES","Michael Jackson","AMERICAS","2012-08-12",86647,2012,"November","Q4"]
["LONG ISLANDS INC","ICE CUBES","Michael Jackson","AMERICAS","2012-10-28",38301,2012,"December","Q4"]
["LONG ISLANDS INC","TONIC","Michael Jackson","AMERICAS","2012-08-12",29185,2012,"January","Q1"]
["LONG ISLANDS INC","TONIC","Michael Jackson","AMERICAS","2012-12-01",19595,2012,"February","Q1"]
["LONG ISLANDS INC","TONIC","Michael Jackson","AMERICAS","2012-12-01",29333,2012,"March","Q1"]
["LONG ISLANDS INC","TONIC","Michael Jackson","AMERICAS","2012-10-31",59339,2012,"April","Q2"]
["LONG ISLANDS INC","TONIC","Michael Jackson","AMERICAS","2012-12-01",73310,2012,"May","Q2"]
["LONG ISLANDS INC","TONIC","Michael Jackson","AMERICAS","2012-10-28",16527,2012,"June","Q2"]
["LONG ISLANDS INC","TONIC","Michael Jackson","AMERICAS","2012-12-01",80254,2012,"July","Q3"]
["LONG ISLANDS INC","TONIC","Michael Jackson","AMERICAS","2012-10-31",62535,2012,"August","Q3"]
["LONG ISLANDS INC","TONIC","Michael Jackson","AMERICAS","2012-12-30",63923,2012,"September","Q3"]
["LONG ISLANDS INC","TONIC","Michael Jackson","AMERICAS","2012-09-13",52045,2012,"October","Q4"]
["LONG ISLANDS INC","TONIC","Michael Jackson","AMERICAS","2012-10-01",86327,2012,"November","Q4"]
["LONG ISLANDS INC","TONIC","Michael Jackson","AMERICAS","2012-07-26",53045,2012,"December","Q4"]
["LONG ISLANDS INC","SOFT DRINKS","Michael Jackson","AMERICAS","2013-10-21",26687,2013,"January","Q1"]
["LONG ISLANDS INC","SOFT DRINKS","Michael Jackson","AMERICAS","2013-12-01",88003,2013,"February","Q1"]
["LONG ISLANDS INC","SOFT DRINKS","Michael Jackson","AMERICAS","2013-10-28",12502,2013,"March","Q1"]
["LONG ISLANDS INC","SOFT DRINKS","Michael Jackson","AMERICAS","2013-10-28",17100,2013,"April","Q2"]
["LONG ISLANDS INC","SOFT DRINKS","Michael Jackson","AMERICAS","2013-10-31",16853,2013,"May","Q2"]
["LONG ISLANDS INC","SOFT DRINKS","Michael Jackson","AMERICAS","2013-10-28",35796,2013,"June","Q2"]
["LONG ISLANDS INC","SOFT DRINKS","Michael Jackson","AMERICAS","2013-10-31",64825,2013,"July","Q3"]
["LONG ISLANDS INC","SOFT DRINKS","Michael Jackson","AMERICAS","2013-11-03",17929,2013,"August","Q3"]
["LONG ISLANDS INC","SOFT DRINKS","Michael Jackson","AMERICAS","2013-12-01",50134,2013,"September","Q3"]
["LONG ISLANDS INC","SOFT DRINKS","Michael Jackson","AMERICAS","2013-10-31",95705,2013,"October","Q4"]
["LONG ISLANDS INC","SOFT DRINKS","Michael Jackson","AMERICAS","2013-02-28",13178,2013,"November","Q4"]
["LONG ISLANDS INC","SOFT DRINKS","Michael Jackson","AMERICAS","2013-12-16",22781,2013,"December","Q4"]
["LONG ISLANDS INC","BOTTLES","Michael Jackson","AMERICAS","2013-03-22",59151,2013,"January","Q1"]
["LONG ISLANDS INC","BOTTLES","Michael Jackson","AMERICAS","2013-04-01",11014,2013,"February","Q1"]
["LONG ISLANDS INC","BOTTLES","Michael Jackson","AMERICAS","2013-10-07",96469,2013,"March","Q1"]
["LONG ISLANDS INC","BOTTLES","Michael Jackson","AMERICAS","2013-06-08",87079,2013,"April","Q2"]
["LONG ISLANDS INC","BOTTLES","Michael Jackson","AMERICAS","2013-09-27",53836,2013,"May","Q2"]
["LONG ISLANDS INC","BOTTLES","Michael Jackson","AMERICAS","2013-02-28",63358,2013,"June","Q2"]
["LONG ISLANDS INC","BOTTLES","Michael Jackson","AMERICAS","2013-04-05",85568,2013,"July","Q3"]
["LONG ISLANDS INC","BOTTLES","Michael Jackson","AMERICAS","2013-04-14",64286,2013,"August","Q3"]
["LONG ISLANDS INC","BOTTLES","Michael Jackson","AMERICAS","2013-05-18",54721,2013,"September","Q3"]
["LONG ISLANDS INC","BOTTLES","Michael Jackson","AMERICAS","2013-09-26",13804,2013,"October","Q4"]
["LONG ISLANDS INC","BOTTLES","Michael Jackson","AMERICAS","2013-09-26",76779,2013,"November","Q4"]
["LONG ISLANDS INC","BOTTLES","Michael Jackson","AMERICAS","2013-12-05",74017,2013,"December","Q4"]
["LONG ISLANDS INC","ICE CUBES","Michael Jackson","AMERICAS","2013-09-14",23979,2013,"January","Q1"]
["LONG ISLANDS INC","ICE CUBES","Michael Jackson","AMERICAS","2013-05-26",13644,2013,"February","Q1"]
["LONG ISLANDS INC","ICE CUBES","Michael Jackson","AMERICAS","2013-04-20",44447,2013,"March","Q1"]
["LONG ISLANDS INC","ICE CUBES","Michael Jackson","AMERICAS","2013-09-26",49606,2013,"April","Q2"]
["LONG ISLANDS INC","ICE CUBES","Michael Jackson","AMERICAS","2013-03-09",23697,2013,"May","Q2"]
["LONG ISLANDS INC","ICE CUBES","Michael Jackson","AMERICAS","2013-05-26",51914,2013,"June","Q2"]
["LONG ISLANDS INC","ICE CUBES","Michael Jackson","AMERICAS","2013-04-20",50196,2013,"July","Q3"]
["LONG ISLANDS INC","ICE CUBES","Michael Jackson","AMERICAS","2013-02-23",88701,2013,"August","Q3"]
["LONG ISLANDS INC","ICE CUBES","Michael Jackson","AMERICAS","2013-06-15",74737,2013,"September","Q3"]
["LONG ISLANDS INC","ICE CUBES","Michael Jackson","AMERICAS","2013-04-13",57704,2013,"October","Q4"]
["LONG ISLANDS INC","ICE CUBES","Michael Jackson","AMERICAS","2013-09-14",40850,2013,"November","Q4"]
["LONG ISLANDS INC","ICE CUBES","Michael Jackson","AMERICAS","2013-11-28",80563,2013,"December","Q4"]
["LONG ISLANDS INC","TONIC","Michael Jackson","AMERICAS","2013-06-08",35938,2013,"January","Q1"]
["LONG ISLANDS INC","TONIC","Michael Jackson","AMERICAS","2013-09-14",91122,2013,"February","Q1"]
["LONG ISLANDS INC","TONIC","Michael Jackson","AMERICAS","2013-10-28",87887,2013,"March","Q1"]
["LONG ISLANDS INC","TONIC","Michael Jackson","AMERICAS","2013-08-04",12024,2013,"April","Q2"]
["LONG ISLANDS INC","TONIC","Michael Jackson","AMERICAS","2013-08-04",50503,2013,"May","Q2"]
["LONG ISLANDS INC","TONIC","Michael Jackson","AMERICAS","2013-05-16",68224,2013,"June","Q2"]
["LONG ISLANDS INC","TONIC","Michael Jackson","AMERICAS","2013-05-31",10014,2013,"July","Q3"]
["LONG ISLANDS INC","TONIC","Michael Jackson","AMERICAS","2013-01-25",88585,2013,"August","Q3"]
["LONG ISLANDS INC","TONIC","Michael Jackson","AMERICAS","2013-01-25",18981,2013,"September","Q3"]
["LONG ISLANDS INC","TONIC","Michael Jackson","AMERICAS","2013-04-13",57068,2013,"October","Q4"]
["LONG ISLANDS INC","TONIC","Michael Jackson","AMERICAS","2013-05-09",69284,2013,"November","Q4"]
["LONG ISLANDS INC","TONIC","Michael Jackson","AMERICAS","2013-09-14",37407,2013,"December","Q4"]
["LONG ISLANDS INC","SOFT DRINKS","Michael Jackson","AMERICAS","2014-08-04",50670,2014,"January","Q1"]
["LONG ISLANDS INC","SOFT DRINKS","Michael Jackson","AMERICAS","2014-11-28",73943,2014,"February","Q1"]
["LONG ISLANDS INC","SOFT DRINKS","Michael Jackson","AMERICAS","2014-07-27",82315,2014,"March","Q1"]
["LONG ISLANDS INC","SOFT DRINKS","Michael Jackson","AMERICAS","2014-04-13",39996,2014,"April","Q2"]
["LONG ISLANDS INC","SOFT DRINKS","Michael Jackson","AMERICAS","2014-02-16",21987,2014,"May","Q2"]
["LONG ISLANDS INC","SOFT DRINKS","Michael Jackson","AMERICAS","2014-08-04",18340,2014,"June","Q2"]
["LONG ISLANDS INC","SOFT DRINKS","Michael Jackson","AMERICAS","2014-05-11",67849,2014,"July","Q3"]
["LONG ISLANDS INC","SOFT DRINKS","Michael Jackson","AMERICAS","2014-09-21",15738,2014,"August","Q3"]
["LONG ISLANDS INC","SOFT DRINKS","Michael Jackson","AMERICAS","2014-09-21",24815,2014,"September","Q3"]
["LONG ISLANDS INC","SOFT DRINKS","Michael Jackson","AMERICAS","2014-10-11",62319,2014,"October","Q4"]
["LONG ISLANDS INC","SOFT DRINKS","Michael Jackson","AMERICAS","2014-11-03",45975,2014,"November","Q4"]
["LONG ISLANDS INC","SOFT DRINKS","Michael Jackson","AMERICAS","2014-11-03",66180,2014,"December","Q4"]
["LONG ISLANDS INC","BOTTLES","Michael Jackson","AMERICAS","2014-11-28",73922,2014,"January","Q1"]
["LONG ISLANDS INC","BOTTLES","Michael Jackson","AMERICAS","2014-10-11",90035,2014,"February","Q1"]
["LONG ISLANDS INC","BOTTLES","Michael Jackson","AMERICAS","2014-09-26",29742,2014,"March","Q1"]
["LONG ISLANDS INC","BOTTLES","Michael Jackson","AMERICAS","2014-01-25",18018,2014,"April","Q2"]
["LONG ISLANDS INC","BOTTLES","Michael Jackson","AMERICAS","2014-02-01",71370,2014,"May","Q2"]
["LONG ISLANDS INC","BOTTLES","Michael Jackson","AMERICAS","2014-08-04",18717,2014,"June","Q2"]
["LONG ISLANDS INC","BOTTLES","Michael Jackson","AMERICAS","2014-10-11",43443,2014,"July","Q3"]
["LONG ISLANDS INC","BOTTLES","Michael Jackson","AMERICAS","2014-10-14",97950,2014,"August","Q3"]
["LONG ISLANDS INC","BOTTLES","Michael Jackson","AMERICAS","2014-01-31",80487,2014,"September","Q3"]
["LONG ISLANDS INC","BOTTLES","Michael Jackson","AMERICAS","2014-10-19",68091,2014,"October","Q4"]
["LONG ISLANDS INC","BOTTLES","Michael Jackson","AMERICAS","2014-07-06",11317,2014,"November","Q4"]
["LONG ISLANDS INC","BOTTLES","Michael Jackson","AMERICAS","2014-09-07",89023,2014,"December","Q4"]
["LONG ISLANDS INC","ICE CUBES","Michael Jackson","AMERICAS","2014-07-27",66876,2014,"January","Q1"]
["LONG ISLANDS INC","ICE CUBES","Michael Jackson","AMERICAS","2014-12-09",39030,2014,"February","Q1"]
["LONG ISLANDS INC","ICE CUBES","Michael Jackson","AMERICAS","2014-05-09",27558,2014,"March","Q1"]
["LONG ISLANDS INC","ICE CUBES","Michael Jackson","AMERICAS","2014-02-16",32566,2014,"April","Q2"]
["LONG ISLANDS INC","ICE CUBES","Michael Jackson","AMERICAS","2014-08-04",49549,2014,"May","Q2"]
["LONG ISLANDS INC","ICE CUBES","Michael Jackson","AMERICAS","2014-12-06",34696,2014,"June","Q2"]
["LONG ISLANDS INC","ICE CUBES","Michael Jackson","AMERICAS","2014-12-13",87319,2014,"July","Q3"]
["LONG ISLANDS INC","ICE CUBES","Michael Jackson","AMERICAS","2014-12-14",35809,2014,"August","Q3"]
["LONG ISLANDS INC","ICE CUBES","Michael Jackson","AMERICAS","2014-09-14",55289,2014,"September","Q3"]
["LONG ISLANDS INC","ICE CUBES","Michael Jackson","AMERICAS","2014-09-21",98236,2014,"October","Q4"]
["LONG ISLANDS INC","ICE CUBES","Michael Jackson","AMERICAS","2014-10-04",13596,2014,"November","Q4"]
["LONG ISLANDS INC","ICE CUBES","Michael Jackson","AMERICAS","2014-11-03",69865,2014,"December","Q4"]
["LONG ISLANDS INC","TONIC","Michael Jackson","AMERICAS","2014-11-03",68789,2014,"January","Q1"]
["LONG ISLANDS INC","TONIC","Michael Jackson","AMERICAS","2014-10-04",73642,2014,"February","Q1"]
["LONG ISLANDS INC","TONIC","Michael Jackson","AMERICAS","2014-11-14",66623,2014,"March","Q1"]
["LONG ISLANDS INC","TONIC","Michael Jackson","AMERICAS","2014-01-11",13406,2014,"April","Q2"]
["LONG ISLANDS INC","TONIC","Michael Jackson","AMERICAS","2014-01-11",73954,2014,"May","Q2"]
["LONG ISLANDS INC","TONIC","Michael Jackson","AMERICAS","2014-09-21",50936,2014,"June","Q2"]
["LONG ISLANDS INC","TONIC","Michael Jackson","AMERICAS","2014-11-03",67831,2014,"July","Q3"]
["LONG ISLANDS INC","TONIC","Michael Jackson","AMERICAS","2014-11-03",23441,2014,"August","Q3"]
["LONG ISLANDS INC","TONIC","Michael Jackson","AMERICAS","2014-06-02",96007,2014,"September","Q3"]
["LONG ISLANDS INC","TONIC","Michael Jackson","AMERICAS","2014-09-07",59524,2014,"October","Q4"]
["LONG ISLANDS INC","TONIC","Michael Jackson","AMERICAS","2014-04-06",46244,2014,"November","Q4"]
["LONG ISLANDS INC","TONIC","Michael Jackson","AMERICAS","2014-04-13",56864,2014,"December","Q4"]
["MOJITOS R US","SOFT DRINKS","Ian Wright","EUROPE","2012-09-07",83675,2012,"January","Q1"]
["MOJITOS R US","SOFT DRINKS","Ian Wright","EUROPE","2012-11-15",90717,2012,"February","Q1"]
["MOJITOS R US","SOFT DRINKS","Ian Wright","EUROPE","2012-12-20",32553,2012,"March","Q1"]
["MOJITOS R US","SOFT DRINKS","Ian Wright","EUROPE","2012-05-18",73667,2012,"April","Q2"]
["MOJITOS R US","SOFT DRINKS","Ian Wright","EUROPE","2012-03-09",73163,2012,"May","Q2"]
["MOJITOS R US","SOFT DRINKS","Ian Wright","EUROPE","2012-09-07",37683,2012,"June","Q2"]
["MOJITOS R US","SOFT DRINKS","Ian Wright","EUROPE","2012-12-20",58639,2012,"July","Q3"]
["MOJITOS R US","SOFT DRINKS","Ian Wright","EUROPE","2012-04-06",93159,2012,"August","Q3"]
["MOJITOS R US","SOFT DRINKS","Ian Wright","EUROPE","2012-01-25",46788,2012,"September","Q3"]
["MOJITOS R US","SOFT DRINKS","Ian Wright","EUROPE","2012-09-14",74557,2012,"October","Q4"]
["MOJITOS R US","SOFT DRINKS","Ian Wright","EUROPE","2012-10-17",12429,2012,"November","Q4"]
["MOJITOS R US","SOFT DRINKS","Ian Wright","EUROPE","2012-11-19",65052,2012,"December","Q4"]
["MOJITOS R US","BOTTLES","Ian Wright","EUROPE","2012-09-14",56502,2012,"January","Q1"]
["MOJITOS R US","BOTTLES","Ian Wright","EUROPE","2012-05-16",59828,2012,"February","Q1"]
["MOJITOS R US","BOTTLES","Ian Wright","EUROPE","2012-02-15",20650,2012,"March","Q1"]
["MOJITOS R US","BOTTLES","Ian Wright","EUROPE","2012-11-01",38999,2012,"April","Q2"]
["MOJITOS R US","BOTTLES","Ian Wright","EUROPE","2012-03-08",51708,2012,"May","Q2"]
["MOJITOS R US","BOTTLES","Ian Wright","EUROPE","2012-11-14",94904,2012,"June","Q2"]
["MOJITOS R US","BOTTLES","Ian Wright","EUROPE","2012-08-04",44262,2012,"July","Q3"]
["MOJITOS R US","BOTTLES","Ian Wright","EUROPE","2012-12-21",35958,2012,"August","Q3"]
["MOJITOS R US","BOTTLES","Ian Wright","EUROPE","2012-11-29",20830,2012,"September","Q3"]
["MOJITOS R US","BOTTLES","Ian Wright","EUROPE","2012-10-11",99220,2012,"October","Q4"]
["MOJITOS R US","BOTTLES","Ian Wright","EUROPE","2012-07-14",84818,2012,"November","Q4"]
["MOJITOS R US","BOTTLES","Ian Wright","EUROPE","2012-10-04",64078,2012,"December","Q4"]
["MOJITOS R US","ICE CUBES","Ian Wright","EUROPE","2012-09-14",45210,2012,"January","Q1"]
["MOJITOS R US","ICE CUBES","Ian Wright","EUROPE","2012-09-14",40833,2012,"February","Q1"]
["MOJITOS R US","ICE CUBES","Ian Wright","EUROPE","2012-04-06",47084,2012,"March","Q1"]
["MOJITOS R US","ICE CUBES","Ian Wright","EUROPE","2012-10-13",29549,2012,"April","Q2"]
["MOJITOS R US","ICE CUBES","Ian Wright","EUROPE","2012-11-28",79534,2012,"May","Q2"]
["MOJITOS R US","ICE CUBES","Ian Wright","EUROPE","2012-11-28",43380,2012,"June","Q2"]
["MOJITOS R US","ICE CUBES","Ian Wright","EUROPE","2012-06-15",94652,2012,"July","Q3"]
["MOJITOS R US","ICE CUBES","Ian Wright","EUROPE","2012-10-25",74024,2012,"August","Q3"]
["MOJITOS R US","ICE CUBES","Ian Wright","EUROPE","2012-06-08",33031,2012,"September","Q3"]
["MOJITOS R US","ICE CUBES","Ian Wright","EUROPE","2012-09-14",40118,2012,"October","Q4"]
["MOJITOS R US","ICE CUBES","Ian Wright","EUROPE","2012-08-10",21680,2012,"November","Q4"]
["MOJITOS R US","ICE CUBES","Ian Wright","EUROPE","2012-01-03",61386,2012,"December","Q4"]
["MOJITOS R US","TONIC","Ian Wright","EUROPE","2012-10-17",30583,2012,"January","Q1"]
["MOJITOS R US","TONIC","Ian Wright","EUROPE","2012-10-11",70994,2012,"February","Q1"]
["MOJITOS R US","TONIC","Ian Wright","EUROPE","2012-12-20",12816,2012,"March","Q1"]
["MOJITOS R US","TONIC","Ian Wright","EUROPE","2012-11-28",36790,2012,"April","Q2"]
["MOJITOS R US","TONIC","Ian Wright","EUROPE","2012-11-22",99542,2012,"May","Q2"]
["MOJITOS R US","TONIC","Ian Wright","EUROPE","2012-11-11",99202,2012,"June","Q2"]
["MOJITOS R US","TONIC","Ian Wright","EUROPE","2012-11-11",49713,2012,"July","Q3"]
["MOJITOS R US","TONIC","Ian Wright","EUROPE","2012-08-10",31876,2012,"August","Q3"]
["MOJITOS R US","TONIC","Ian Wright","EUROPE","2012-09-26",74697,2012,"September","Q3"]
["MOJITOS R US","TONIC","Ian Wright","EUROPE","2012-05-11",24499,2012,"October","Q4"]
["MOJITOS R US","TONIC","Ian Wright","EUROPE","2012-10-04",39431,2012,"November","Q4"]
["MOJITOS R US","TONIC","Ian Wright","EUROPE","2012-12-20",79633,2012,"December","Q4"]
["MOJITOS R US","SOFT DRINKS","Ian Wright","EUROPE","2013-02-02",94828,2013,"January","Q1"]
["MOJITOS R US","SOFT DRINKS","Ian Wright","EUROPE","2013-09-26",60100,2013,"February","Q1"]
["MOJITOS R US","SOFT DRINKS","Ian Wright","EUROPE","2013-07-27",88305,2013,"March","Q1"]
["MOJITOS R US","SOFT DRINKS","Ian Wright","EUROPE","2013-07-13",76717,2013,"April","Q2"]
["MOJITOS R US","SOFT DRINKS","Ian Wright","EUROPE","2013-11-08",44577,2013,"May","Q2"]
["MOJITOS R US","SOFT DRINKS","Ian Wright","EUROPE","2013-03-02",58514,2013,"June","Q2"]
["MOJITOS R US","SOFT DRINKS","Ian Wright","EUROPE","2013-04-19",33853,2013,"July","Q3"]
["MOJITOS R US","SOFT DRINKS","Ian Wright","EUROPE","2013-05-11",32024,2013,"August","Q3"]
["MOJITOS R US","SOFT DRINKS","Ian Wright","EUROPE","2013-07-27",76134,2013,"September","Q3"]
["MOJITOS R US","SOFT DRINKS","Ian Wright","EUROPE","2013-09-14",10907,2013,"October","Q4"]
["MOJITOS R US","SOFT DRINKS","Ian Wright","EUROPE","2013-09-14",62211,2013,"November","Q4"]
["MOJITOS R US","SOFT DRINKS","Ian Wright","EUROPE","2013-06-22",78877,2013,"December","Q4"]
["MOJITOS R US","BOTTLES","Ian Wright","EUROPE","2013-04-06",49374,2013,"January","Q1"]
["MOJITOS R US","BOTTLES","Ian Wright","EUROPE","2013-11-01",51980,2013,"February","Q1"]
["MOJITOS R US","BOTTLES","Ian Wright","EUROPE","2013-08-04",30241,2013,"March","Q1"]
["MOJITOS R US","BOTTLES","Ian Wright","EUROPE","2013-02-09",92995,2013,"April","Q2"]
["MOJITOS R US","BOTTLES","Ian Wright","EUROPE","2013-06-14",20003,2013,"May","Q2"]
["MOJITOS R US","BOTTLES","Ian Wright","EUROPE","2013-04-13",48722,2013,"June","Q2"]
["MOJITOS R US","BOTTLES","Ian Wright","EUROPE","2013-03-08",48516,2013,"July","Q3"]
["MOJITOS R US","BOTTLES","Ian Wright","EUROPE","2013-12-07",71360,2013,"August","Q3"]
["MOJITOS R US","BOTTLES","Ian Wright","EUROPE","2013-04-13",59935,2013,"September","Q3"]
["MOJITOS R US","BOTTLES","Ian Wright","EUROPE","2013-11-14",38185,2013,"October","Q4"]
["MOJITOS R US","BOTTLES","Ian Wright","EUROPE","2013-09-26",18760,2013,"November","Q4"]
["MOJITOS R US","BOTTLES","Ian Wright","EUROPE","2013-12-21",49119,2013,"December","Q4"]
["MOJITOS R US","ICE CUBES","Ian Wright","EUROPE","2013-09-26",59513,2013,"January","Q1"]
["MOJITOS R US","ICE CUBES","Ian Wright","EUROPE","2013-06-29",51073,2013,"February","Q1"]
["MOJITOS R US","ICE CUBES","Ian Wright","EUROPE","2013-12-02",76414,2013,"March","Q1"]
["MOJITOS R US","ICE CUBES","Ian Wright","EUROPE","2013-12-09",18703,2013,"April","Q2"]
["MOJITOS R US","ICE CUBES","Ian Wright","EUROPE","2013-12-21",63177,2013,"May","Q2"]
["MOJITOS R US","ICE CUBES","Ian Wright","EUROPE","2013-04-01",49326,2013,"June","Q2"]
["MOJITOS R US","ICE CUBES","Ian Wright","EUROPE","2013-04-01",46446,2013,"July","Q3"]
["MOJITOS R US","ICE CUBES","Ian Wright","EUROPE","2013-04-01",67999,2013,"August","Q3"]
["MOJITOS R US","ICE CUBES","Ian Wright","EUROPE","2013-04-01",70863,2013,"September","Q3"]
["MOJITOS R US","ICE CUBES","Ian Wright","EUROPE","2013-04-01",43560,2013,"October","Q4"]
["MOJITOS R US","ICE CUBES","Ian Wright","EUROPE","2013-04-01",53093,2013,"November","Q4"]
["MOJITOS R US","ICE CUBES","Ian Wright","EUROPE","2013-04-01",80766,2013,"December","Q4"]
["MOJITOS R US","TONIC","Ian Wright","EUROPE","2013-04-01",65694,2013,"January","Q1"]
["MOJITOS R US","TONIC","Ian Wright","EUROPE","2013-04-01",21039,2013,"February","Q1"]
["MOJITOS R US","TONIC","Ian Wright","EUROPE","2013-04-01",50156,2013,"March","Q1"]
["MOJITOS R US","TONIC","Ian Wright","EUROPE","2013-05-26",84912,2013,"April","Q2"]
["MOJITOS R US","TONIC","Ian Wright","EUROPE","2013-05-26",73803,2013,"May","Q2"]
["MOJITOS R US","TONIC","Ian Wright","EUROPE","2013-05-26",96690,2013,"June","Q2"]
["MOJITOS R US","TONIC","Ian Wright","EUROPE","2013-05-26",25984,2013,"July","Q3"]
["MOJITOS R US","TONIC","Ian Wright","EUROPE","2013-05-26",17186,2013,"August","Q3"]
["MOJITOS R US","TONIC","Ian Wright","EUROPE","2013-05-26",74291,2013,"September","Q3"]
["MOJITOS R US","TONIC","Ian Wright","EUROPE","2013-05-26",90448,2013,"October","Q4"]
["MOJITOS R US","TONIC","Ian Wright","EUROPE","2013-11-14",83252,2013,"November","Q4"]
["MOJITOS R US","TONIC","Ian Wright","EUROPE","2013-06-13",61504,2013,"December","Q4"]
["MOJITOS R US","SOFT DRINKS","Ian Wright","EUROPE","2014-09-13",65422,2014,"January","Q1"]
["MOJITOS R US","SOFT DRINKS","Ian Wright","EUROPE","2014-11-04",20045,2014,"February","Q1"]
["MOJITOS R US","SOFT DRINKS","Ian Wright","EUROPE","2014-09-26",96375,2014,"March","Q1"]
["MOJITOS R US","SOFT DRINKS","Ian Wright","EUROPE","2014-03-08",72127,2014,"April","Q2"]
["MOJITOS R US","SOFT DRINKS","Ian Wright","EUROPE","2014-08-10",40332,2014,"May","Q2"]
["MOJITOS R US","SOFT DRINKS","Ian Wright","EUROPE","2014-08-04",67602,2014,"June","Q2"]
["MOJITOS R US","SOFT DRINKS","Ian Wright","EUROPE","2014-08-04",23829,2014,"July","Q3"]
["MOJITOS R US","SOFT DRINKS","Ian Wright","EUROPE","2014-02-16",18896,2014,"August","Q3"]
["MOJITOS R US","SOFT DRINKS","Ian Wright","EUROPE","2014-07-21",31000,2014,"September","Q3"]
["MOJITOS R US","SOFT DRINKS","Ian Wright","EUROPE","2014-05-09",86890,2014,"October","Q4"]
["MOJITOS R US","SOFT DRINKS","Ian Wright","EUROPE","2014-12-21",33365,2014,"November","Q4"]
["MOJITOS R US","SOFT DRINKS","Ian Wright","EUROPE","2014-12-28",70074,2014,"December","Q4"]
["MOJITOS R US","BOTTLES","Ian Wright","EUROPE","2014-01-25",95980,2014,"January","Q1"]
["MOJITOS R US","BOTTLES","Ian Wright","EUROPE","2014-11-02",23025,2014,"February","Q1"]
["MOJITOS R US","BOTTLES","Ian Wright","EUROPE","2014-07-06",94259,2014,"March","Q1"]
["MOJITOS R US","BOTTLES","Ian Wright","EUROPE","2014-06-22",31522,2014,"April","Q2"]
["MOJITOS R US","BOTTLES","Ian Wright","EUROPE","2014-11-19",86046,2014,"May","Q2"]
["MOJITOS R US","BOTTLES","Ian Wright","EUROPE","2014-06-15",41167,2014,"June","Q2"]
["MOJITOS R US","BOTTLES","Ian Wright","EUROPE","2014-06-07",48025,2014,"July","Q3"]
["MOJITOS R US","BOTTLES","Ian Wright","EUROPE","2014-06-15",26961,2014,"August","Q3"]
["MOJITOS R US","BOTTLES","Ian Wright","EUROPE","2014-09-07",85681,2014,"September","Q3"]
["MOJITOS R US","BOTTLES","Ian Wright","EUROPE","2014-11-22",72707,2014,"October","Q4"]
["MOJITOS R US","BOTTLES","Ian Wright","EUROPE","2014-01-25",25296,2014,"November","Q4"]
["MOJITOS R US","BOTTLES","Ian Wright","EUROPE","2014-08-04",72571,2014,"December","Q4"]
["MOJITOS R US","ICE CUBES","Ian Wright","EUROPE","2014-12-28",67236,2014,"January","Q1"]
["MOJITOS R US","ICE CUBES","Ian Wright","EUROPE","2014-11-28",31745,2014,"February","Q1"]
["MOJITOS R US","ICE CUBES","Ian Wright","EUROPE","2014-10-04",16973,2014,"March","Q1"]
["MOJITOS R US","ICE CUBES","Ian Wright","EUROPE","2014-04-01",10282,2014,"April","Q2"]
["MOJITOS R US","ICE CUBES","Ian Wright","EUROPE","2014-04-01",88743,2014,"May","Q2"]
["MOJITOS R US","ICE CUBES","Ian Wright","EUROPE","2014-04-01",46628,2014,"June","Q2"]
["MOJITOS R US","ICE CUBES","Ian Wright","EUROPE","2014-04-01",17366,2014,"July","Q3"]
["MOJITOS R US","ICE CUBES","Ian Wright","EUROPE","2014-04-01",38089,2014,"August","Q3"]
["MOJITOS R US","ICE CUBES","Ian Wright","EUROPE","2014-04-01",89809,2014,"September","Q3"]
["MOJITOS R US","ICE CUBES","Ian Wright","EUROPE","2014-04-01",97708,2014,"October","Q4"]
["MOJITOS R US","ICE CUBES","Ian Wright","EUROPE","2014-04-01",94596,2014,"November","Q4"]
["MOJITOS R US","ICE CUBES","Ian Wright","EUROPE","2014-04-01",30900,2014,"December","Q4"]
["MOJITOS R US","TONIC","Ian Wright","EUROPE","2014-04-01",82903,2014,"January","Q1"]
["MOJITOS R US","TONIC","Ian Wright","EUROPE","2014-05-26",81835,2014,"February","Q1"]
["MOJITOS R US","TONIC","Ian Wright","EUROPE","2014-05-26",71469,2014,"March","Q1"]
["MOJITOS R US","TONIC","Ian Wright","EUROPE","2014-05-26",68096,2014,"April","Q2"]
["MOJITOS R US","TONIC","Ian Wright","EUROPE","2014-05-26",76399,2014,"May","Q2"]
["MOJITOS R US","TONIC","Ian Wright","EUROPE","2014-05-26",18144,2014,"June","Q2"]
["MOJITOS R US","TONIC","Ian Wright","EUROPE","2014-05-26",25998,2014,"July","Q3"]
["MOJITOS R US","TONIC","Ian Wright","EUROPE","2014-05-26",28516,2014,"August","Q3"]
["MOJITOS R US","TONIC","Ian Wright","EUROPE","2014-11-08",86024,2014,"September","Q3"]
["MOJITOS R US","TONIC","Ian Wright","EUROPE","2014-11-22",68907,2014,"October","Q4"]
["MOJITOS R US","TONIC","Ian Wright","EUROPE","2014-07-04",67683,2014,"November","Q4"]
["MOJITOS R US","TONIC","Ian Wright","EUROPE","2014-07-21",40250,2014,"December","Q4"]
["TEQUILA TACOS LTD","SOFT DRINKS","John Michaloudis","ASIA","2012-08-04",62350,2012,"January","Q1"]
["TEQUILA TACOS LTD","SOFT DRINKS","John Michaloudis","ASIA","2012-08-04",41230,2012,"February","Q1"]
["TEQUILA TACOS LTD","SOFT DRINKS","John Michaloudis","ASIA","2012-03-15",37346,2012,"March","Q1"]
["TEQUILA TACOS LTD","SOFT DRINKS","John Michaloudis","ASIA","2012-12-19",53158,2012,"April","Q2"]
["TEQUILA TACOS LTD","SOFT DRINKS","John Michaloudis","ASIA","2012-09-14",19611,2012,"May","Q2"]
["TEQUILA TACOS LTD","SOFT DRINKS","John Michaloudis","ASIA","2012-03-16",22202,2012,"June","Q2"]
["TEQUILA TACOS LTD","SOFT DRINKS","John Michaloudis","ASIA","2012-02-15",95925,2012,"July","Q3"]
["TEQUILA TACOS LTD","SOFT DRINKS","John Michaloudis","ASIA","2012-07-13",50376,2012,"August","Q3"]
["TEQUILA TACOS LTD","SOFT DRINKS","John Michaloudis","ASIA","2012-09-26",88763,2012,"September","Q3"]
["TEQUILA TACOS LTD","SOFT DRINKS","John Michaloudis","ASIA","2012-07-14",46063,2012,"October","Q4"]
["TEQUILA TACOS LTD","SOFT DRINKS","John Michaloudis","ASIA","2012-05-12",95529,2012,"November","Q4"]
["TEQUILA TACOS LTD","SOFT DRINKS","John Michaloudis","ASIA","2012-05-12",27946,2012,"December","Q4"]
["TEQUILA TACOS LTD","BOTTLES","John Michaloudis","ASIA","2012-08-23",48278,2012,"January","Q1"]
["TEQUILA TACOS LTD","BOTTLES","John Michaloudis","ASIA","2012-02-01",70149,2012,"February","Q1"]
["TEQUILA TACOS LTD","BOTTLES","John Michaloudis","ASIA","2012-11-17",55290,2012,"March","Q1"]
["TEQUILA TACOS LTD","BOTTLES","John Michaloudis","ASIA","2012-12-21",65622,2012,"April","Q2"]
["TEQUILA TACOS LTD","BOTTLES","John Michaloudis","ASIA","2012-11-14",98116,2012,"May","Q2"]
["TEQUILA TACOS LTD","BOTTLES","John Michaloudis","ASIA","2012-08-01",14378,2012,"June","Q2"]
["TEQUILA TACOS LTD","BOTTLES","John Michaloudis","ASIA","2012-11-28",92891,2012,"July","Q3"]
["TEQUILA TACOS LTD","BOTTLES","John Michaloudis","ASIA","2012-03-21",65904,2012,"August","Q3"]
["TEQUILA TACOS LTD","BOTTLES","John Michaloudis","ASIA","2012-10-13",53265,2012,"September","Q3"]
["TEQUILA TACOS LTD","BOTTLES","John Michaloudis","ASIA","2012-08-10",69052,2012,"October","Q4"]
["TEQUILA TACOS LTD","BOTTLES","John Michaloudis","ASIA","2012-09-06",56565,2012,"November","Q4"]
["TEQUILA TACOS LTD","BOTTLES","John Michaloudis","ASIA","2012-01-24",24843,2012,"December","Q4"]
["TEQUILA TACOS LTD","ICE CUBES","John Michaloudis","ASIA","2012-06-01",18850,2012,"January","Q1"]
["TEQUILA TACOS LTD","ICE CUBES","John Michaloudis","ASIA","2012-03-16",17056,2012,"February","Q1"]
["TEQUILA TACOS LTD","ICE CUBES","John Michaloudis","ASIA","2012-06-02",32910,2012,"March","Q1"]
["TEQUILA TACOS LTD","ICE CUBES","John Michaloudis","ASIA","2012-02-08",87105,2012,"April","Q2"]
["TEQUILA TACOS LTD","ICE CUBES","John Michaloudis","ASIA","2012-09-06",27695,2012,"May","Q2"]
["TEQUILA TACOS LTD","ICE CUBES","John Michaloudis","ASIA","2012-09-26",41826,2012,"June","Q2"]
["TEQUILA TACOS LTD","ICE CUBES","John Michaloudis","ASIA","2012-10-28",68002,2012,"July","Q3"]
["TEQUILA TACOS LTD","ICE CUBES","John Michaloudis","ASIA","2012-06-15",10338,2012,"August","Q3"]
["TEQUILA TACOS LTD","ICE CUBES","John Michaloudis","ASIA","2012-05-11",53471,2012,"September","Q3"]
["TEQUILA TACOS LTD","ICE CUBES","John Michaloudis","ASIA","2012-06-29",59452,2012,"October","Q4"]
["TEQUILA TACOS LTD","ICE CUBES","John Michaloudis","ASIA","2012-06-15",23750,2012,"November","Q4"]
["TEQUILA TACOS LTD","ICE CUBES","John Michaloudis","ASIA","2012-11-15",69631,2012,"December","Q4"]
["TEQUILA TACOS LTD","TONIC","John Michaloudis","ASIA","2012-11-28",87184,2012,"January","Q1"]
["TEQUILA TACOS LTD","TONIC","John Michaloudis","ASIA","2012-01-12",13307,2012,"February","Q1"]
["TEQUILA TACOS LTD","TONIC","John Michaloudis","ASIA","2012-06-01",76300,2012,"March","Q1"]
["TEQUILA TACOS LTD","TONIC","John Michaloudis","ASIA","2012-11-28",87571,2012,"April","Q2"]
["TEQUILA TACOS LTD","TONIC","John Michaloudis","ASIA","2012-09-21",46853,2012,"May","Q2"]
["TEQUILA TACOS LTD","TONIC","John Michaloudis","ASIA","2012-11-03",94240,2012,"June","Q2"]
["TEQUILA TACOS LTD","TONIC","John Michaloudis","ASIA","2012-11-03",18125,2012,"July","Q3"]
["TEQUILA TACOS LTD","TONIC","John Michaloudis","ASIA","2012-12-19",34753,2012,"August","Q3"]
["TEQUILA TACOS LTD","TONIC","John Michaloudis","ASIA","2012-01-14",61439,2012,"September","Q3"]
["TEQUILA TACOS LTD","TONIC","John Michaloudis","ASIA","2012-07-27",66747,2012,"October","Q4"]
["TEQUILA TACOS LTD","TONIC","John Michaloudis","ASIA","2012-10-04",88717,2012,"November","Q4"]
["TEQUILA TACOS LTD","TONIC","John Michaloudis","ASIA","2012-05-05",26804,2012,"December","Q4"]
["TEQUILA TACOS LTD","SOFT DRINKS","John Michaloudis","ASIA","2013-12-02",71362,2013,"January","Q1"]
["TEQUILA TACOS LTD","SOFT DRINKS","John Michaloudis","ASIA","2013-09-29",78271,2013,"February","Q1"]
["TEQUILA TACOS LTD","SOFT DRINKS","John Michaloudis","ASIA","2013-05-11",64303,2013,"March","Q1"]
["TEQUILA TACOS LTD","SOFT DRINKS","John Michaloudis","ASIA","2013-07-14",30259,2013,"April","Q2"]
["TEQUILA TACOS LTD","SOFT DRINKS","John Michaloudis","ASIA","2013-10-19",93605,2013,"May","Q2"]
["TEQUILA TACOS LTD","SOFT DRINKS","John Michaloudis","ASIA","2013-07-07",81268,2013,"June","Q2"]
["TEQUILA TACOS LTD","SOFT DRINKS","John Michaloudis","ASIA","2013-04-27",56176,2013,"July","Q3"]
["TEQUILA TACOS LTD","SOFT DRINKS","John Michaloudis","ASIA","2013-07-27",31410,2013,"August","Q3"]
["TEQUILA TACOS LTD","SOFT DRINKS","John Michaloudis","ASIA","2013-05-26",10690,2013,"September","Q3"]
["TEQUILA TACOS LTD","SOFT DRINKS","John Michaloudis","ASIA","2013-08-17",82307,2013,"October","Q4"]
["TEQUILA TACOS LTD","SOFT DRINKS","John Michaloudis","ASIA","2013-11-28",21780,2013,"November","Q4"]
["TEQUILA TACOS LTD","SOFT DRINKS","John Michaloudis","ASIA","2013-05-09",55565,2013,"December","Q4"]
["TEQUILA TACOS LTD","BOTTLES","John Michaloudis","ASIA","2013-08-08",64360,2013,"January","Q1"]
["TEQUILA TACOS LTD","BOTTLES","John Michaloudis","ASIA","2013-07-20",60093,2013,"February","Q1"]
["TEQUILA TACOS LTD","BOTTLES","John Michaloudis","ASIA","2013-08-08",76840,2013,"March","Q1"]
["TEQUILA TACOS LTD","BOTTLES","John Michaloudis","ASIA","2013-09-07",90362,2013,"April","Q2"]
["TEQUILA TACOS LTD","BOTTLES","John Michaloudis","ASIA","2013-11-08",18377,2013,"May","Q2"]
["TEQUILA TACOS LTD","BOTTLES","John Michaloudis","ASIA","2013-03-01",41984,2013,"June","Q2"]
["TEQUILA TACOS LTD","BOTTLES","John Michaloudis","ASIA","2013-01-24",61540,2013,"July","Q3"]
["TEQUILA TACOS LTD","BOTTLES","John Michaloudis","ASIA","2013-11-28",84277,2013,"August","Q3"]
["TEQUILA TACOS LTD","BOTTLES","John Michaloudis","ASIA","2013-05-23",35188,2013,"September","Q3"]
["TEQUILA TACOS LTD","BOTTLES","John Michaloudis","ASIA","2013-09-07",41087,2013,"October","Q4"]
["TEQUILA TACOS LTD","BOTTLES","John Michaloudis","ASIA","2013-02-23",79693,2013,"November","Q4"]
["TEQUILA TACOS LTD","BOTTLES","John Michaloudis","ASIA","2013-03-23",56754,2013,"December","Q4"]
["TEQUILA TACOS LTD","ICE CUBES","John Michaloudis","ASIA","2013-08-17",30135,2013,"January","Q1"]
["TEQUILA TACOS LTD","ICE CUBES","John Michaloudis","ASIA","2013-11-15",54269,2013,"February","Q1"]
["TEQUILA TACOS LTD","ICE CUBES","John Michaloudis","ASIA","2013-09-26",78768,2013,"March","Q1"]
["TEQUILA TACOS LTD","ICE CUBES","John Michaloudis","ASIA","2013-08-08",79010,2013,"April","Q2"]
["TEQUILA TACOS LTD","ICE CUBES","John Michaloudis","ASIA","2013-07-13",54188,2013,"May","Q2"]
["TEQUILA TACOS LTD","ICE CUBES","John Michaloudis","ASIA","2013-10-04",44186,2013,"June","Q2"]
["TEQUILA TACOS LTD","ICE CUBES","John Michaloudis","ASIA","2013-11-08",44361,2013,"July","Q3"]
["TEQUILA TACOS LTD","ICE CUBES","John Michaloudis","ASIA","2013-04-14",89126,2013,"August","Q3"]
["TEQUILA TACOS LTD","ICE CUBES","John Michaloudis","ASIA","2013-08-19",50294,2013,"September","Q3"]
["TEQUILA TACOS LTD","ICE CUBES","John Michaloudis","ASIA","2013-06-29",85667,2013,"October","Q4"]
["TEQUILA TACOS LTD","ICE CUBES","John Michaloudis","ASIA","2013-03-30",74326,2013,"November","Q4"]
["TEQUILA TACOS LTD","ICE CUBES","John Michaloudis","ASIA","2013-01-11",54956,2013,"December","Q4"]
["TEQUILA TACOS LTD","TONIC","John Michaloudis","ASIA","2013-10-17",74830,2013,"January","Q1"]
["TEQUILA TACOS LTD","TONIC","John Michaloudis","ASIA","2013-10-11",73390,2013,"February","Q1"]
["TEQUILA TACOS LTD","TONIC","John Michaloudis","ASIA","2013-01-03",18410,2013,"March","Q1"]
["TEQUILA TACOS LTD","TONIC","John Michaloudis","ASIA","2013-12-14",96755,2013,"April","Q2"]
["TEQUILA TACOS LTD","TONIC","John Michaloudis","ASIA","2013-11-28",61466,2013,"May","Q2"]
["TEQUILA TACOS LTD","TONIC","John Michaloudis","ASIA","2013-05-06",31549,2013,"June","Q2"]
["TEQUILA TACOS LTD","TONIC","John Michaloudis","ASIA","2013-09-14",91166,2013,"July","Q3"]
["TEQUILA TACOS LTD","TONIC","John Michaloudis","ASIA","2013-09-07",88071,2013,"August","Q3"]
["TEQUILA TACOS LTD","TONIC","John Michaloudis","ASIA","2013-06-22",61771,2013,"September","Q3"]
["TEQUILA TACOS LTD","TONIC","John Michaloudis","ASIA","2013-04-20",81784,2013,"October","Q4"]
["TEQUILA TACOS LTD","TONIC","John Michaloudis","ASIA","2013-06-29",27993,2013,"November","Q4"]
["TEQUILA TACOS LTD","TONIC","John Michaloudis","ASIA","2013-04-06",45878,2013,"December","Q4"]
["TEQUILA TACOS LTD","SOFT DRINKS","John Michaloudis","ASIA","2014-01-07",16425,2014,"January","Q1"]
["TEQUILA TACOS LTD","SOFT DRINKS","John Michaloudis","ASIA","2014-09-26",27832,2014,"February","Q1"]
["TEQUILA TACOS LTD","SOFT DRINKS","John Michaloudis","ASIA","2014-10-07",80073,2014,"March","Q1"]
["TEQUILA TACOS LTD","SOFT DRINKS","John Michaloudis","ASIA","2014-08-04",97319,2014,"April","Q2"]
["TEQUILA TACOS LTD","SOFT DRINKS","John Michaloudis","ASIA","2014-06-22",38277,2014,"May","Q2"]
["TEQUILA TACOS LTD","SOFT DRINKS","John Michaloudis","ASIA","2014-03-23",44723,2014,"June","Q2"]
["TEQUILA TACOS LTD","SOFT DRINKS","John Michaloudis","ASIA","2014-05-16",70630,2014,"July","Q3"]
["TEQUILA TACOS LTD","SOFT DRINKS","John Michaloudis","ASIA","2014-07-27",45727,2014,"August","Q3"]
["TEQUILA TACOS LTD","SOFT DRINKS","John Michaloudis","ASIA","2014-02-15",81486,2014,"September","Q3"]
["TEQUILA TACOS LTD","SOFT DRINKS","John Michaloudis","ASIA","2014-04-13",35158,2014,"October","Q4"]
["TEQUILA TACOS LTD","SOFT DRINKS","John Michaloudis","ASIA","2014-06-08",83262,2014,"November","Q4"]
["TEQUILA TACOS LTD","SOFT DRINKS","John Michaloudis","ASIA","2014-12-19",74283,2014,"December","Q4"]
["TEQUILA TACOS LTD","BOTTLES","John Michaloudis","ASIA","2014-03-08",24805,2014,"January","Q1"]
["TEQUILA TACOS LTD","BOTTLES","John Michaloudis","ASIA","2014-08-01",16556,2014,"February","Q1"]
["TEQUILA TACOS LTD","BOTTLES","John Michaloudis","ASIA","2014-05-09",48638,2014,"March","Q1"]
["TEQUILA TACOS LTD","BOTTLES","John Michaloudis","ASIA","2014-07-20",56001,2014,"April","Q2"]
["TEQUILA TACOS LTD","BOTTLES","John Michaloudis","ASIA","2014-10-17",17127,2014,"May","Q2"]
["TEQUILA TACOS LTD","BOTTLES","John Michaloudis","ASIA","2014-01-25",89436,2014,"June","Q2"]
["TEQUILA TACOS LTD","BOTTLES","John Michaloudis","ASIA","2014-11-15",70047,2014,"July","Q3"]
["TEQUILA TACOS LTD","BOTTLES","John Michaloudis","ASIA","2014-02-15",38602,2014,"August","Q3"]
["TEQUILA TACOS LTD","BOTTLES","John Michaloudis","ASIA","2014-10-11",74865,2014,"September","Q3"]
["TEQUILA TACOS LTD","BOTTLES","John Michaloudis","ASIA","2014-10-20",61380,2014,"October","Q4"]
["TEQUILA TACOS LTD","BOTTLES","John Michaloudis","ASIA","2014-10-10",14784,2014,"November","Q4"]
["TEQUILA TACOS LTD","BOTTLES","John Michaloudis","ASIA","2014-12-02",73862,2014,"December","Q4"]
["TEQUILA TACOS LTD","ICE CUBES","John Michaloudis","ASIA","2014-12-02",83315,2014,"January","Q1"]
["TEQUILA TACOS LTD","ICE CUBES","John Michaloudis","ASIA","2014-12-02",68404,2014,"February","Q1"]
["TEQUILA TACOS LTD","ICE CUBES","John Michaloudis","ASIA","2014-12-02",90217,2014,"March","Q1"]
["TEQUILA TACOS LTD","ICE CUBES","John Michaloudis","ASIA","2014-12-02",90547,2014,"April","Q2"]
["TEQUILA TACOS LTD","ICE CUBES","John Michaloudis","ASIA","2014-12-02",14692,2014,"May","Q2"]
["TEQUILA TACOS LTD","ICE CUBES","John Michaloudis","ASIA","2014-12-02",49657,2014,"June","Q2"]
["TEQUILA TACOS LTD","ICE CUBES","John Michaloudis","ASIA","2014-12-02",33571,2014,"July","Q3"]
["TEQUILA TACOS LTD","ICE CUBES","John Michaloudis","ASIA","2014-12-02",49617,2014,"August","Q3"]
["TEQUILA TACOS LTD","ICE CUBES","John Michaloudis","ASIA","2014-12-02",62480,2014,"September","Q3"]
["TEQUILA TACOS LTD","ICE CUBES","John Michaloudis","ASIA","2014-12-02",47736,2014,"October","Q4"]
["TEQUILA TACOS LTD","ICE CUBES","John Michaloudis","ASIA","2014-12-02",77558,2014,"November","Q4"]
["TEQUILA TACOS LTD","ICE CUBES","John Michaloudis","ASIA","2014-06-23",55463,2014,"December","Q4"]
["TEQUILA TACOS LTD","TONIC","John Michaloudis","ASIA","2014-06-23",94980,2014,"January","Q1"]
["TEQUILA TACOS LTD","TONIC","John Michaloudis","ASIA","2014-06-23",10209,2014,"February","Q1"]
["TEQUILA TACOS LTD","TONIC","John Michaloudis","ASIA","2014-06-23",53109,2014,"March","Q1"]
["TEQUILA TACOS LTD","TONIC","John Michaloudis","ASIA","2014-06-23",83776,2014,"April","Q2"]
["TEQUILA TACOS LTD","TONIC","John Michaloudis","ASIA","2014-06-23",30296,2014,"May","Q2"]
["TEQUILA TACOS LTD","TONIC","John Michaloudis","ASIA","2014-06-23",99878,2014,"June","Q2"]
["TEQUILA TACOS LTD","TONIC","John Michaloudis","ASIA","2014-12-20",85777,2014,"July","Q3"]
["TEQUILA TACOS LTD","TONIC","John Michaloudis","ASIA","2014-12-20",42990,2014,"August","Q3"]
["TEQUILA TACOS LTD","TONIC","John Michaloudis","ASIA","2014-12-21",31951,2014,"September","Q3"]
["TEQUILA TACOS LTD","TONIC","John Michaloudis","ASIA","2014-11-22",52980,2014,"October","Q4"]
["TEQUILA TACOS LTD","TONIC","John Michaloudis","ASIA","2014-12-30",32784,2014,"November","Q4"]
["TEQUILA TACOS LTD","TONIC","John Michaloudis","ASIA","2014-09-06",87871,2014,"December","Q4"]
["GIN ON THE RUN CO","SOFT DRINKS","Homer Simpson","AFRICA","2012-03-09",44719,2012,"January","Q1"]
["GIN ON THE RUN CO","SOFT DRINKS","Homer Simpson","AFRICA","2012-09-28",25249,2012,"February","Q1"]
["GIN ON THE RUN CO","SOFT DRINKS","Homer Simpson","AFRICA","2012-10-04",86706,2012,"March","Q1"]
["GIN ON THE RUN CO","SOFT DRINKS","Homer Simpson","AFRICA","2012-02-16",57670,2012,"April","Q2"]
["GIN ON THE RUN CO","SOFT DRINKS","Homer Simpson","AFRICA","2012-05-16",17405,2012,"May","Q2"]
["GIN ON THE RUN CO","SOFT DRINKS","Homer Simpson","AFRICA","2012-11-28",71664,2012,"June","Q2"]
["GIN ON THE RUN CO","SOFT DRINKS","Homer Simpson","AFRICA","2012-02-01",71644,2012,"July","Q3"]
["GIN ON THE RUN CO","SOFT DRINKS","Homer Simpson","AFRICA","2012-02-15",20166,2012,"August","Q3"]
["GIN ON THE RUN CO","SOFT DRINKS","Homer Simpson","AFRICA","2012-12-14",99101,2012,"September","Q3"]
["GIN ON THE RUN CO","SOFT DRINKS","Homer Simpson","AFRICA","2012-06-22",24921,2012,"October","Q4"]
["GIN ON THE RUN CO","SOFT DRINKS","Homer Simpson","AFRICA","2012-04-06",46740,2012,"November","Q4"]
["GIN ON THE RUN CO","SOFT DRINKS","Homer Simpson","AFRICA","2012-04-06",57570,2012,"December","Q4"]
["GIN ON THE RUN CO","BOTTLES","Homer Simpson","AFRICA","2012-11-28",24997,2012,"January","Q1"]
["GIN ON THE RUN CO","BOTTLES","Homer Simpson","AFRICA","2012-03-16",93577,2012,"February","Q1"]
["GIN ON THE RUN CO","BOTTLES","Homer Simpson","AFRICA","2012-11-28",31641,2012,"March","Q1"]
["GIN ON THE RUN CO","BOTTLES","Homer Simpson","AFRICA","2012-10-04",95561,2012,"April","Q2"]
["GIN ON THE RUN CO","BOTTLES","Homer Simpson","AFRICA","2012-10-25",80267,2012,"May","Q2"]
["GIN ON THE RUN CO","BOTTLES","Homer Simpson","AFRICA","2012-03-09",71006,2012,"June","Q2"]
["GIN ON THE RUN CO","BOTTLES","Homer Simpson","AFRICA","2012-05-10",43061,2012,"July","Q3"]
["GIN ON THE RUN CO","BOTTLES","Homer Simpson","AFRICA","2012-07-13",10780,2012,"August","Q3"]
["GIN ON THE RUN CO","BOTTLES","Homer Simpson","AFRICA","2012-11-24",71281,2012,"September","Q3"]
["GIN ON THE RUN CO","BOTTLES","Homer Simpson","AFRICA","2012-09-07",58557,2012,"October","Q4"]
["GIN ON THE RUN CO","BOTTLES","Homer Simpson","AFRICA","2012-09-07",16918,2012,"November","Q4"]
["GIN ON THE RUN CO","BOTTLES","Homer Simpson","AFRICA","2012-07-07",96209,2012,"December","Q4"]
["GIN ON THE RUN CO","ICE CUBES","Homer Simpson","AFRICA","2012-09-07",90340,2012,"January","Q1"]
["GIN ON THE RUN CO","ICE CUBES","Homer Simpson","AFRICA","2012-09-07",89734,2012,"February","Q1"]
["GIN ON THE RUN CO","ICE CUBES","Homer Simpson","AFRICA","2012-01-03",95630,2012,"March","Q1"]
["GIN ON THE RUN CO","ICE CUBES","Homer Simpson","AFRICA","2012-11-01",30674,2012,"April","Q2"]
["GIN ON THE RUN CO","ICE CUBES","Homer Simpson","AFRICA","2012-03-14",72408,2012,"May","Q2"]
["GIN ON THE RUN CO","ICE CUBES","Homer Simpson","AFRICA","2012-10-10",66181,2012,"June","Q2"]
["GIN ON THE RUN CO","ICE CUBES","Homer Simpson","AFRICA","2012-04-06",28390,2012,"July","Q3"]
["GIN ON THE RUN CO","ICE CUBES","Homer Simpson","AFRICA","2012-10-10",45991,2012,"August","Q3"]
["GIN ON THE RUN CO","ICE CUBES","Homer Simpson","AFRICA","2012-06-15",14127,2012,"September","Q3"]
["GIN ON THE RUN CO","ICE CUBES","Homer Simpson","AFRICA","2012-07-14",91812,2012,"October","Q4"]
["GIN ON THE RUN CO","ICE CUBES","Homer Simpson","AFRICA","2012-11-28",77660,2012,"November","Q4"]
["GIN ON THE RUN CO","ICE CUBES","Homer Simpson","AFRICA","2012-06-24",30769,2012,"December","Q4"]
["GIN ON THE RUN CO","TONIC","Homer Simpson","AFRICA","2012-04-15",10090,2012,"January","Q1"]
["GIN ON THE RUN CO","TONIC","Homer Simpson","AFRICA","2012-09-13",85616,2012,"February","Q1"]
["GIN ON THE RUN CO","TONIC","Homer Simpson","AFRICA","2012-06-08",98483,2012,"March","Q1"]
["GIN ON THE RUN CO","TONIC","Homer Simpson","AFRICA","2012-09-16",45728,2012,"April","Q2"]
["GIN ON THE RUN CO","TONIC","Homer Simpson","AFRICA","2012-08-08",21385,2012,"May","Q2"]
["GIN ON THE RUN CO","TONIC","Homer Simpson","AFRICA","2012-05-18",29970,2012,"June","Q2"]
["GIN ON THE RUN CO","TONIC","Homer Simpson","AFRICA","2012-09-26",74306,2012,"July","Q3"]
["GIN ON THE RUN CO","TONIC","Homer Simpson","AFRICA","2012-02-01",35366,2012,"August","Q3"]
["GIN ON THE RUN CO","TONIC","Homer Simpson","AFRICA","2012-06-22",71112,2012,"September","Q3"]
["GIN ON THE RUN CO","TONIC","Homer Simpson","AFRICA","2012-10-17",54397,2012,"October","Q4"]
["GIN ON THE RUN CO","TONIC","Homer Simpson","AFRICA","2012-10-11",59226,2012,"November","Q4"]
["GIN ON THE RUN CO","TONIC","Homer Simpson","AFRICA","2012-10-17",11145,2012,"December","Q4"]
["GIN ON THE RUN CO","SOFT DRINKS","Homer Simpson","AFRICA","2013-07-06",14169,2013,"January","Q1"]
["GIN ON THE RUN CO","SOFT DRINKS","Homer Simpson","AFRICA","2013-01-10",41118,2013,"February","Q1"]
["GIN ON THE RUN CO","SOFT DRINKS","Homer Simpson","AFRICA","2013-10-11",84129,2013,"March","Q1"]
["GIN ON THE RUN CO","SOFT DRINKS","Homer Simpson","AFRICA","2013-11-16",29008,2013,"April","Q2"]
["GIN ON THE RUN CO","SOFT DRINKS","Homer Simpson","AFRICA","2013-11-28",76494,2013,"May","Q2"]
["GIN ON THE RUN CO","SOFT DRINKS","Homer Simpson","AFRICA","2013-12-31",89557,2013,"June","Q2"]
["GIN ON THE RUN CO","SOFT DRINKS","Homer Simpson","AFRICA","2013-12-31",49012,2013,"July","Q3"]
["GIN ON THE RUN CO","SOFT DRINKS","Homer Simpson","AFRICA","2013-12-31",61766,2013,"August","Q3"]
["GIN ON THE RUN CO","SOFT DRINKS","Homer Simpson","AFRICA","2013-05-06",39836,2013,"September","Q3"]
["GIN ON THE RUN CO","SOFT DRINKS","Homer Simpson","AFRICA","2013-08-31",29506,2013,"October","Q4"]
["GIN ON THE RUN CO","SOFT DRINKS","Homer Simpson","AFRICA","2013-09-09",23168,2013,"November","Q4"]
["GIN ON THE RUN CO","SOFT DRINKS","Homer Simpson","AFRICA","2013-12-09",97854,2013,"December","Q4"]
["GIN ON THE RUN CO","BOTTLES","Homer Simpson","AFRICA","2013-05-18",98852,2013,"January","Q1"]
["GIN ON THE RUN CO","BOTTLES","Homer Simpson","AFRICA","2013-12-06",56682,2013,"February","Q1"]
["GIN ON THE RUN CO","BOTTLES","Homer Simpson","AFRICA","2013-09-14",54310,2013,"March","Q1"]
["GIN ON THE RUN CO","BOTTLES","Homer Simpson","AFRICA","2013-01-03",87683,2013,"April","Q2"]
["GIN ON THE RUN CO","BOTTLES","Homer Simpson","AFRICA","2013-12-20",84104,2013,"May","Q2"]
["GIN ON THE RUN CO","BOTTLES","Homer Simpson","AFRICA","2013-02-01",91033,2013,"June","Q2"]
["GIN ON THE RUN CO","BOTTLES","Homer Simpson","AFRICA","2013-04-19",82085,2013,"July","Q3"]
["GIN ON THE RUN CO","BOTTLES","Homer Simpson","AFRICA","2013-04-19",54664,2013,"August","Q3"]
["GIN ON THE RUN CO","BOTTLES","Homer Simpson","AFRICA","2013-10-25",31434,2013,"September","Q3"]
["GIN ON THE RUN CO","BOTTLES","Homer Simpson","AFRICA","2013-10-25",80306,2013,"October","Q4"]
["GIN ON THE RUN CO","BOTTLES","Homer Simpson","AFRICA","2013-12-17",13804,2013,"November","Q4"]
["GIN ON THE RUN CO","BOTTLES","Homer Simpson","AFRICA","2013-12-17",92944,2013,"December","Q4"]
["GIN ON THE RUN CO","ICE CUBES","Homer Simpson","AFRICA","2013-12-08",61233,2013,"January","Q1"]
["GIN ON THE RUN CO","ICE CUBES","Homer Simpson","AFRICA","2013-01-18",69281,2013,"February","Q1"]
["GIN ON THE RUN CO","ICE CUBES","Homer Simpson","AFRICA","2013-12-21",94075,2013,"March","Q1"]
["GIN ON THE RUN CO","ICE CUBES","Homer Simpson","AFRICA","2013-06-29",43758,2013,"April","Q2"]
["GIN ON THE RUN CO","ICE CUBES","Homer Simpson","AFRICA","2013-12-21",56262,2013,"May","Q2"]
["GIN ON THE RUN CO","ICE CUBES","Homer Simpson","AFRICA","2013-07-20",42319,2013,"June","Q2"]
["GIN ON THE RUN CO","ICE CUBES","Homer Simpson","AFRICA","2013-05-09",82921,2013,"July","Q3"]
["GIN ON THE RUN CO","ICE CUBES","Homer Simpson","AFRICA","2013-06-08",56173,2013,"August","Q3"]
["GIN ON THE RUN CO","ICE CUBES","Homer Simpson","AFRICA","2013-11-19",66997,2013,"September","Q3"]
["GIN ON THE RUN CO","ICE CUBES","Homer Simpson","AFRICA","2013-12-13",28884,2013,"October","Q4"]
["GIN ON THE RUN CO","ICE CUBES","Homer Simpson","AFRICA","2013-10-26",74664,2013,"November","Q4"]
["GIN ON THE RUN CO","ICE CUBES","Homer Simpson","AFRICA","2013-01-12",71397,2013,"December","Q4"]
["GIN ON THE RUN CO","TONIC","Homer Simpson","AFRICA","2013-09-14",41975,2013,"January","Q1"]
["GIN ON THE RUN CO","TONIC","Homer Simpson","AFRICA","2013-02-14",88575,2013,"February","Q1"]
["GIN ON THE RUN CO","TONIC","Homer Simpson","AFRICA","2013-07-14",74340,2013,"March","Q1"]
["GIN ON THE RUN CO","TONIC","Homer Simpson","AFRICA","2013-11-28",72884,2013,"April","Q2"]
["GIN ON THE RUN CO","TONIC","Homer Simpson","AFRICA","2013-09-26",59557,2013,"May","Q2"]
["GIN ON THE RUN CO","TONIC","Homer Simpson","AFRICA","2013-10-18",86610,2013,"June","Q2"]
["GIN ON THE RUN CO","TONIC","Homer Simpson","AFRICA","2013-10-18",22172,2013,"July","Q3"]
["GIN ON THE RUN CO","TONIC","Homer Simpson","AFRICA","2013-06-02",89040,2013,"August","Q3"]
["GIN ON THE RUN CO","TONIC","Homer Simpson","AFRICA","2013-11-28",38507,2013,"September","Q3"]
["GIN ON THE RUN CO","TONIC","Homer Simpson","AFRICA","2013-11-28",94271,2013,"October","Q4"]
["GIN ON THE RUN CO","TONIC","Homer Simpson","AFRICA","2013-01-24",36517,2013,"November","Q4"]
["GIN ON THE RUN CO","TONIC","Homer Simpson","AFRICA","2013-05-16",71515,2013,"December","Q4"]
["GIN ON THE RUN CO","SOFT DRINKS","Homer Simpson","AFRICA","2014-12-20",92590,2014,"January","Q1"]
["GIN ON THE RUN CO","SOFT DRINKS","Homer Simpson","AFRICA","2014-11-28",95829,2014,"February","Q1"]
["GIN ON THE RUN CO","SOFT DRINKS","Homer Simpson","AFRICA","2014-01-18",75901,2014,"March","Q1"]
["GIN ON THE RUN CO","SOFT DRINKS","Homer Simpson","AFRICA","2014-06-14",73045,2014,"April","Q2"]
["GIN ON THE RUN CO","SOFT DRINKS","Homer Simpson","AFRICA","2014-02-23",71776,2014,"May","Q2"]
["GIN ON THE RUN CO","SOFT DRINKS","Homer Simpson","AFRICA","2014-12-09",29433,2014,"June","Q2"]
["GIN ON THE RUN CO","SOFT DRINKS","Homer Simpson","AFRICA","2014-05-09",96341,2014,"July","Q3"]
["GIN ON THE RUN CO","SOFT DRINKS","Homer Simpson","AFRICA","2014-11-28",12968,2014,"August","Q3"]
["GIN ON THE RUN CO","SOFT DRINKS","Homer Simpson","AFRICA","2014-12-31",53796,2014,"September","Q3"]
["GIN ON THE RUN CO","SOFT DRINKS","Homer Simpson","AFRICA","2014-12-14",46195,2014,"October","Q4"]
["GIN ON THE RUN CO","SOFT DRINKS","Homer Simpson","AFRICA","2014-11-28",63269,2014,"November","Q4"]
["GIN ON THE RUN CO","SOFT DRINKS","Homer Simpson","AFRICA","2014-12-09",67038,2014,"December","Q4"]
["GIN ON THE RUN CO","BOTTLES","Homer Simpson","AFRICA","2014-10-26",15201,2014,"January","Q1"]
["GIN ON THE RUN CO","BOTTLES","Homer Simpson","AFRICA","2014-04-27",27160,2014,"February","Q1"]
["GIN ON THE RUN CO","BOTTLES","Homer Simpson","AFRICA","2014-11-28",67176,2014,"March","Q1"]
["GIN ON THE RUN CO","BOTTLES","Homer Simpson","AFRICA","2014-05-18",62135,2014,"April","Q2"]
["GIN ON THE RUN CO","BOTTLES","Homer Simpson","AFRICA","2014-11-29",16292,2014,"May","Q2"]
["GIN ON THE RUN CO","BOTTLES","Homer Simpson","AFRICA","2014-11-28",77723,2014,"June","Q2"]
["GIN ON THE RUN CO","BOTTLES","Homer Simpson","AFRICA","2014-07-14",20106,2014,"July","Q3"]
["GIN ON THE RUN CO","BOTTLES","Homer Simpson","AFRICA","2014-07-07",91228,2014,"August","Q3"]
["GIN ON THE RUN CO","BOTTLES","Homer Simpson","AFRICA","2014-04-01",31915,2014,"September","Q3"]
["GIN ON THE RUN CO","BOTTLES","Homer Simpson","AFRICA","2014-04-01",28137,2014,"October","Q4"]
["GIN ON THE RUN CO","BOTTLES","Homer Simpson","AFRICA","2014-04-01",47215,2014,"November","Q4"]
["GIN ON THE RUN CO","BOTTLES","Homer Simpson","AFRICA","2014-04-01",78866,2014,"December","Q4"]
["GIN ON THE RUN CO","ICE CUBES","Homer Simpson","AFRICA","2014-04-01",97314,2014,"January","Q1"]
["GIN ON THE RUN CO","ICE CUBES","Homer Simpson","AFRICA","2014-04-01",66890,2014,"February","Q1"]
["GIN ON THE RUN CO","ICE CUBES","Homer Simpson","AFRICA","2014-04-01",63005,2014,"March","Q1"]
["GIN ON THE RUN CO","ICE CUBES","Homer Simpson","AFRICA","2014-04-01",37146,2014,"April","Q2"]
["GIN ON THE RUN CO","ICE CUBES","Homer Simpson","AFRICA","2014-04-01",40215,2014,"May","Q2"]
["GIN ON THE RUN CO","ICE CUBES","Homer Simpson","AFRICA","2014-04-01",39839,2014,"June","Q2"]
["GIN ON THE RUN CO","ICE CUBES","Homer Simpson","AFRICA","2014-11-22",79853,2014,"July","Q3"]
["GIN ON THE RUN CO","ICE CUBES","Homer Simpson","AFRICA","2014-08-04",11497,2014,"August","Q3"]
["GIN ON THE RUN CO","ICE CUBES","Homer Simpson","AFRICA","2014-08-04",65439,2014,"September","Q3"]
["GIN ON THE RUN CO","ICE CUBES","Homer Simpson","AFRICA","2014-04-04",96978,2014,"October","Q4"]
["GIN ON THE RUN CO","ICE CUBES","Homer Simpson","AFRICA","2014-09-26",95596,2014,"November","Q4"]
["GIN ON THE RUN CO","ICE CUBES","Homer Simpson","AFRICA","2014-11-14",28496,2014,"December","Q4"]
["GIN ON THE RUN CO","TONIC","Homer Simpson","AFRICA","2014-12-20",78392,2014,"January","Q1"]
["GIN ON THE RUN CO","TONIC","Homer Simpson","AFRICA","2014-12-08",61077,2014,"February","Q1"]
["GIN ON THE RUN CO","TONIC","Homer Simpson","AFRICA","2014-12-08",50033,2014,"March","Q1"]
["GIN ON THE RUN CO","TONIC","Homer Simpson","AFRICA","2014-12-08",50577,2014,"April","Q2"]
["GIN ON THE RUN CO","TONIC","Homer Simpson","AFRICA","2014-12-08",54040,2014,"May","Q2"]
["GIN ON THE RUN CO","TONIC","Homer Simpson","AFRICA","2014-12-17",45057,2014,"June","Q2"]
["GIN ON THE RUN CO","TONIC","Homer Simpson","AFRICA","2014-12-17",35558,2014,"July","Q3"]
["GIN ON THE RUN CO","TONIC","Homer Simpson","AFRICA","2014-12-17",21217,2014,"August","Q3"]
["GIN ON THE RUN CO","TONIC","Homer Simpson","AFRICA","2014-12-17",60244,2014,"September","Q3"]
["GIN ON THE RUN CO","TONIC","Homer Simpson","AFRICA","2014-01-05",76362,2014,"October","Q4"]
["GIN ON THE RUN CO","TONIC","Homer Simpson","AFRICA","2014-01-05",60119,2014,"November","Q4"]
["GIN ON THE RUN CO","TONIC","Homer Simpson","AFRICA","2014-01-05",45139,2014,"December","Q4"]
["Total",null,null,null,null,{"$f":"SUBTOTAL(103,'#1'!$F$2:$F$577)","v":576},null,null,{"$f":"SUBTOTAL(103,'#1'!$I$2:$I$577)","v":576}]

{"sheet":"#2","index":1,"n_rows":578,"n_cols":10,"rows_kept":578,"cut":false,"hidden":false,"merged":[]}
["CUSTOMER","PRODUCTS","SALES PERSON","SALES REGION","ORDER DATE","SALES","FINANCIAL YEAR","SALES MONTH","SALES QTR","HELPER COL"]
["LONG ISLANDS INC","SOFT DRINKS","Michael Jackson","AMERICAS","2012-04-13",24640,2012,"January","Q1",{"$f":"MOD(ROW(I2),2)","v":0}]
["LONG ISLANDS INC","SOFT DRINKS","Michael Jackson","AMERICAS","2012-12-21",24640,2012,"February","Q1",{"$f":"MOD(ROW(I3),2)","v":1}]
["LONG ISLANDS INC","SOFT DRINKS","Michael Jackson","AMERICAS","2012-12-24",29923,2012,"March","Q1",0]
["LONG ISLANDS INC","SOFT DRINKS","Michael Jackson","AMERICAS","2012-12-24",66901,2012,"April","Q2",1]
["LONG ISLANDS INC","SOFT DRINKS","Michael Jackson","AMERICAS","2012-12-29",63116,2012,"May","Q2",0]
["LONG ISLANDS INC","SOFT DRINKS","Michael Jackson","AMERICAS","2012-06-28",38281,2012,"June","Q2",1]
["LONG ISLANDS INC","SOFT DRINKS","Michael Jackson","AMERICAS","2012-06-28",57650,2012,"July","Q3",0]
["LONG ISLANDS INC","SOFT DRINKS","Michael Jackson","AMERICAS","2012-06-29",90967,2012,"August","Q3",1]
["LONG ISLANDS INC","SOFT DRINKS","Michael Jackson","AMERICAS","2012-06-29",11910,2012,"September","Q3",0]
["LONG ISLANDS INC","SOFT DRINKS","Michael Jackson","AMERICAS","2012-07-06",59531,2012,"October","Q4",1]
["LONG ISLANDS INC","SOFT DRINKS","Michael Jackson","AMERICAS","2012-07-06",88297,2012,"November","Q4",0]
["LONG ISLANDS INC","SOFT DRINKS","Michael Jackson","AMERICAS","2012-09-08",87868,2012,"December","Q4",1]
["LONG ISLANDS INC","BOTTLES","Michael Jackson","AMERICAS","2012-09-08",95527,2012,"January","Q1",0]
["LONG ISLANDS INC","BOTTLES","Michael Jackson","AMERICAS","2012-06-30",90599,2012,"February","Q1",1]
["LONG ISLANDS INC","BOTTLES","Michael Jackson","AMERICAS","2012-12-23",17030,2012,"March","Q1",0]
["LONG ISLANDS INC","BOTTLES","Michael Jackson","AMERICAS","2012-12-08",65026,2012,"April","Q2",1]
["LONG ISLANDS INC","BOTTLES","Michael Jackson","AMERICAS","2012-10-28",57579,2012,"May","Q2",0]
["LONG ISLANDS INC","BOTTLES","Michael Jackson","AMERICAS","2012-10-28",34338,2012,"June","Q2",1]
["LONG ISLANDS INC","BOTTLES","Michael Jackson","AMERICAS","2012-09-15",90387,2012,"July","Q3",0]
["LONG ISLANDS INC","BOTTLES","Michael Jackson","AMERICAS","2012-10-28",62324,2012,"August","Q3",1]
["LONG ISLANDS INC","BOTTLES","Michael Jackson","AMERICAS","2012-10-31",28871,2012,"September","Q3",0]
["LONG ISLANDS INC","BOTTLES","Michael Jackson","AMERICAS","2012-12-29",34714,2012,"October","Q4",1]
["LONG ISLANDS INC","BOTTLES","Michael Jackson","AMERICAS","2012-04-15",38668,2012,"November","Q4",0]
["LONG ISLANDS INC","BOTTLES","Michael Jackson","AMERICAS","2012-12-08",59810,2012,"December","Q4",1]
["LONG ISLANDS INC","ICE CUBES","Michael Jackson","AMERICAS","2012-12-01",19056,2012,"January","Q1",0]
["LONG ISLANDS INC","ICE CUBES","Michael Jackson","AMERICAS","2012-12-01",34096,2012,"February","Q1",1]
["LONG ISLANDS INC","ICE CUBES","Michael Jackson","AMERICAS","2012-10-28",80441,2012,"March","Q1",0]
["LONG ISLANDS INC","ICE CUBES","Michael Jackson","AMERICAS","2012-08-19",15306,2012,"April","Q2",1]
["LONG ISLANDS INC","ICE CUBES","Michael Jackson","AMERICAS","2012-02-08",11347,2012,"May","Q2",0]
["LONG ISLANDS INC","ICE CUBES","Michael Jackson","AMERICAS","2012-10-31",11136,2012,"June","Q2",1]
["LONG ISLANDS INC","ICE CUBES","Michael Jackson","AMERICAS","2012-10-21",88672,2012,"July","Q3",0]
["LONG ISLANDS INC","ICE CUBES","Michael Jackson","AMERICAS","2012-07-26",82202,2012,"August","Q3",1]
["LONG ISLANDS INC","ICE CUBES","Michael Jackson","AMERICAS","2012-08-19",70480,2012,"September","Q3",0]
["LONG ISLANDS INC","ICE CUBES","Michael Jackson","AMERICAS","2012-08-19",17523,2012,"October","Q4",1]
["LONG ISLANDS INC","ICE CUBES","Michael Jackson","AMERICAS","2012-08-12",86647,2012,"November","Q4",0]
["LONG ISLANDS INC","ICE CUBES","Michael Jackson","AMERICAS","2012-10-28",38301,2012,"December","Q4",1]
["LONG ISLANDS INC","TONIC","Michael Jackson","AMERICAS","2012-08-12",29185,2012,"January","Q1",0]
["LONG ISLANDS INC","TONIC","Michael Jackson","AMERICAS","2012-12-01",19595,2012,"February","Q1",1]
["LONG ISLANDS INC","TONIC","Michael Jackson","AMERICAS","2012-12-01",29333,2012,"March","Q1",0]
["LONG ISLANDS INC","TONIC","Michael Jackson","AMERICAS","2012-10-31",59339,2012,"April","Q2",1]
["LONG ISLANDS INC","TONIC","Michael Jackson","AMERICAS","2012-12-01",73310,2012,"May","Q2",0]
["LONG ISLANDS INC","TONIC","Michael Jackson","AMERICAS","2012-10-28",16527,2012,"June","Q2",1]
["LONG ISLANDS INC","TONIC","Michael Jackson","AMERICAS","2012-12-01",80254,2012,"July","Q3",0]
["LONG ISLANDS INC","TONIC","Michael Jackson","AMERICAS","2012-10-31",62535,2012,"August","Q3",1]
["LONG ISLANDS INC","TONIC","Michael Jackson","AMERICAS","2012-12-30",63923,2012,"September","Q3",0]
["LONG ISLANDS INC","TONIC","Michael Jackson","AMERICAS","2012-09-13",52045,2012,"October","Q4",1]
["LONG ISLANDS INC","TONIC","Michael Jackson","AMERICAS","2012-10-01",86327,2012,"November","Q4",0]
["LONG ISLANDS INC","TONIC","Michael Jackson","AMERICAS","2012-07-26",53045,2012,"December","Q4",1]
["LONG ISLANDS INC","SOFT DRINKS","Michael Jackson","AMERICAS","2013-10-21",26687,2013,"January","Q1",0]
["LONG ISLANDS INC","SOFT DRINKS","Michael Jackson","AMERICAS","2013-12-01",88003,2013,"February","Q1",1]
["LONG ISLANDS INC","SOFT DRINKS","Michael Jackson","AMERICAS","2013-10-28",12502,2013,"March","Q1",0]
["LONG ISLANDS INC","SOFT DRINKS","Michael Jackson","AMERICAS","2013-10-28",17100,2013,"April","Q2",1]
["LONG ISLANDS INC","SOFT DRINKS","Michael Jackson","AMERICAS","2013-10-31",16853,2013,"May","Q2",0]
["LONG ISLANDS INC","SOFT DRINKS","Michael Jackson","AMERICAS","2013-10-28",35796,2013,"June","Q2",1]
["LONG ISLANDS INC","SOFT DRINKS","Michael Jackson","AMERICAS","2013-10-31",64825,2013,"July","Q3",0]
["LONG ISLANDS INC","SOFT DRINKS","Michael Jackson","AMERICAS","2013-11-03",17929,2013,"August","Q3",1]
["LONG ISLANDS INC","SOFT DRINKS","Michael Jackson","AMERICAS","2013-12-01",50134,2013,"September","Q3",0]
["LONG ISLANDS INC","SOFT DRINKS","Michael Jackson","AMERICAS","2013-10-31",95705,2013,"October","Q4",1]
["LONG ISLANDS INC","SOFT DRINKS","Michael Jackson","AMERICAS","2013-02-28",13178,2013,"November","Q4",0]
["LONG ISLANDS INC","SOFT DRINKS","Michael Jackson","AMERICAS","2013-12-16",22781,2013,"December","Q4",1]
["LONG ISLANDS INC","BOTTLES","Michael Jackson","AMERICAS","2013-03-22",59151,2013,"January","Q1",0]
["LONG ISLANDS INC","BOTTLES","Michael Jackson","AMERICAS","2013-04-01",11014,2013,"February","Q1",1]
["LONG ISLANDS INC","BOTTLES","Michael Jackson","AMERICAS","2013-10-07",96469,2013,"March","Q1",0]
["LONG ISLANDS INC","BOTTLES","Michael Jackson","AMERICAS","2013-06-08",87079,2013,"April","Q2",1]
["LONG ISLANDS INC","BOTTLES","Michael Jackson","AMERICAS","2013-09-27",53836,2013,"May","Q2",0]
["LONG ISLANDS INC","BOTTLES","Michael Jackson","AMERICAS","2013-02-28",63358,2013,"June","Q2",{"$f":"MOD(ROW(I67),2)","v":1}]
["LONG ISLANDS INC","BOTTLES","Michael Jackson","AMERICAS","2013-04-05",85568,2013,"July","Q3",0]
["LONG ISLANDS INC","BOTTLES","Michael Jackson","AMERICAS","2013-04-14",64286,2013,"August","Q3",1]
["LONG ISLANDS INC","BOTTLES","Michael Jackson","AMERICAS","2013-05-18",54721,2013,"September","Q3",0]
["LONG ISLANDS INC","BOTTLES","Michael Jackson","AMERICAS","2013-09-26",13804,2013,"October","Q4",1]
["LONG ISLANDS INC","BOTTLES","Michael Jackson","AMERICAS","2013-09-26",76779,2013,"November","Q4",0]
["LONG ISLANDS INC","BOTTLES","Michael Jackson","AMERICAS","2013-12-05",74017,2013,"December","Q4",1]
["LONG ISLANDS INC","ICE CUBES","Michael Jackson","AMERICAS","2013-09-14",23979,2013,"January","Q1",0]
["LONG ISLANDS INC","ICE CUBES","Michael Jackson","AMERICAS","2013-05-26",13644,2013,"February","Q1",1]
["LONG ISLANDS INC","ICE CUBES","Michael Jackson","AMERICAS","2013-04-20",44447,2013,"March","Q1",0]
["LONG ISLANDS INC","ICE CUBES","Michael Jackson","AMERICAS","2013-09-26",49606,2013,"April","Q2",1]
["LONG ISLANDS INC","ICE CUBES","Michael Jackson","AMERICAS","2013-03-09",23697,2013,"May","Q2",0]
["LONG ISLANDS INC","ICE CUBES","Michael Jackson","AMERICAS","2013-05-26",51914,2013,"June","Q2",1]
["LONG ISLANDS INC","ICE CUBES","Michael Jackson","AMERICAS","2013-04-20",50196,2013,"July","Q3",0]
["LONG ISLANDS INC","ICE CUBES","Michael Jackson","AMERICAS","2013-02-23",88701,2013,"August","Q3",1]
["LONG ISLANDS INC","ICE CUBES","Michael Jackson","AMERICAS","2013-06-15",74737,2013,"September","Q3",0]
["LONG ISLANDS INC","ICE CUBES","Michael Jackson","AMERICAS","2013-04-13",57704,2013,"October","Q4",1]
["LONG ISLANDS INC","ICE CUBES","Michael Jackson","AMERICAS","2013-09-14",40850,2013,"November","Q4",0]
["LONG ISLANDS INC","ICE CUBES","Michael Jackson","AMERICAS","2013-11-28",80563,2013,"December","Q4",1]
["LONG ISLANDS INC","TONIC","Michael Jackson","AMERICAS","2013-06-08",35938,2013,"January","Q1",0]
["LONG ISLANDS INC","TONIC","Michael Jackson","AMERICAS","2013-09-14",91122,2013,"February","Q1",1]
["LONG ISLANDS INC","TONIC","Michael Jackson","AMERICAS","2013-10-28",87887,2013,"March","Q1",0]
["LONG ISLANDS INC","TONIC","Michael Jackson","AMERICAS","2013-08-04",12024,2013,"April","Q2",1]
["LONG ISLANDS INC","TONIC","Michael Jackson","AMERICAS","2013-08-04",50503,2013,"May","Q2",0]
["LONG ISLANDS INC","TONIC","Michael Jackson","AMERICAS","2013-05-16",68224,2013,"June","Q2",1]
["LONG ISLANDS INC","TONIC","Michael Jackson","AMERICAS","2013-05-31",10014,2013,"July","Q3",0]
["LONG ISLANDS INC","TONIC","Michael Jackson","AMERICAS","2013-01-25",88585,2013,"August","Q3",1]
["LONG ISLANDS INC","TONIC","Michael Jackson","AMERICAS","2013-01-25",18981,2013,"September","Q3",0]
["LONG ISLANDS INC","TONIC","Michael Jackson","AMERICAS","2013-04-13",57068,2013,"October","Q4",1]
["LONG ISLANDS INC","TONIC","Michael Jackson","AMERICAS","2013-05-09",69284,2013,"November","Q4",0]
["LONG ISLANDS INC","TONIC","Michael Jackson","AMERICAS","2013-09-14",37407,2013,"December","Q4",1]
["LONG ISLANDS INC","SOFT DRINKS","Michael Jackson","AMERICAS","2014-08-04",50670,2014,"January","Q1",0]
["LONG ISLANDS INC","SOFT DRINKS","Michael Jackson","AMERICAS","2014-11-28",73943,2014,"February","Q1",1]
["LONG ISLANDS INC","SOFT DRINKS","Michael Jackson","AMERICAS","2014-07-27",82315,2014,"March","Q1",0]
["LONG ISLANDS INC","SOFT DRINKS","Michael Jackson","AMERICAS","2014-04-13",39996,2014,"April","Q2",1]
["LONG ISLANDS INC","SOFT DRINKS","Michael Jackson","AMERICAS","2014-02-16",21987,2014,"May","Q2",0]
["LONG ISLANDS INC","SOFT DRINKS","Michael Jackson","AMERICAS","2014-08-04",18340,2014,"June","Q2",1]
["LONG ISLANDS INC","SOFT DRINKS","Michael Jackson","AMERICAS","2014-05-11",67849,2014,"July","Q3",0]
["LONG ISLANDS INC","SOFT DRINKS","Michael Jackson","AMERICAS","2014-09-21",15738,2014,"August","Q3",1]
["LONG ISLANDS INC","SOFT DRINKS","Michael Jackson","AMERICAS","2014-09-21",24815,2014,"September","Q3",0]
["LONG ISLANDS INC","SOFT DRINKS","Michael Jackson","AMERICAS","2014-10-11",62319,2014,"October","Q4",1]
["LONG ISLANDS INC","SOFT DRINKS","Michael Jackson","AMERICAS","2014-11-03",45975,2014,"November","Q4",0]
["LONG ISLANDS INC","SOFT DRINKS","Michael Jackson","AMERICAS","2014-11-03",66180,2014,"December","Q4",1]
["LONG ISLANDS INC","BOTTLES","Michael Jackson","AMERICAS","2014-11-28",73922,2014,"January","Q1",0]
["LONG ISLANDS INC","BOTTLES","Michael Jackson","AMERICAS","2014-10-11",90035,2014,"February","Q1",1]
["LONG ISLANDS INC","BOTTLES","Michael Jackson","AMERICAS","2014-09-26",29742,2014,"March","Q1",0]
["LONG ISLANDS INC","BOTTLES","Michael Jackson","AMERICAS","2014-01-25",18018,2014,"April","Q2",1]
["LONG ISLANDS INC","BOTTLES","Michael Jackson","AMERICAS","2014-02-01",71370,2014,"May","Q2",0]
["LONG ISLANDS INC","BOTTLES","Michael Jackson","AMERICAS","2014-08-04",18717,2014,"June","Q2",1]
["LONG ISLANDS INC","BOTTLES","Michael Jackson","AMERICAS","2014-10-11",43443,2014,"July","Q3",0]
["LONG ISLANDS INC","BOTTLES","Michael Jackson","AMERICAS","2014-10-14",97950,2014,"August","Q3",1]
["LONG ISLANDS INC","BOTTLES","Michael Jackson","AMERICAS","2014-01-31",80487,2014,"September","Q3",0]
["LONG ISLANDS INC","BOTTLES","Michael Jackson","AMERICAS","2014-10-19",68091,2014,"October","Q4",1]
["LONG ISLANDS INC","BOTTLES","Michael Jackson","AMERICAS","2014-07-06",11317,2014,"November","Q4",0]
["LONG ISLANDS INC","BOTTLES","Michael Jackson","AMERICAS","2014-09-07",89023,2014,"December","Q4",1]
["LONG ISLANDS INC","ICE CUBES","Michael Jackson","AMERICAS","2014-07-27",66876,2014,"January","Q1",0]
["LONG ISLANDS INC","ICE CUBES","Michael Jackson","AMERICAS","2014-12-09",39030,2014,"February","Q1",1]
["LONG ISLANDS INC","ICE CUBES","Michael Jackson","AMERICAS","2014-05-09",27558,2014,"March","Q1",0]
["LONG ISLANDS INC","ICE CUBES","Michael Jackson","AMERICAS","2014-02-16",32566,2014,"April","Q2",1]
["LONG ISLANDS INC","ICE CUBES","Michael Jackson","AMERICAS","2014-08-04",49549,2014,"May","Q2",0]
["LONG ISLANDS INC","ICE CUBES","Michael Jackson","AMERICAS","2014-12-06",34696,2014,"June","Q2",1]
["LONG ISLANDS INC","ICE CUBES","Michael Jackson","AMERICAS","2014-12-13",87319,2014,"July","Q3",0]
["LONG ISLANDS INC","ICE CUBES","Michael Jackson","AMERICAS","2014-12-14",35809,2014,"August","Q3",1]
["LONG ISLANDS INC","ICE CUBES","Michael Jackson","AMERICAS","2014-09-14",55289,2014,"September","Q3",0]
["LONG ISLANDS INC","ICE CUBES","Michael Jackson","AMERICAS","2014-09-21",98236,2014,"October","Q4",{"$f":"MOD(ROW(I131),2)","v":1}]
["LONG ISLANDS INC","ICE CUBES","Michael Jackson","AMERICAS","2014-10-04",13596,2014,"November","Q4",0]
["LONG ISLANDS INC","ICE CUBES","Michael Jackson","AMERICAS","2014-11-03",69865,2014,"December","Q4",1]
["LONG ISLANDS INC","TONIC","Michael Jackson","AMERICAS","2014-11-03",68789,2014,"January","Q1",0]
["LONG ISLANDS INC","TONIC","Michael Jackson","AMERICAS","2014-10-04",73642,2014,"February","Q1",1]
["LONG ISLANDS INC","TONIC","Michael Jackson","AMERICAS","2014-11-14",66623,2014,"March","Q1",0]
["LONG ISLANDS INC","TONIC","Michael Jackson","AMERICAS","2014-01-11",13406,2014,"April","Q2",1]
["LONG ISLANDS INC","TONIC","Michael Jackson","AMERICAS","2014-01-11",73954,2014,"May","Q2",0]
["LONG ISLANDS INC","TONIC","Michael Jackson","AMERICAS","2014-09-21",50936,2014,"June","Q2",1]
["LONG ISLANDS INC","TONIC","Michael Jackson","AMERICAS","2014-11-03",67831,2014,"July","Q3",0]
["LONG ISLANDS INC","TONIC","Michael Jackson","AMERICAS","2014-11-03",23441,2014,"August","Q3",1]
["LONG ISLANDS INC","TONIC","Michael Jackson","AMERICAS","2014-06-02",96007,2014,"September","Q3",0]
["LONG ISLANDS INC","TONIC","Michael Jackson","AMERICAS","2014-09-07",59524,2014,"October","Q4",1]
["LONG ISLANDS INC","TONIC","Michael Jackson","AMERICAS","2014-04-06",46244,2014,"November","Q4",0]
["LONG ISLANDS INC","TONIC","Michael Jackson","AMERICAS","2014-04-13",56864,2014,"December","Q4",1]
["MOJITOS R US","SOFT DRINKS","Ian Wright","EUROPE","2012-09-07",83675,2012,"January","Q1",0]
["MOJITOS R US","SOFT DRINKS","Ian Wright","EUROPE","2012-11-15",90717,2012,"February","Q1",1]
["MOJITOS R US","SOFT DRINKS","Ian Wright","EUROPE","2012-12-20",32553,2012,"March","Q1",0]
["MOJITOS R US","SOFT DRINKS","Ian Wright","EUROPE","2012-05-18",73667,2012,"April","Q2",1]
["MOJITOS R US","SOFT DRINKS","Ian Wright","EUROPE","2012-03-09",73163,2012,"May","Q2",0]
["MOJITOS R US","SOFT DRINKS","Ian Wright","EUROPE","2012-09-07",37683,2012,"June","Q2",1]
["MOJITOS R US","SOFT DRINKS","Ian Wright","EUROPE","2012-12-20",58639,2012,"July","Q3",0]
["MOJITOS R US","SOFT DRINKS","Ian Wright","EUROPE","2012-04-06",93159,2012,"August","Q3",1]
["MOJITOS R US","SOFT DRINKS","Ian Wright","EUROPE","2012-01-25",46788,2012,"September","Q3",0]
["MOJITOS R US","SOFT DRINKS","Ian Wright","EUROPE","2012-09-14",74557,2012,"October","Q4",1]
["MOJITOS R US","SOFT DRINKS","Ian Wright","EUROPE","2012-10-17",12429,2012,"November","Q4",0]
["MOJITOS R US","SOFT DRINKS","Ian Wright","EUROPE","2012-11-19",65052,2012,"December","Q4",1]
["MOJITOS R US","BOTTLES","Ian Wright","EUROPE","2012-09-14",56502,2012,"January","Q1",0]
["MOJITOS R US","BOTTLES","Ian Wright","EUROPE","2012-05-16",59828,2012,"February","Q1",1]
["MOJITOS R US","BOTTLES","Ian Wright","EUROPE","2012-02-15",20650,2012,"March","Q1",0]
["MOJITOS R US","BOTTLES","Ian Wright","EUROPE","2012-11-01",38999,2012,"April","Q2",1]
["MOJITOS R US","BOTTLES","Ian Wright","EUROPE","2012-03-08",51708,2012,"May","Q2",0]
["MOJITOS R US","BOTTLES","Ian Wright","EUROPE","2012-11-14",94904,2012,"June","Q2",1]
["MOJITOS R US","BOTTLES","Ian Wright","EUROPE","2012-08-04",44262,2012,"July","Q3",0]
["MOJITOS R US","BOTTLES","Ian Wright","EUROPE","2012-12-21",35958,2012,"August","Q3",1]
["MOJITOS R US","BOTTLES","Ian Wright","EUROPE","2012-11-29",20830,2012,"September","Q3",0]
["MOJITOS R US","BOTTLES","Ian Wright","EUROPE","2012-10-11",99220,2012,"October","Q4",1]
["MOJITOS R US","BOTTLES","Ian Wright","EUROPE","2012-07-14",84818,2012,"November","Q4",0]
["MOJITOS R US","BOTTLES","Ian Wright","EUROPE","2012-10-04",64078,2012,"December","Q4",1]
["MOJITOS R US","ICE CUBES","Ian Wright","EUROPE","2012-09-14",45210,2012,"January","Q1",0]
["MOJITOS R US","ICE CUBES","Ian Wright","EUROPE","2012-09-14",40833,2012,"February","Q1",1]
["MOJITOS R US","ICE CUBES","Ian Wright","EUROPE","2012-04-06",47084,2012,"March","Q1",0]
["MOJITOS R US","ICE CUBES","Ian Wright","EUROPE","2012-10-13",29549,2012,"April","Q2",1]
["MOJITOS R US","ICE CUBES","Ian Wright","EUROPE","2012-11-28",79534,2012,"May","Q2",0]
["MOJITOS R US","ICE CUBES","Ian Wright","EUROPE","2012-11-28",43380,2012,"June","Q2",1]
["MOJITOS R US","ICE CUBES","Ian Wright","EUROPE","2012-06-15",94652,2012,"July","Q3",0]
["MOJITOS R US","ICE CUBES","Ian Wright","EUROPE","2012-10-25",74024,2012,"August","Q3",1]
["MOJITOS R US","ICE CUBES","Ian Wright","EUROPE","2012-06-08",33031,2012,"September","Q3",0]
["MOJITOS R US","ICE CUBES","Ian Wright","EUROPE","2012-09-14",40118,2012,"October","Q4",1]
["MOJITOS R US","ICE CUBES","Ian Wright","EUROPE","2012-08-10",21680,2012,"November","Q4",0]
["MOJITOS R US","ICE CUBES","Ian Wright","EUROPE","2012-01-03",61386,2012,"December","Q4",1]
["MOJITOS R US","TONIC","Ian Wright","EUROPE","2012-10-17",30583,2012,"January","Q1",0]
["MOJITOS R US","TONIC","Ian Wright","EUROPE","2012-10-11",70994,2012,"February","Q1",1]
["MOJITOS R US","TONIC","Ian Wright","EUROPE","2012-12-20",12816,2012,"March","Q1",0]
["MOJITOS R US","TONIC","Ian Wright","EUROPE","2012-11-28",36790,2012,"April","Q2",1]
["MOJITOS R US","TONIC","Ian Wright","EUROPE","2012-11-22",99542,2012,"May","Q2",0]
["MOJITOS R US","TONIC","Ian Wright","EUROPE","2012-11-11",99202,2012,"June","Q2",1]
["MOJITOS R US","TONIC","Ian Wright","EUROPE","2012-11-11",49713,2012,"July","Q3",0]
["MOJITOS R US","TONIC","Ian Wright","EUROPE","2012-08-10",31876,2012,"August","Q3",1]
["MOJITOS R US","TONIC","Ian Wright","EUROPE","2012-09-26",74697,2012,"September","Q3",0]
["MOJITOS R US","TONIC","Ian Wright","EUROPE","2012-05-11",24499,2012,"October","Q4",1]
["MOJITOS R US","TONIC","Ian Wright","EUROPE","2012-10-04",39431,2012,"November","Q4",0]
["MOJITOS R US","TONIC","Ian Wright","EUROPE","2012-12-20",79633,2012,"December","Q4",1]
["MOJITOS R US","SOFT DRINKS","Ian Wright","EUROPE","2013-02-02",94828,2013,"January","Q1",0]
["MOJITOS R US","SOFT DRINKS","Ian Wright","EUROPE","2013-09-26",60100,2013,"February","Q1",{"$f":"MOD(ROW(I195),2)","v":1}]
["MOJITOS R US","SOFT DRINKS","Ian Wright","EUROPE","2013-07-27",88305,2013,"March","Q1",0]
["MOJITOS R US","SOFT DRINKS","Ian Wright","EUROPE","2013-07-13",76717,2013,"April","Q2",1]
["MOJITOS R US","SOFT DRINKS","Ian Wright","EUROPE","2013-11-08",44577,2013,"May","Q2",0]
["MOJITOS R US","SOFT DRINKS","Ian Wright","EUROPE","2013-03-02",58514,2013,"June","Q2",1]
["MOJITOS R US","SOFT DRINKS","Ian Wright","EUROPE","2013-04-19",33853,2013,"July","Q3",0]
["MOJITOS R US","SOFT DRINKS","Ian Wright","EUROPE","2013-05-11",32024,2013,"August","Q3",1]
["MOJITOS R US","SOFT DRINKS","Ian Wright","EUROPE","2013-07-27",76134,2013,"September","Q3",0]
["MOJITOS R US","SOFT DRINKS","Ian Wright","EUROPE","2013-09-14",10907,2013,"October","Q4",1]
["MOJITOS R US","SOFT DRINKS","Ian Wright","EUROPE","2013-09-14",62211,2013,"November","Q4",0]
["MOJITOS R US","SOFT DRINKS","Ian Wright","EUROPE","2013-06-22",78877,2013,"December","Q4",1]
["MOJITOS R US","BOTTLES","Ian Wright","EUROPE","2013-04-06",49374,2013,"January","Q1",0]
["MOJITOS R US","BOTTLES","Ian Wright","EUROPE","2013-11-01",51980,2013,"February","Q1",1]
["MOJITOS R US","BOTTLES","Ian Wright","EUROPE","2013-08-04",30241,2013,"March","Q1",0]
["MOJITOS R US","BOTTLES","Ian Wright","EUROPE","2013-02-09",92995,2013,"April","Q2",1]
["MOJITOS R US","BOTTLES","Ian Wright","EUROPE","2013-06-14",20003,2013,"May","Q2",0]
["MOJITOS R US","BOTTLES","Ian Wright","EUROPE","2013-04-13",48722,2013,"June","Q2",1]
["MOJITOS R US","BOTTLES","Ian Wright","EUROPE","2013-03-08",48516,2013,"July","Q3",0]
["MOJITOS R US","BOTTLES","Ian Wright","EUROPE","2013-12-07",71360,2013,"August","Q3",1]
["MOJITOS R US","BOTTLES","Ian Wright","EUROPE","2013-04-13",59935,2013,"September","Q3",0]
["MOJITOS R US","BOTTLES","Ian Wright","EUROPE","2013-11-14",38185,2013,"October","Q4",1]
["MOJITOS R US","BOTTLES","Ian Wright","EUROPE","2013-09-26",18760,2013,"November","Q4",0]
["MOJITOS R US","BOTTLES","Ian Wright","EUROPE","2013-12-21",49119,2013,"December","Q4",1]
["MOJITOS R US","ICE CUBES","Ian Wright","EUROPE","2013-09-26",59513,2013,"January","Q1",0]
["MOJITOS R US","ICE CUBES","Ian Wright","EUROPE","2013-06-29",51073,2013,"February","Q1",1]
["MOJITOS R US","ICE CUBES","Ian Wright","EUROPE","2013-12-02",76414,2013,"March","Q1",0]
["MOJITOS R US","ICE CUBES","Ian Wright","EUROPE","2013-12-09",18703,2013,"April","Q2",1]
["MOJITOS R US","ICE CUBES","Ian Wright","EUROPE","2013-12-21",63177,2013,"May","Q2",0]
["MOJITOS R US","ICE CUBES","Ian Wright","EUROPE","2013-04-01",49326,2013,"June","Q2",1]
["MOJITOS R US","ICE CUBES","Ian Wright","EUROPE","2013-04-01",46446,2013,"July","Q3",0]
["MOJITOS R US","ICE CUBES","Ian Wright","EUROPE","2013-04-01",67999,2013,"August","Q3",1]
["MOJITOS R US","ICE CUBES","Ian Wright","EUROPE","2013-04-01",70863,2013,"September","Q3",0]
["MOJITOS R US","ICE CUBES","Ian Wright","EUROPE","2013-04-01",43560,2013,"October","Q4",1]
["MOJITOS R US","ICE CUBES","Ian Wright","EUROPE","2013-04-01",53093,2013,"November","Q4",0]
["MOJITOS R US","ICE CUBES","Ian Wright","EUROPE","2013-04-01",80766,2013,"December","Q4",1]
["MOJITOS R US","TONIC","Ian Wright","EUROPE","2013-04-01",65694,2013,"January","Q1",0]
["MOJITOS R US","TONIC","Ian Wright","EUROPE","2013-04-01",21039,2013,"February","Q1",1]
["MOJITOS R US","TONIC","Ian Wright","EUROPE","2013-04-01",50156,2013,"March","Q1",0]
["MOJITOS R US","TONIC","Ian Wright","EUROPE","2013-05-26",84912,2013,"April","Q2",1]
["MOJITOS R US","TONIC","Ian Wright","EUROPE","2013-05-26",73803,2013,"May","Q2",0]
["MOJITOS R US","TONIC","Ian Wright","EUROPE","2013-05-26",96690,2013,"June","Q2",1]
["MOJITOS R US","TONIC","Ian Wright","EUROPE","2013-05-26",25984,2013,"July","Q3",0]
["MOJITOS R US","TONIC","Ian Wright","EUROPE","2013-05-26",17186,2013,"August","Q3",1]
["MOJITOS R US","TONIC","Ian Wright","EUROPE","2013-05-26",74291,2013,"September","Q3",0]
["MOJITOS R US","TONIC","Ian Wright","EUROPE","2013-05-26",90448,2013,"October","Q4",1]
["MOJITOS R US","TONIC","Ian Wright","EUROPE","2013-11-14",83252,2013,"November","Q4",0]
["MOJITOS R US","TONIC","Ian Wright","EUROPE","2013-06-13",61504,2013,"December","Q4",1]
["MOJITOS R US","SOFT DRINKS","Ian Wright","EUROPE","2014-09-13",65422,2014,"January","Q1",0]
["MOJITOS R US","SOFT DRINKS","Ian Wright","EUROPE","2014-11-04",20045,2014,"February","Q1",1]
["MOJITOS R US","SOFT DRINKS","Ian Wright","EUROPE","2014-09-26",96375,2014,"March","Q1",0]
["MOJITOS R US","SOFT DRINKS","Ian Wright","EUROPE","2014-03-08",72127,2014,"April","Q2",1]
["MOJITOS R US","SOFT DRINKS","Ian Wright","EUROPE","2014-08-10",40332,2014,"May","Q2",0]
["MOJITOS R US","SOFT DRINKS","Ian Wright","EUROPE","2014-08-04",67602,2014,"June","Q2",1]
["MOJITOS R US","SOFT DRINKS","Ian Wright","EUROPE","2014-08-04",23829,2014,"July","Q3",0]
["MOJITOS R US","SOFT DRINKS","Ian Wright","EUROPE","2014-02-16",18896,2014,"August","Q3",1]
["MOJITOS R US","SOFT DRINKS","Ian Wright","EUROPE","2014-07-21",31000,2014,"September","Q3",0]
["MOJITOS R US","SOFT DRINKS","Ian Wright","EUROPE","2014-05-09",86890,2014,"October","Q4",1]
["MOJITOS R US","SOFT DRINKS","Ian Wright","EUROPE","2014-12-21",33365,2014,"November","Q4",0]
["MOJITOS R US","SOFT DRINKS","Ian Wright","EUROPE","2014-12-28",70074,2014,"December","Q4",1]
["MOJITOS R US","BOTTLES","Ian Wright","EUROPE","2014-01-25",95980,2014,"January","Q1",0]
["MOJITOS R US","BOTTLES","Ian Wright","EUROPE","2014-11-02",23025,2014,"February","Q1",1]
["MOJITOS R US","BOTTLES","Ian Wright","EUROPE","2014-07-06",94259,2014,"March","Q1",0]
["MOJITOS R US","BOTTLES","Ian Wright","EUROPE","2014-06-22",31522,2014,"April","Q2",1]
["MOJITOS R US","BOTTLES","Ian Wright","EUROPE","2014-11-19",86046,2014,"May","Q2",0]
["MOJITOS R US","BOTTLES","Ian Wright","EUROPE","2014-06-15",41167,2014,"June","Q2",{"$f":"MOD(ROW(I259),2)","v":1}]
["MOJITOS R US","BOTTLES","Ian Wright","EUROPE","2014-06-07",48025,2014,"July","Q3",0]
["MOJITOS R US","BOTTLES","Ian Wright","EUROPE","2014-06-15",26961,2014,"August","Q3",1]
["MOJITOS R US","BOTTLES","Ian Wright","EUROPE","2014-09-07",85681,2014,"September","Q3",0]
["MOJITOS R US","BOTTLES","Ian Wright","EUROPE","2014-11-22",72707,2014,"October","Q4",1]
["MOJITOS R US","BOTTLES","Ian Wright","EUROPE","2014-01-25",25296,2014,"November","Q4",0]
["MOJITOS R US","BOTTLES","Ian Wright","EUROPE","2014-08-04",72571,2014,"December","Q4",1]
["MOJITOS R US","ICE CUBES","Ian Wright","EUROPE","2014-12-28",67236,2014,"January","Q1",0]
["MOJITOS R US","ICE CUBES","Ian Wright","EUROPE","2014-11-28",31745,2014,"February","Q1",1]
["MOJITOS R US","ICE CUBES","Ian Wright","EUROPE","2014-10-04",16973,2014,"March","Q1",0]
["MOJITOS R US","ICE CUBES","Ian Wright","EUROPE","2014-04-01",10282,2014,"April","Q2",1]
["MOJITOS R US","ICE CUBES","Ian Wright","EUROPE","2014-04-01",88743,2014,"May","Q2",0]
["MOJITOS R US","ICE CUBES","Ian Wright","EUROPE","2014-04-01",46628,2014,"June","Q2",1]
["MOJITOS R US","ICE CUBES","Ian Wright","EUROPE","2014-04-01",17366,2014,"July","Q3",0]
["MOJITOS R US","ICE CUBES","Ian Wright","EUROPE","2014-04-01",38089,2014,"August","Q3",1]
["MOJITOS R US","ICE CUBES","Ian Wright","EUROPE","2014-04-01",89809,2014,"September","Q3",0]
["MOJITOS R US","ICE CUBES","Ian Wright","EUROPE","2014-04-01",97708,2014,"October","Q4",1]
["MOJITOS R US","ICE CUBES","Ian Wright","EUROPE","2014-04-01",94596,2014,"November","Q4",0]
["MOJITOS R US","ICE CUBES","Ian Wright","EUROPE","2014-04-01",30900,2014,"December","Q4",1]
["MOJITOS R US","TONIC","Ian Wright","EUROPE","2014-04-01",82903,2014,"January","Q1",0]
["MOJITOS R US","TONIC","Ian Wright","EUROPE","2014-05-26",81835,2014,"February","Q1",1]
["MOJITOS R US","TONIC","Ian Wright","EUROPE","2014-05-26",71469,2014,"March","Q1",0]
["MOJITOS R US","TONIC","Ian Wright","EUROPE","2014-05-26",68096,2014,"April","Q2",1]
["MOJITOS R US","TONIC","Ian Wright","EUROPE","2014-05-26",76399,2014,"May","Q2",0]
["MOJITOS R US","TONIC","Ian Wright","EUROPE","2014-05-26",18144,2014,"June","Q2",1]
["MOJITOS R US","TONIC","Ian Wright","EUROPE","2014-05-26",25998,2014,"July","Q3",0]
["MOJITOS R US","TONIC","Ian Wright","EUROPE","2014-05-26",28516,2014,"August","Q3",1]
["MOJITOS R US","TONIC","Ian Wright","EUROPE","2014-11-08",86024,2014,"September","Q3",0]
["MOJITOS R US","TONIC","Ian Wright","EUROPE","2014-11-22",68907,2014,"October","Q4",1]
["MOJITOS R US","TONIC","Ian Wright","EUROPE","2014-07-04",67683,2014,"November","Q4",0]
["MOJITOS R US","TONIC","Ian Wright","EUROPE","2014-07-21",40250,2014,"December","Q4",1]
["TEQUILA TACOS LTD","SOFT DRINKS","John Michaloudis","ASIA","2012-08-04",62350,2012,"January","Q1",0]
["TEQUILA TACOS LTD","SOFT DRINKS","John Michaloudis","ASIA","2012-08-04",41230,2012,"February","Q1",1]
["TEQUILA TACOS LTD","SOFT DRINKS","John Michaloudis","ASIA","2012-03-15",37346,2012,"March","Q1",0]
["TEQUILA TACOS LTD","SOFT DRINKS","John Michaloudis","ASIA","2012-12-19",53158,2012,"April","Q2",1]
["TEQUILA TACOS LTD","SOFT DRINKS","John Michaloudis","ASIA","2012-09-14",19611,2012,"May","Q2",0]
["TEQUILA TACOS LTD","SOFT DRINKS","John Michaloudis","ASIA","2012-03-16",22202,2012,"June","Q2",1]
["TEQUILA TACOS LTD","SOFT DRINKS","John Michaloudis","ASIA","2012-02-15",95925,2012,"July","Q3",0]
["TEQUILA TACOS LTD","SOFT DRINKS","John Michaloudis","ASIA","2012-07-13",50376,2012,"August","Q3",1]
["TEQUILA TACOS LTD","SOFT DRINKS","John Michaloudis","ASIA","2012-09-26",88763,2012,"September","Q3",0]
["TEQUILA TACOS LTD","SOFT DRINKS","John Michaloudis","ASIA","2012-07-14",46063,2012,"October","Q4",1]
["TEQUILA TACOS LTD","SOFT DRINKS","John Michaloudis","ASIA","2012-05-12",95529,2012,"November","Q4",0]
["TEQUILA TACOS LTD","SOFT DRINKS","John Michaloudis","ASIA","2012-05-12",27946,2012,"December","Q4",1]
["TEQUILA TACOS LTD","BOTTLES","John Michaloudis","ASIA","2012-08-23",48278,2012,"January","Q1",0]
["TEQUILA TACOS LTD","BOTTLES","John Michaloudis","ASIA","2012-02-01",70149,2012,"February","Q1",1]
["TEQUILA TACOS LTD","BOTTLES","John Michaloudis","ASIA","2012-11-17",55290,2012,"March","Q1",0]
["TEQUILA TACOS LTD","BOTTLES","John Michaloudis","ASIA","2012-12-21",65622,2012,"April","Q2",1]
["TEQUILA TACOS LTD","BOTTLES","John Michaloudis","ASIA","2012-11-14",98116,2012,"May","Q2",0]
["TEQUILA TACOS LTD","BOTTLES","John Michaloudis","ASIA","2012-08-01",14378,2012,"June","Q2",1]
["TEQUILA TACOS LTD","BOTTLES","John Michaloudis","ASIA","2012-11-28",92891,2012,"July","Q3",0]
["TEQUILA TACOS LTD","BOTTLES","John Michaloudis","ASIA","2012-03-21",65904,2012,"August","Q3",1]
["TEQUILA TACOS LTD","BOTTLES","John Michaloudis","ASIA","2012-10-13",53265,2012,"September","Q3",0]
["TEQUILA TACOS LTD","BOTTLES","John Michaloudis","ASIA","2012-08-10",69052,2012,"October","Q4",1]
["TEQUILA TACOS LTD","BOTTLES","John Michaloudis","ASIA","2012-09-06",56565,2012,"November","Q4",0]
["TEQUILA TACOS LTD","BOTTLES","John Michaloudis","ASIA","2012-01-24",24843,2012,"December","Q4",1]
["TEQUILA TACOS LTD","ICE CUBES","John Michaloudis","ASIA","2012-06-01",18850,2012,"January","Q1",0]
["TEQUILA TACOS LTD","ICE CUBES","John Michaloudis","ASIA","2012-03-16",17056,2012,"February","Q1",1]
["TEQUILA TACOS LTD","ICE CUBES","John Michaloudis","ASIA","2012-06-02",32910,2012,"March","Q1",0]
["TEQUILA TACOS LTD","ICE CUBES","John Michaloudis","ASIA","2012-02-08",87105,2012,"April","Q2",1]
["TEQUILA TACOS LTD","ICE CUBES","John Michaloudis","ASIA","2012-09-06",27695,2012,"May","Q2",0]
["TEQUILA TACOS LTD","ICE CUBES","John Michaloudis","ASIA","2012-09-26",41826,2012,"June","Q2",1]
["TEQUILA TACOS LTD","ICE CUBES","John Michaloudis","ASIA","2012-10-28",68002,2012,"July","Q3",0]
["TEQUILA TACOS LTD","ICE CUBES","John Michaloudis","ASIA","2012-06-15",10338,2012,"August","Q3",1]
["TEQUILA TACOS LTD","ICE CUBES","John Michaloudis","ASIA","2012-05-11",53471,2012,"September","Q3",0]
["TEQUILA TACOS LTD","ICE CUBES","John Michaloudis","ASIA","2012-06-29",59452,2012,"October","Q4",{"$f":"MOD(ROW(I323),2)","v":1}]
["TEQUILA TACOS LTD","ICE CUBES","John Michaloudis","ASIA","2012-06-15",23750,2012,"November","Q4",0]
["TEQUILA TACOS LTD","ICE CUBES","John Michaloudis","ASIA","2012-11-15",69631,2012,"December","Q4",1]
["TEQUILA TACOS LTD","TONIC","John Michaloudis","ASIA","2012-11-28",87184,2012,"January","Q1",0]
["TEQUILA TACOS LTD","TONIC","John Michaloudis","ASIA","2012-01-12",13307,2012,"February","Q1",1]
["TEQUILA TACOS LTD","TONIC","John Michaloudis","ASIA","2012-06-01",76300,2012,"March","Q1",0]
["TEQUILA TACOS LTD","TONIC","John Michaloudis","ASIA","2012-11-28",87571,2012,"April","Q2",1]
["TEQUILA TACOS LTD","TONIC","John Michaloudis","ASIA","2012-09-21",46853,2012,"May","Q2",0]
["TEQUILA TACOS LTD","TONIC","John Michaloudis","ASIA","2012-11-03",94240,2012,"June","Q2",1]
["TEQUILA TACOS LTD","TONIC","John Michaloudis","ASIA","2012-11-03",18125,2012,"July","Q3",0]
["TEQUILA TACOS LTD","TONIC","John Michaloudis","ASIA","2012-12-19",34753,2012,"August","Q3",1]
["TEQUILA TACOS LTD","TONIC","John Michaloudis","ASIA","2012-01-14",61439,2012,"September","Q3",0]
["TEQUILA TACOS LTD","TONIC","John Michaloudis","ASIA","2012-07-27",66747,2012,"October","Q4",1]
["TEQUILA TACOS LTD","TONIC","John Michaloudis","ASIA","2012-10-04",88717,2012,"November","Q4",0]
["TEQUILA TACOS LTD","TONIC","John Michaloudis","ASIA","2012-05-05",26804,2012,"December","Q4",1]
["TEQUILA TACOS LTD","SOFT DRINKS","John Michaloudis","ASIA","2013-12-02",71362,2013,"January","Q1",0]
["TEQUILA TACOS LTD","SOFT DRINKS","John Michaloudis","ASIA","2013-09-29",78271,2013,"February","Q1",1]
["TEQUILA TACOS LTD","SOFT DRINKS","John Michaloudis","ASIA","2013-05-11",64303,2013,"March","Q1",0]
["TEQUILA TACOS LTD","SOFT DRINKS","John Michaloudis","ASIA","2013-07-14",30259,2013,"April","Q2",1]
["TEQUILA TACOS LTD","SOFT DRINKS","John Michaloudis","ASIA","2013-10-19",93605,2013,"May","Q2",0]
["TEQUILA TACOS LTD","SOFT DRINKS","John Michaloudis","ASIA","2013-07-07",81268,2013,"June","Q2",1]
["TEQUILA TACOS LTD","SOFT DRINKS","John Michaloudis","ASIA","2013-04-27",56176,2013,"July","Q3",0]
["TEQUILA TACOS LTD","SOFT DRINKS","John Michaloudis","ASIA","2013-07-27",31410,2013,"August","Q3",1]
["TEQUILA TACOS LTD","SOFT DRINKS","John Michaloudis","ASIA","2013-05-26",10690,2013,"September","Q3",0]
["TEQUILA TACOS LTD","SOFT DRINKS","John Michaloudis","ASIA","2013-08-17",82307,2013,"October","Q4",1]
["TEQUILA TACOS LTD","SOFT DRINKS","John Michaloudis","ASIA","2013-11-28",21780,2013,"November","Q4",0]
["TEQUILA TACOS LTD","SOFT DRINKS","John Michaloudis","ASIA","2013-05-09",55565,2013,"December","Q4",1]
["TEQUILA TACOS LTD","BOTTLES","John Michaloudis","ASIA","2013-08-08",64360,2013,"January","Q1",0]
["TEQUILA TACOS LTD","BOTTLES","John Michaloudis","ASIA","2013-07-20",60093,2013,"February","Q1",1]
["TEQUILA TACOS LTD","BOTTLES","John Michaloudis","ASIA","2013-08-08",76840,2013,"March","Q1",0]
["TEQUILA TACOS LTD","BOTTLES","John Michaloudis","ASIA","2013-09-07",90362,2013,"April","Q2",1]
["TEQUILA TACOS LTD","BOTTLES","John Michaloudis","ASIA","2013-11-08",18377,2013,"May","Q2",0]
["TEQUILA TACOS LTD","BOTTLES","John Michaloudis","ASIA","2013-03-01",41984,2013,"June","Q2",1]
["TEQUILA TACOS LTD","BOTTLES","John Michaloudis","ASIA","2013-01-24",61540,2013,"July","Q3",0]
["TEQUILA TACOS LTD","BOTTLES","John Michaloudis","ASIA","2013-11-28",84277,2013,"August","Q3",1]
["TEQUILA TACOS LTD","BOTTLES","John Michaloudis","ASIA","2013-05-23",35188,2013,"September","Q3",0]
["TEQUILA TACOS LTD","BOTTLES","John Michaloudis","ASIA","2013-09-07",41087,2013,"October","Q4",1]
["TEQUILA TACOS LTD","BOTTLES","John Michaloudis","ASIA","2013-02-23",79693,2013,"November","Q4",0]
["TEQUILA TACOS LTD","BOTTLES","John Michaloudis","ASIA","2013-03-23",56754,2013,"December","Q4",1]
["TEQUILA TACOS LTD","ICE CUBES","John Michaloudis","ASIA","2013-08-17",30135,2013,"January","Q1",0]
["TEQUILA TACOS LTD","ICE CUBES","John Michaloudis","ASIA","2013-11-15",54269,2013,"February","Q1",1]
["TEQUILA TACOS LTD","ICE CUBES","John Michaloudis","ASIA","2013-09-26",78768,2013,"March","Q1",0]
["TEQUILA TACOS LTD","ICE CUBES","John Michaloudis","ASIA","2013-08-08",79010,2013,"April","Q2",1]
["TEQUILA TACOS LTD","ICE CUBES","John Michaloudis","ASIA","2013-07-13",54188,2013,"May","Q2",0]
["TEQUILA TACOS LTD","ICE CUBES","John Michaloudis","ASIA","2013-10-04",44186,2013,"June","Q2",1]
["TEQUILA TACOS LTD","ICE CUBES","John Michaloudis","ASIA","2013-11-08",44361,2013,"July","Q3",0]
["TEQUILA TACOS LTD","ICE CUBES","John Michaloudis","ASIA","2013-04-14",89126,2013,"August","Q3",1]
["TEQUILA TACOS LTD","ICE CUBES","John Michaloudis","ASIA","2013-08-19",50294,2013,"September","Q3",0]
["TEQUILA TACOS LTD","ICE CUBES","John Michaloudis","ASIA","2013-06-29",85667,2013,"October","Q4",1]
["TEQUILA TACOS LTD","ICE CUBES","John Michaloudis","ASIA","2013-03-30",74326,2013,"November","Q4",0]
["TEQUILA TACOS LTD","ICE CUBES","John Michaloudis","ASIA","2013-01-11",54956,2013,"December","Q4",1]
["TEQUILA TACOS LTD","TONIC","John Michaloudis","ASIA","2013-10-17",74830,2013,"January","Q1",0]
["TEQUILA TACOS LTD","TONIC","John Michaloudis","ASIA","2013-10-11",73390,2013,"February","Q1",1]
["TEQUILA TACOS LTD","TONIC","John Michaloudis","ASIA","2013-01-03",18410,2013,"March","Q1",0]
["TEQUILA TACOS LTD","TONIC","John Michaloudis","ASIA","2013-12-14",96755,2013,"April","Q2",1]
["TEQUILA TACOS LTD","TONIC","John Michaloudis","ASIA","2013-11-28",61466,2013,"May","Q2",0]
["TEQUILA TACOS LTD","TONIC","John Michaloudis","ASIA","2013-05-06",31549,2013,"June","Q2",1]
["TEQUILA TACOS LTD","TONIC","John Michaloudis","ASIA","2013-09-14",91166,2013,"July","Q3",0]
["TEQUILA TACOS LTD","TONIC","John Michaloudis","ASIA","2013-09-07",88071,2013,"August","Q3",1]
["TEQUILA TACOS LTD","TONIC","John Michaloudis","ASIA","2013-06-22",61771,2013,"September","Q3",0]
["TEQUILA TACOS LTD","TONIC","John Michaloudis","ASIA","2013-04-20",81784,2013,"October","Q4",1]
["TEQUILA TACOS LTD","TONIC","John Michaloudis","ASIA","2013-06-29",27993,2013,"November","Q4",0]
["TEQUILA TACOS LTD","TONIC","John Michaloudis","ASIA","2013-04-06",45878,2013,"December","Q4",1]
["TEQUILA TACOS LTD","SOFT DRINKS","John Michaloudis","ASIA","2014-01-07",16425,2014,"January","Q1",0]
["TEQUILA TACOS LTD","SOFT DRINKS","John Michaloudis","ASIA","2014-09-26",27832,2014,"February","Q1",{"$f":"MOD(ROW(I387),2)","v":1}]
["TEQUILA TACOS LTD","SOFT DRINKS","John Michaloudis","ASIA","2014-10-07",80073,2014,"March","Q1",0]
["TEQUILA TACOS LTD","SOFT DRINKS","John Michaloudis","ASIA","2014-08-04",97319,2014,"April","Q2",1]
["TEQUILA TACOS LTD","SOFT DRINKS","John Michaloudis","ASIA","2014-06-22",38277,2014,"May","Q2",0]
["TEQUILA TACOS LTD","SOFT DRINKS","John Michaloudis","ASIA","2014-03-23",44723,2014,"June","Q2",1]
["TEQUILA TACOS LTD","SOFT DRINKS","John Michaloudis","ASIA","2014-05-16",70630,2014,"July","Q3",0]
["TEQUILA TACOS LTD","SOFT DRINKS","John Michaloudis","ASIA","2014-07-27",45727,2014,"August","Q3",1]
["TEQUILA TACOS LTD","SOFT DRINKS","John Michaloudis","ASIA","2014-02-15",81486,2014,"September","Q3",0]
["TEQUILA TACOS LTD","SOFT DRINKS","John Michaloudis","ASIA","2014-04-13",35158,2014,"October","Q4",1]
["TEQUILA TACOS LTD","SOFT DRINKS","John Michaloudis","ASIA","2014-06-08",83262,2014,"November","Q4",0]
["TEQUILA TACOS LTD","SOFT DRINKS","John Michaloudis","ASIA","2014-12-19",74283,2014,"December","Q4",1]
["TEQUILA TACOS LTD","BOTTLES","John Michaloudis","ASIA","2014-03-08",24805,2014,"January","Q1",0]
["TEQUILA TACOS LTD","BOTTLES","John Michaloudis","ASIA","2014-08-01",16556,2014,"February","Q1",1]
["TEQUILA TACOS LTD","BOTTLES","John Michaloudis","ASIA","2014-05-09",48638,2014,"March","Q1",0]
["TEQUILA TACOS LTD","BOTTLES","John Michaloudis","ASIA","2014-07-20",56001,2014,"April","Q2",1]
["TEQUILA TACOS LTD","BOTTLES","John Michaloudis","ASIA","2014-10-17",17127,2014,"May","Q2",0]
["TEQUILA TACOS LTD","BOTTLES","John Michaloudis","ASIA","2014-01-25",89436,2014,"June","Q2",1]
["TEQUILA TACOS LTD","BOTTLES","John Michaloudis","ASIA","2014-11-15",70047,2014,"July","Q3",0]
["TEQUILA TACOS LTD","BOTTLES","John Michaloudis","ASIA","2014-02-15",38602,2014,"August","Q3",1]
["TEQUILA TACOS LTD","BOTTLES","John Michaloudis","ASIA","2014-10-11",74865,2014,"September","Q3",0]
["TEQUILA TACOS LTD","BOTTLES","John Michaloudis","ASIA","2014-10-20",61380,2014,"October","Q4",1]
["TEQUILA TACOS LTD","BOTTLES","John Michaloudis","ASIA","2014-10-10",14784,2014,"November","Q4",0]
["TEQUILA TACOS LTD","BOTTLES","John Michaloudis","ASIA","2014-12-02",73862,2014,"December","Q4",1]
["TEQUILA TACOS LTD","ICE CUBES","John Michaloudis","ASIA","2014-12-02",83315,2014,"January","Q1",0]
["TEQUILA TACOS LTD","ICE CUBES","John Michaloudis","ASIA","2014-12-02",68404,2014,"February","Q1",1]
["TEQUILA TACOS LTD","ICE CUBES","John Michaloudis","ASIA","2014-12-02",90217,2014,"March","Q1",0]
["TEQUILA TACOS LTD","ICE CUBES","John Michaloudis","ASIA","2014-12-02",90547,2014,"April","Q2",1]
["TEQUILA TACOS LTD","ICE CUBES","John Michaloudis","ASIA","2014-12-02",14692,2014,"May","Q2",0]
["TEQUILA TACOS LTD","ICE CUBES","John Michaloudis","ASIA","2014-12-02",49657,2014,"June","Q2",1]
["TEQUILA TACOS LTD","ICE CUBES","John Michaloudis","ASIA","2014-12-02",33571,2014,"July","Q3",0]
["TEQUILA TACOS LTD","ICE CUBES","John Michaloudis","ASIA","2014-12-02",49617,2014,"August","Q3",1]
["TEQUILA TACOS LTD","ICE CUBES","John Michaloudis","ASIA","2014-12-02",62480,2014,"September","Q3",0]
["TEQUILA TACOS LTD","ICE CUBES","John Michaloudis","ASIA","2014-12-02",47736,2014,"October","Q4",1]
["TEQUILA TACOS LTD","ICE CUBES","John Michaloudis","ASIA","2014-12-02",77558,2014,"November","Q4",0]
["TEQUILA TACOS LTD","ICE CUBES","John Michaloudis","ASIA","2014-06-23",55463,2014,"December","Q4",1]
["TEQUILA TACOS LTD","TONIC","John Michaloudis","ASIA","2014-06-23",94980,2014,"January","Q1",0]
["TEQUILA TACOS LTD","TONIC","John Michaloudis","ASIA","2014-06-23",10209,2014,"February","Q1",1]
["TEQUILA TACOS LTD","TONIC","John Michaloudis","ASIA","2014-06-23",53109,2014,"March","Q1",0]
["TEQUILA TACOS LTD","TONIC","John Michaloudis","ASIA","2014-06-23",83776,2014,"April","Q2",1]
["TEQUILA TACOS LTD","TONIC","John Michaloudis","ASIA","2014-06-23",30296,2014,"May","Q2",0]
["TEQUILA TACOS LTD","TONIC","John Michaloudis","ASIA","2014-06-23",99878,2014,"June","Q2",1]
["TEQUILA TACOS LTD","TONIC","John Michaloudis","ASIA","2014-12-20",85777,2014,"July","Q3",0]
["TEQUILA TACOS LTD","TONIC","John Michaloudis","ASIA","2014-12-20",42990,2014,"August","Q3",1]
["TEQUILA TACOS LTD","TONIC","John Michaloudis","ASIA","2014-12-21",31951,2014,"September","Q3",0]
["TEQUILA TACOS LTD","TONIC","John Michaloudis","ASIA","2014-11-22",52980,2014,"October","Q4",1]
["TEQUILA TACOS LTD","TONIC","John Michaloudis","ASIA","2014-12-30",32784,2014,"November","Q4",0]
["TEQUILA TACOS LTD","TONIC","John Michaloudis","ASIA","2014-09-06",87871,2014,"December","Q4",1]
["GIN ON THE RUN CO","SOFT DRINKS","Homer Simpson","AFRICA","2012-03-09",44719,2012,"January","Q1",0]
["GIN ON THE RUN CO","SOFT DRINKS","Homer Simpson","AFRICA","2012-09-28",25249,2012,"February","Q1",1]
["GIN ON THE RUN CO","SOFT DRINKS","Homer Simpson","AFRICA","2012-10-04",86706,2012,"March","Q1",0]
["GIN ON THE RUN CO","SOFT DRINKS","Homer Simpson","AFRICA","2012-02-16",57670,2012,"April","Q2",1]
["GIN ON THE RUN CO","SOFT DRINKS","Homer Simpson","AFRICA","2012-05-16",17405,2012,"May","Q2",0]
["GIN ON THE RUN CO","SOFT DRINKS","Homer Simpson","AFRICA","2012-11-28",71664,2012,"June","Q2",1]
["GIN ON THE RUN CO","SOFT DRINKS","Homer Simpson","AFRICA","2012-02-01",71644,2012,"July","Q3",0]
["GIN ON THE RUN CO","SOFT DRINKS","Homer Simpson","AFRICA","2012-02-15",20166,2012,"August","Q3",1]
["GIN ON THE RUN CO","SOFT DRINKS","Homer Simpson","AFRICA","2012-12-14",99101,2012,"September","Q3",0]
["GIN ON THE RUN CO","SOFT DRINKS","Homer Simpson","AFRICA","2012-06-22",24921,2012,"October","Q4",1]
["GIN ON THE RUN CO","SOFT DRINKS","Homer Simpson","AFRICA","2012-04-06",46740,2012,"November","Q4",0]
["GIN ON THE RUN CO","SOFT DRINKS","Homer Simpson","AFRICA","2012-04-06",57570,2012,"December","Q4",1]
["GIN ON THE RUN CO","BOTTLES","Homer Simpson","AFRICA","2012-11-28",24997,2012,"January","Q1",0]
["GIN ON THE RUN CO","BOTTLES","Homer Simpson","AFRICA","2012-03-16",93577,2012,"February","Q1",1]
["GIN ON THE RUN CO","BOTTLES","Homer Simpson","AFRICA","2012-11-28",31641,2012,"March","Q1",0]
["GIN ON THE RUN CO","BOTTLES","Homer Simpson","AFRICA","2012-10-04",95561,2012,"April","Q2",1]
["GIN ON THE RUN CO","BOTTLES","Homer Simpson","AFRICA","2012-10-25",80267,2012,"May","Q2",0]
["GIN ON THE RUN CO","BOTTLES","Homer Simpson","AFRICA","2012-03-09",71006,2012,"June","Q2",{"$f":"MOD(ROW(I451),2)","v":1}]
["GIN ON THE RUN CO","BOTTLES","Homer Simpson","AFRICA","2012-05-10",43061,2012,"July","Q3",0]
["GIN ON THE RUN CO","BOTTLES","Homer Simpson","AFRICA","2012-07-13",10780,2012,"August","Q3",1]
["GIN ON THE RUN CO","BOTTLES","Homer Simpson","AFRICA","2012-11-24",71281,2012,"September","Q3",0]
["GIN ON THE RUN CO","BOTTLES","Homer Simpson","AFRICA","2012-09-07",58557,2012,"October","Q4",1]
["GIN ON THE RUN CO","BOTTLES","Homer Simpson","AFRICA","2012-09-07",16918,2012,"November","Q4",0]
["GIN ON THE RUN CO","BOTTLES","Homer Simpson","AFRICA","2012-07-07",96209,2012,"December","Q4",1]
["GIN ON THE RUN CO","ICE CUBES","Homer Simpson","AFRICA","2012-09-07",90340,2012,"January","Q1",0]
["GIN ON THE RUN CO","ICE CUBES","Homer Simpson","AFRICA","2012-09-07",89734,2012,"February","Q1",1]
["GIN ON THE RUN CO","ICE CUBES","Homer Simpson","AFRICA","2012-01-03",95630,2012,"March","Q1",0]
["GIN ON THE RUN CO","ICE CUBES","Homer Simpson","AFRICA","2012-11-01",30674,2012,"April","Q2",1]
["GIN ON THE RUN CO","ICE CUBES","Homer Simpson","AFRICA","2012-03-14",72408,2012,"May","Q2",0]
["GIN ON THE RUN CO","ICE CUBES","Homer Simpson","AFRICA","2012-10-10",66181,2012,"June","Q2",1]
["GIN ON THE RUN CO","ICE CUBES","Homer Simpson","AFRICA","2012-04-06",28390,2012,"July","Q3",0]
["GIN ON THE RUN CO","ICE CUBES","Homer Simpson","AFRICA","2012-10-10",45991,2012,"August","Q3",1]
["GIN ON THE RUN CO","ICE CUBES","Homer Simpson","AFRICA","2012-06-15",14127,2012,"September","Q3",0]
["GIN ON THE RUN CO","ICE CUBES","Homer Simpson","AFRICA","2012-07-14",91812,2012,"October","Q4",1]
["GIN ON THE RUN CO","ICE CUBES","Homer Simpson","AFRICA","2012-11-28",77660,2012,"November","Q4",0]
["GIN ON THE RUN CO","ICE CUBES","Homer Simpson","AFRICA","2012-06-24",30769,2012,"December","Q4",1]
["GIN ON THE RUN CO","TONIC","Homer Simpson","AFRICA","2012-04-15",10090,2012,"January","Q1",0]
["GIN ON THE RUN CO","TONIC","Homer Simpson","AFRICA","2012-09-13",85616,2012,"February","Q1",1]
["GIN ON THE RUN CO","TONIC","Homer Simpson","AFRICA","2012-06-08",98483,2012,"March","Q1",0]
["GIN ON THE RUN CO","TONIC","Homer Simpson","AFRICA","2012-09-16",45728,2012,"April","Q2",1]
["GIN ON THE RUN CO","TONIC","Homer Simpson","AFRICA","2012-08-08",21385,2012,"May","Q2",0]
["GIN ON THE RUN CO","TONIC","Homer Simpson","AFRICA","2012-05-18",29970,2012,"June","Q2",1]
["GIN ON THE RUN CO","TONIC","Homer Simpson","AFRICA","2012-09-26",74306,2012,"July","Q3",0]
["GIN ON THE RUN CO","TONIC","Homer Simpson","AFRICA","2012-02-01",35366,2012,"August","Q3",1]
["GIN ON THE RUN CO","TONIC","Homer Simpson","AFRICA","2012-06-22",71112,2012,"September","Q3",0]
["GIN ON THE RUN CO","TONIC","Homer Simpson","AFRICA","2012-10-17",54397,2012,"October","Q4",1]
["GIN ON THE RUN CO","TONIC","Homer Simpson","AFRICA","2012-10-11",59226,2012,"November","Q4",0]
["GIN ON THE RUN CO","TONIC","Homer Simpson","AFRICA","2012-10-17",11145,2012,"December","Q4",1]
["GIN ON THE RUN CO","SOFT DRINKS","Homer Simpson","AFRICA","2013-07-06",14169,2013,"January","Q1",0]
["GIN ON THE RUN CO","SOFT DRINKS","Homer Simpson","AFRICA","2013-01-10",41118,2013,"February","Q1",1]
["GIN ON THE RUN CO","SOFT DRINKS","Homer Simpson","AFRICA","2013-10-11",84129,2013,"March","Q1",0]
["GIN ON THE RUN CO","SOFT DRINKS","Homer Simpson","AFRICA","2013-11-16",29008,2013,"April","Q2",1]
["GIN ON THE RUN CO","SOFT DRINKS","Homer Simpson","AFRICA","2013-11-28",76494,2013,"May","Q2",0]
["GIN ON THE RUN CO","SOFT DRINKS","Homer Simpson","AFRICA","2013-12-31",89557,2013,"June","Q2",1]
["GIN ON THE RUN CO","SOFT DRINKS","Homer Simpson","AFRICA","2013-12-31",49012,2013,"July","Q3",0]
["GIN ON THE RUN CO","SOFT DRINKS","Homer Simpson","AFRICA","2013-12-31",61766,2013,"August","Q3",1]
["GIN ON THE RUN CO","SOFT DRINKS","Homer Simpson","AFRICA","2013-05-06",39836,2013,"September","Q3",0]
["GIN ON THE RUN CO","SOFT DRINKS","Homer Simpson","AFRICA","2013-08-31",29506,2013,"October","Q4",1]
["GIN ON THE RUN CO","SOFT DRINKS","Homer Simpson","AFRICA","2013-09-09",23168,2013,"November","Q4",0]
["GIN ON THE RUN CO","SOFT DRINKS","Homer Simpson","AFRICA","2013-12-09",97854,2013,"December","Q4",1]
["GIN ON THE RUN CO","BOTTLES","Homer Simpson","AFRICA","2013-05-18",98852,2013,"January","Q1",0]
["GIN ON THE RUN CO","BOTTLES","Homer Simpson","AFRICA","2013-12-06",56682,2013,"February","Q1",1]
["GIN ON THE RUN CO","BOTTLES","Homer Simpson","AFRICA","2013-09-14",54310,2013,"March","Q1",0]
["GIN ON THE RUN CO","BOTTLES","Homer Simpson","AFRICA","2013-01-03",87683,2013,"April","Q2",1]
["GIN ON THE RUN CO","BOTTLES","Homer Simpson","AFRICA","2013-12-20",84104,2013,"May","Q2",0]
["GIN ON THE RUN CO","BOTTLES","Homer Simpson","AFRICA","2013-02-01",91033,2013,"June","Q2",1]
["GIN ON THE RUN CO","BOTTLES","Homer Simpson","AFRICA","2013-04-19",82085,2013,"July","Q3",0]
["GIN ON THE RUN CO","BOTTLES","Homer Simpson","AFRICA","2013-04-19",54664,2013,"August","Q3",1]
["GIN ON THE RUN CO","BOTTLES","Homer Simpson","AFRICA","2013-10-25",31434,2013,"September","Q3",0]
["GIN ON THE RUN CO","BOTTLES","Homer Simpson","AFRICA","2013-10-25",80306,2013,"October","Q4",1]
["GIN ON THE RUN CO","BOTTLES","Homer Simpson","AFRICA","2013-12-17",13804,2013,"November","Q4",0]
["GIN ON THE RUN CO","BOTTLES","Homer Simpson","AFRICA","2013-12-17",92944,2013,"December","Q4",1]
["GIN ON THE RUN CO","ICE CUBES","Homer Simpson","AFRICA","2013-12-08",61233,2013,"January","Q1",0]
["GIN ON THE RUN CO","ICE CUBES","Homer Simpson","AFRICA","2013-01-18",69281,2013,"February","Q1",1]
["GIN ON THE RUN CO","ICE CUBES","Homer Simpson","AFRICA","2013-12-21",94075,2013,"March","Q1",0]
["GIN ON THE RUN CO","ICE CUBES","Homer Simpson","AFRICA","2013-06-29",43758,2013,"April","Q2",1]
["GIN ON THE RUN CO","ICE CUBES","Homer Simpson","AFRICA","2013-12-21",56262,2013,"May","Q2",0]
["GIN ON THE RUN CO","ICE CUBES","Homer Simpson","AFRICA","2013-07-20",42319,2013,"June","Q2",1]
["GIN ON THE RUN CO","ICE CUBES","Homer Simpson","AFRICA","2013-05-09",82921,2013,"July","Q3",0]
["GIN ON THE RUN CO","ICE CUBES","Homer Simpson","AFRICA","2013-06-08",56173,2013,"August","Q3",1]
["GIN ON THE RUN CO","ICE CUBES","Homer Simpson","AFRICA","2013-11-19",66997,2013,"September","Q3",0]
["GIN ON THE RUN CO","ICE CUBES","Homer Simpson","AFRICA","2013-12-13",28884,2013,"October","Q4",{"$f":"MOD(ROW(I515),2)","v":1}]
["GIN ON THE RUN CO","ICE CUBES","Homer Simpson","AFRICA","2013-10-26",74664,2013,"November","Q4",0]
["GIN ON THE RUN CO","ICE CUBES","Homer Simpson","AFRICA","2013-01-12",71397,2013,"December","Q4",1]
["GIN ON THE RUN CO","TONIC","Homer Simpson","AFRICA","2013-09-14",41975,2013,"January","Q1",0]
["GIN ON THE RUN CO","TONIC","Homer Simpson","AFRICA","2013-02-14",88575,2013,"February","Q1",1]
["GIN ON THE RUN CO","TONIC","Homer Simpson","AFRICA","2013-07-14",74340,2013,"March","Q1",0]
["GIN ON THE RUN CO","TONIC","Homer Simpson","AFRICA","2013-11-28",72884,2013,"April","Q2",1]
["GIN ON THE RUN CO","TONIC","Homer Simpson","AFRICA","2013-09-26",59557,2013,"May","Q2",0]
["GIN ON THE RUN CO","TONIC","Homer Simpson","AFRICA","2013-10-18",86610,2013,"June","Q2",1]
["GIN ON THE RUN CO","TONIC","Homer Simpson","AFRICA","2013-10-18",22172,2013,"July","Q3",0]
["GIN ON THE RUN CO","TONIC","Homer Simpson","AFRICA","2013-06-02",89040,2013,"August","Q3",1]
["GIN ON THE RUN CO","TONIC","Homer Simpson","AFRICA","2013-11-28",38507,2013,"September","Q3",0]
["GIN ON THE RUN CO","TONIC","Homer Simpson","AFRICA","2013-11-28",94271,2013,"October","Q4",1]
["GIN ON THE RUN CO","TONIC","Homer Simpson","AFRICA","2013-01-24",36517,2013,"November","Q4",0]
["GIN ON THE RUN CO","TONIC","Homer Simpson","AFRICA","2013-05-16",71515,2013,"December","Q4",1]
["GIN ON THE RUN CO","SOFT DRINKS","Homer Simpson","AFRICA","2014-12-20",92590,2014,"January","Q1",0]
["GIN ON THE RUN CO","SOFT DRINKS","Homer Simpson","AFRICA","2014-11-28",95829,2014,"February","Q1",1]
["GIN ON THE RUN CO","SOFT DRINKS","Homer Simpson","AFRICA","2014-01-18",75901,2014,"March","Q1",0]
["GIN ON THE RUN CO","SOFT DRINKS","Homer Simpson","AFRICA","2014-06-14",73045,2014,"April","Q2",1]
["GIN ON THE RUN CO","SOFT DRINKS","Homer Simpson","AFRICA","2014-02-23",71776,2014,"May","Q2",0]
["GIN ON THE RUN CO","SOFT DRINKS","Homer Simpson","AFRICA","2014-12-09",29433,2014,"June","Q2",1]
["GIN ON THE RUN CO","SOFT DRINKS","Homer Simpson","AFRICA","2014-05-09",96341,2014,"July","Q3",0]
["GIN ON THE RUN CO","SOFT DRINKS","Homer Simpson","AFRICA","2014-11-28",12968,2014,"August","Q3",1]
["GIN ON THE RUN CO","SOFT DRINKS","Homer Simpson","AFRICA","2014-12-31",53796,2014,"September","Q3",0]
["GIN ON THE RUN CO","SOFT DRINKS","Homer Simpson","AFRICA","2014-12-14",46195,2014,"October","Q4",1]
["GIN ON THE RUN CO","SOFT DRINKS","Homer Simpson","AFRICA","2014-11-28",63269,2014,"November","Q4",0]
["GIN ON THE RUN CO","SOFT DRINKS","Homer Simpson","AFRICA","2014-12-09",67038,2014,"December","Q4",1]
["GIN ON THE RUN CO","BOTTLES","Homer Simpson","AFRICA","2014-10-26",15201,2014,"January","Q1",0]
["GIN ON THE RUN CO","BOTTLES","Homer Simpson","AFRICA","2014-04-27",27160,2014,"February","Q1",1]
["GIN ON THE RUN CO","BOTTLES","Homer Simpson","AFRICA","2014-11-28",67176,2014,"March","Q1",0]
["GIN ON THE RUN CO","BOTTLES","Homer Simpson","AFRICA","2014-05-18",62135,2014,"April","Q2",1]
["GIN ON THE RUN CO","BOTTLES","Homer Simpson","AFRICA","2014-11-29",16292,2014,"May","Q2",0]
["GIN ON THE RUN CO","BOTTLES","Homer Simpson","AFRICA","2014-11-28",77723,2014,"June","Q2",1]
["GIN ON THE RUN CO","BOTTLES","Homer Simpson","AFRICA","2014-07-14",20106,2014,"July","Q3",0]
["GIN ON THE RUN CO","BOTTLES","Homer Simpson","AFRICA","2014-07-07",91228,2014,"August","Q3",1]
["GIN ON THE RUN CO","BOTTLES","Homer Simpson","AFRICA","2014-04-01",31915,2014,"September","Q3",0]
["GIN ON THE RUN CO","BOTTLES","Homer Simpson","AFRICA","2014-04-01",28137,2014,"October","Q4",1]
["GIN ON THE RUN CO","BOTTLES","Homer Simpson","AFRICA","2014-04-01",47215,2014,"November","Q4",0]
["GIN ON THE RUN CO","BOTTLES","Homer Simpson","AFRICA","2014-04-01",78866,2014,"December","Q4",1]
["GIN ON THE RUN CO","ICE CUBES","Homer Simpson","AFRICA","2014-04-01",97314,2014,"January","Q1",0]
["GIN ON THE RUN CO","ICE CUBES","Homer Simpson","AFRICA","2014-04-01",66890,2014,"February","Q1",1]
["GIN ON THE RUN CO","ICE CUBES","Homer Simpson","AFRICA","2014-04-01",63005,2014,"March","Q1",0]
["GIN ON THE RUN CO","ICE CUBES","Homer Simpson","AFRICA","2014-04-01",37146,2014,"April","Q2",1]
["GIN ON THE RUN CO","ICE CUBES","Homer Simpson","AFRICA","2014-04-01",40215,2014,"May","Q2",0]
["GIN ON THE RUN CO","ICE CUBES","Homer Simpson","AFRICA","2014-04-01",39839,2014,"June","Q2",1]
["GIN ON THE RUN CO","ICE CUBES","Homer Simpson","AFRICA","2014-11-22",79853,2014,"July","Q3",0]
["GIN ON THE RUN CO","ICE CUBES","Homer Simpson","AFRICA","2014-08-04",11497,2014,"August","Q3",1]
["GIN ON THE RUN CO","ICE CUBES","Homer Simpson","AFRICA","2014-08-04",65439,2014,"September","Q3",0]
["GIN ON THE RUN CO","ICE CUBES","Homer Simpson","AFRICA","2014-04-04",96978,2014,"October","Q4",1]
["GIN ON THE RUN CO","ICE CUBES","Homer Simpson","AFRICA","2014-09-26",95596,2014,"November","Q4",0]
["GIN ON THE RUN CO","ICE CUBES","Homer Simpson","AFRICA","2014-11-14",28496,2014,"December","Q4",1]
["GIN ON THE RUN CO","TONIC","Homer Simpson","AFRICA","2014-12-20",78392,2014,"January","Q1",0]
["GIN ON THE RUN CO","TONIC","Homer Simpson","AFRICA","2014-12-08",61077,2014,"February","Q1",1]
["GIN ON THE RUN CO","TONIC","Homer Simpson","AFRICA","2014-12-08",50033,2014,"March","Q1",0]
["GIN ON THE RUN CO","TONIC","Homer Simpson","AFRICA","2014-12-08",50577,2014,"April","Q2",1]
["GIN ON THE RUN CO","TONIC","Homer Simpson","AFRICA","2014-12-08",54040,2014,"May","Q2",0]
["GIN ON THE RUN CO","TONIC","Homer Simpson","AFRICA","2014-12-17",45057,2014,"June","Q2",1]
["GIN ON THE RUN CO","TONIC","Homer Simpson","AFRICA","2014-12-17",35558,2014,"July","Q3",0]
["GIN ON THE RUN CO","TONIC","Homer Simpson","AFRICA","2014-12-17",21217,2014,"August","Q3",1]
["GIN ON THE RUN CO","TONIC","Homer Simpson","AFRICA","2014-12-17",60244,2014,"September","Q3",0]
["GIN ON THE RUN CO","TONIC","Homer Simpson","AFRICA","2014-01-05",76362,2014,"October","Q4",1]
["GIN ON THE RUN CO","TONIC","Homer Simpson","AFRICA","2014-01-05",60119,2014,"November","Q4",0]
["GIN ON THE RUN CO","TONIC","Homer Simpson","AFRICA","2014-01-05",45139,2014,"December","Q4",1]
["Total",null,null,null,null,{"$f":"SUBTOTAL(103,'#2'!$F$2:$F$577)","v":576},null,null,{"$f":"SUBTOTAL(103,'#2'!$I$2:$I$577)","v":576},0]

{"sheet":"#3","index":2,"n_rows":578,"n_cols":9,"rows_kept":578,"cut":false,"hidden":false,"merged":[]}
["CUSTOMER","PRODUCTS","SALES PERSON","SALES REGION","ORDER DATE","SALES","FINANCIAL YEAR","SALES MONTH","SALES QTR"]
["LONG ISLANDS INC","SOFT DRINKS","Michael Jackson","AMERICAS",41012,24640,2012,"January","Q1"]
["LONG ISLANDS INC","SOFT DRINKS","Michael Jackson","AMERICAS",41264,24640,2012,"February","Q1"]
["LONG ISLANDS INC","SOFT DRINKS","Michael Jackson","AMERICAS",41267,29923,2012,"March","Q1"]
["LONG ISLANDS INC","SOFT DRINKS","Michael Jackson","AMERICAS",41267,66901,2012,"April","Q2"]
["LONG ISLANDS INC","SOFT DRINKS","Michael Jackson","AMERICAS",41272,63116,2012,"May","Q2"]
["LONG ISLANDS INC","SOFT DRINKS","Michael Jackson","AMERICAS",41088,38281,2012,"June","Q2"]
["LONG ISLANDS INC","SOFT DRINKS","Michael Jackson","AMERICAS",41088,57650,2012,"July","Q3"]
["LONG ISLANDS INC","SOFT DRINKS","Michael Jackson","AMERICAS",41089,90967,2012,"August","Q3"]
["LONG ISLANDS INC","SOFT DRINKS","Michael Jackson","AMERICAS",41089,11910,2012,"September","Q3"]
["LONG ISLANDS INC","SOFT DRINKS","Michael Jackson","AMERICAS",41096,59531,2012,"October","Q4"]
["LONG ISLANDS INC","SOFT DRINKS","Michael Jackson","AMERICAS",41096,88297,2012,"November","Q4"]
["LONG ISLANDS INC","SOFT DRINKS","Michael Jackson","AMERICAS",41160,87868,2012,"December","Q4"]
["LONG ISLANDS INC","BOTTLES","Michael Jackson","AMERICAS",41160,95527,2012,"January","Q1"]
["LONG ISLANDS INC","BOTTLES","Michael Jackson","AMERICAS",41090,90599,2012,"February","Q1"]
["LONG ISLANDS INC","BOTTLES","Michael Jackson","AMERICAS",41266,17030,2012,"March","Q1"]
["LONG ISLANDS INC","BOTTLES","Michael Jackson","AMERICAS",41251,65026,2012,"April","Q2"]
["LONG ISLANDS INC","BOTTLES","Michael Jackson","AMERICAS",41210,57579,2012,"May","Q2"]
["LONG ISLANDS INC","BOTTLES","Michael Jackson","AMERICAS",41210,34338,2012,"June","Q2"]
["LONG ISLANDS INC","BOTTLES","Michael Jackson","AMERICAS",41167,90387,2012,"July","Q3"]
["LONG ISLANDS INC","BOTTLES","Michael Jackson","AMERICAS",41210,62324,2012,"August","Q3"]
["LONG ISLANDS INC","BOTTLES","Michael Jackson","AMERICAS",41213,28871,2012,"September","Q3"]
["LONG ISLANDS INC","BOTTLES","Michael Jackson","AMERICAS",41272,34714,2012,"October","Q4"]
["LONG ISLANDS INC","BOTTLES","Michael Jackson","AMERICAS",41014,38668,2012,"November","Q4"]
["LONG ISLANDS INC","BOTTLES","Michael Jackson","AMERICAS",41251,59810,2012,"December","Q4"]
["LONG ISLANDS INC","ICE CUBES","Michael Jackson","AMERICAS",41244,19056,2012,"January","Q1"]
["LONG ISLANDS INC","ICE CUBES","Michael Jackson","AMERICAS",41244,34096,2012,"February","Q1"]
["LONG ISLANDS INC","ICE CUBES","Michael Jackson","AMERICAS",41210,80441,2012,"March","Q1"]
["LONG ISLANDS INC","ICE CUBES","Michael Jackson","AMERICAS",41140,15306,2012,"April","Q2"]
["LONG ISLANDS INC","ICE CUBES","Michael Jackson","AMERICAS",40947,11347,2012,"May","Q2"]
["LONG ISLANDS INC","ICE CUBES","Michael Jackson","AMERICAS",41213,11136,2012,"June","Q2"]
["LONG ISLANDS INC","ICE CUBES","Michael Jackson","AMERICAS",41203,88672,2012,"July","Q3"]
["LONG ISLANDS INC","ICE CUBES","Michael Jackson","AMERICAS",41116,82202,2012,"August","Q3"]
["LONG ISLANDS INC","ICE CUBES","Michael Jackson","AMERICAS",41140,70480,2012,"September","Q3"]
["LONG ISLANDS INC","ICE CUBES","Michael Jackson","AMERICAS",41140,17523,2012,"October","Q4"]
["LONG ISLANDS INC","ICE CUBES","Michael Jackson","AMERICAS",41133,86647,2012,"November","Q4"]
["LONG ISLANDS INC","ICE CUBES","Michael Jackson","AMERICAS",41210,38301,2012,"December","Q4"]
["LONG ISLANDS INC","TONIC","Michael Jackson","AMERICAS",41133,29185,2012,"January","Q1"]
["LONG ISLANDS INC","TONIC","Michael Jackson","AMERICAS",41244,19595,2012,"February","Q1"]
["LONG ISLANDS INC","TONIC","Michael Jackson","AMERICAS",41244,29333,2012,"March","Q1"]
["LONG ISLANDS INC","TONIC","Michael Jackson","AMERICAS",41213,59339,2012,"April","Q2"]
["LONG ISLANDS INC","TONIC","Michael Jackson","AMERICAS",41244,73310,2012,"May","Q2"]
["LONG ISLANDS INC","TONIC","Michael Jackson","AMERICAS",41210,16527,2012,"June","Q2"]
["LONG ISLANDS INC","TONIC","Michael Jackson","AMERICAS",41244,80254,2012,"July","Q3"]
["LONG ISLANDS INC","TONIC","Michael Jackson","AMERICAS",41213,62535,2012,"August","Q3"]
["LONG ISLANDS INC","TONIC","Michael Jackson","AMERICAS",41273,63923,2012,"September","Q3"]
["LONG ISLANDS INC","TONIC","Michael Jackson","AMERICAS",41165,52045,2012,"October","Q4"]
["LONG ISLANDS INC","TONIC","Michael Jackson","AMERICAS",41183,86327,2012,"November","Q4"]
["LONG ISLANDS INC","TONIC","Michael Jackson","AMERICAS",41116,53045,2012,"December","Q4"]
["LONG ISLANDS INC","SOFT DRINKS","Michael Jackson","AMERICAS",41568,26687,2013,"January","Q1"]
["LONG ISLANDS INC","SOFT DRINKS","Michael Jackson","AMERICAS",41609,88003,2013,"February","Q1"]
["LONG ISLANDS INC","SOFT DRINKS","Michael Jackson","AMERICAS",41575,12502,2013,"March","Q1"]
["LONG ISLANDS INC","SOFT DRINKS","Michael Jackson","AMERICAS",41575,17100,2013,"April","Q2"]
["LONG ISLANDS INC","SOFT DRINKS","Michael Jackson","AMERICAS",41578,16853,2013,"May","Q2"]
["LONG ISLANDS INC","SOFT DRINKS","Michael Jackson","AMERICAS",41575,35796,2013,"June","Q2"]
["LONG ISLANDS INC","SOFT DRINKS","Michael Jackson","AMERICAS",41578,64825,2013,"July","Q3"]
["LONG ISLANDS INC","SOFT DRINKS","Michael Jackson","AMERICAS",41581,17929,2013,"August","Q3"]
["LONG ISLANDS INC","SOFT DRINKS","Michael Jackson","AMERICAS",41609,50134,2013,"September","Q3"]
["LONG ISLANDS INC","SOFT DRINKS","Michael Jackson","AMERICAS",41578,95705,2013,"October","Q4"]
["LONG ISLANDS INC","SOFT DRINKS","Michael Jackson","AMERICAS",41333,13178,2013,"November","Q4"]
["LONG ISLANDS INC","SOFT DRINKS","Michael Jackson","AMERICAS",41624,22781,2013,"December","Q4"]
["LONG ISLANDS INC","BOTTLES","Michael Jackson","AMERICAS",41355,59151,2013,"January","Q1"]
["LONG ISLANDS INC","BOTTLES","Michael Jackson","AMERICAS",41365,11014,2013,"February","Q1"]
["LONG ISLANDS INC","BOTTLES","Michael Jackson","AMERICAS",41554,96469,2013,"March","Q1"]
["LONG ISLANDS INC","BOTTLES","Michael Jackson","AMERICAS",41433,87079,2013,"April","Q2"]
["LONG ISLANDS INC","BOTTLES","Michael Jackson","AMERICAS",41544,53836,2013,"May","Q2"]
["LONG ISLANDS INC","BOTTLES","Michael Jackson","AMERICAS",41333,63358,2013,"June","Q2"]
["LONG ISLANDS INC","BOTTLES","Michael Jackson","AMERICAS",41369,85568,2013,"July","Q3"]
["LONG ISLANDS INC","BOTTLES","Michael Jackson","AMERICAS",41378,64286,2013,"August","Q3"]
["LONG ISLANDS INC","BOTTLES","Michael Jackson","AMERICAS",41412,54721,2013,"September","Q3"]
["LONG ISLANDS INC","BOTTLES","Michael Jackson","AMERICAS",41543,13804,2013,"October","Q4"]
["LONG ISLANDS INC","BOTTLES","Michael Jackson","AMERICAS",41543,76779,2013,"November","Q4"]
["LONG ISLANDS INC","BOTTLES","Michael Jackson","AMERICAS",41613,74017,2013,"December","Q4"]
["LONG ISLANDS INC","ICE CUBES","Michael Jackson","AMERICAS",41531,23979,2013,"January","Q1"]
["LONG ISLANDS INC","ICE CUBES","Michael Jackson","AMERICAS",41420,13644,2013,"February","Q1"]
["LONG ISLANDS INC","ICE CUBES","Michael Jackson","AMERICAS",41384,44447,2013,"March","Q1"]
["LONG ISLANDS INC","ICE CUBES","Michael Jackson","AMERICAS",41543,49606,2013,"April","Q2"]
["LONG ISLANDS INC","ICE CUBES","Michael Jackson","AMERICAS",41342,23697,2013,"May","Q2"]
["LONG ISLANDS INC","ICE CUBES","Michael Jackson","AMERICAS",41420,51914,2013,"June","Q2"]
["LONG ISLANDS INC","ICE CUBES","Michael Jackson","AMERICAS",41384,50196,2013,"July","Q3"]
["LONG ISLANDS INC","ICE CUBES","Michael Jackson","AMERICAS",41328,88701,2013,"August","Q3"]
["LONG ISLANDS INC","ICE CUBES","Michael Jackson","AMERICAS",41440,74737,2013,"September","Q3"]
["LONG ISLANDS INC","ICE CUBES","Michael Jackson","AMERICAS",41377,57704,2013,"October","Q4"]
["LONG ISLANDS INC","ICE CUBES","Michael Jackson","AMERICAS",41531,40850,2013,"November","Q4"]
["LONG ISLANDS INC","ICE CUBES","Michael Jackson","AMERICAS",41606,80563,2013,"December","Q4"]
["LONG ISLANDS INC","TONIC","Michael Jackson","AMERICAS",41433,35938,2013,"January","Q1"]
["LONG ISLANDS INC","TONIC","Michael Jackson","AMERICAS",41531,91122,2013,"February","Q1"]
["LONG ISLANDS INC","TONIC","Michael Jackson","AMERICAS",41575,87887,2013,"March","Q1"]
["LONG ISLANDS INC","TONIC","Michael Jackson","AMERICAS",41490,12024,2013,"April","Q2"]
["LONG ISLANDS INC","TONIC","Michael Jackson","AMERICAS",41490,50503,2013,"May","Q2"]
["LONG ISLANDS INC","TONIC","Michael Jackson","AMERICAS",41410,68224,2013,"June","Q2"]
["LONG ISLANDS INC","TONIC","Michael Jackson","AMERICAS",41425,10014,2013,"July","Q3"]
["LONG ISLANDS INC","TONIC","Michael Jackson","AMERICAS",41299,88585,2013,"August","Q3"]
["LONG ISLANDS INC","TONIC","Michael Jackson","AMERICAS",41299,18981,2013,"September","Q3"]
["LONG ISLANDS INC","TONIC","Michael Jackson","AMERICAS",41377,57068,2013,"October","Q4"]
["LONG ISLANDS INC","TONIC","Michael Jackson","AMERICAS",41403,69284,2013,"November","Q4"]
["LONG ISLANDS INC","TONIC","Michael Jackson","AMERICAS",41531,37407,2013,"December","Q4"]
["LONG ISLANDS INC","SOFT DRINKS","Michael Jackson","AMERICAS",41855,50670,2014,"January","Q1"]
["LONG ISLANDS INC","SOFT DRINKS","Michael Jackson","AMERICAS",41971,73943,2014,"February","Q1"]
["LONG ISLANDS INC","SOFT DRINKS","Michael Jackson","AMERICAS",41847,82315,2014,"March","Q1"]
["LONG ISLANDS INC","SOFT DRINKS","Michael Jackson","AMERICAS",41742,39996,2014,"April","Q2"]
["LONG ISLANDS INC","SOFT DRINKS","Michael Jackson","AMERICAS",41686,21987,2014,"May","Q2"]
["LONG ISLANDS INC","SOFT DRINKS","Michael Jackson","AMERICAS",41855,18340,2014,"June","Q2"]
["LONG ISLANDS INC","SOFT DRINKS","Michael Jackson","AMERICAS",41770,67849,2014,"July","Q3"]
["LONG ISLANDS INC","SOFT DRINKS","Michael Jackson","AMERICAS",41903,15738,2014,"August","Q3"]
["LONG ISLANDS INC","SOFT DRINKS","Michael Jackson","AMERICAS",41903,24815,2014,"September","Q3"]
["LONG ISLANDS INC","SOFT DRINKS","Michael Jackson","AMERICAS",41923,62319,2014,"October","Q4"]
["LONG ISLANDS INC","SOFT DRINKS","Michael Jackson","AMERICAS",41946,45975,2014,"November","Q4"]
["LONG ISLANDS INC","SOFT DRINKS","Michael Jackson","AMERICAS",41946,66180,2014,"December","Q4"]
["LONG ISLANDS INC","BOTTLES","Michael Jackson","AMERICAS",41971,73922,2014,"January","Q1"]
["LONG ISLANDS INC","BOTTLES","Michael Jackson","AMERICAS",41923,90035,2014,"February","Q1"]
["LONG ISLANDS INC","BOTTLES","Michael Jackson","AMERICAS",41908,29742,2014,"March","Q1"]
["LONG ISLANDS INC","BOTTLES","Michael Jackson","AMERICAS",41664,18018,2014,"April","Q2"]
["LONG ISLANDS INC","BOTTLES","Michael Jackson","AMERICAS",41671,71370,2014,"May","Q2"]
["LONG ISLANDS INC","BOTTLES","Michael Jackson","AMERICAS",41855,18717,2014,"June","Q2"]
["LONG ISLANDS INC","BOTTLES","Michael Jackson","AMERICAS",41923,43443,2014,"July","Q3"]
["LONG ISLANDS INC","BOTTLES","Michael Jackson","AMERICAS",41926,97950,2014,"August","Q3"]
["LONG ISLANDS INC","BOTTLES","Michael Jackson","AMERICAS",41670,80487,2014,"September","Q3"]
["LONG ISLANDS INC","BOTTLES","Michael Jackson","AMERICAS",41931,68091,2014,"October","Q4"]
["LONG ISLANDS INC","BOTTLES","Michael Jackson","AMERICAS",41826,11317,2014,"November","Q4"]
["LONG ISLANDS INC","BOTTLES","Michael Jackson","AMERICAS",41889,89023,2014,"December","Q4"]
["LONG ISLANDS INC","ICE CUBES","Michael Jackson","AMERICAS",41847,66876,2014,"January","Q1"]
["LONG ISLANDS INC","ICE CUBES","Michael Jackson","AMERICAS",41982,39030,2014,"February","Q1"]
["LONG ISLANDS INC","ICE CUBES","Michael Jackson","AMERICAS",41768,27558,2014,"March","Q1"]
["LONG ISLANDS INC","ICE CUBES","Michael Jackson","AMERICAS",41686,32566,2014,"April","Q2"]
["LONG ISLANDS INC","ICE CUBES","Michael Jackson","AMERICAS",41855,49549,2014,"May","Q2"]
["LONG ISLANDS INC","ICE CUBES","Michael Jackson","AMERICAS",41979,34696,2014,"June","Q2"]
["LONG ISLANDS INC","ICE CUBES","Michael Jackson","AMERICAS",41986,87319,2014,"July","Q3"]
["LONG ISLANDS INC","ICE CUBES","Michael Jackson","AMERICAS",41987,35809,2014,"August","Q3"]
["LONG ISLANDS INC","ICE CUBES","Michael Jackson","AMERICAS",41896,55289,2014,"September","Q3"]
["LONG ISLANDS INC","ICE CUBES","Michael Jackson","AMERICAS",41903,98236,2014,"October","Q4"]
["LONG ISLANDS INC","ICE CUBES","Michael Jackson","AMERICAS",41916,13596,2014,"November","Q4"]
["LONG ISLANDS INC","ICE CUBES","Michael Jackson","AMERICAS",41946,69865,2014,"December","Q4"]
["LONG ISLANDS INC","TONIC","Michael Jackson","AMERICAS",41946,68789,2014,"January","Q1"]
["LONG ISLANDS INC","TONIC","Michael Jackson","AMERICAS",41916,73642,2014,"February","Q1"]
["LONG ISLANDS INC","TONIC","Michael Jackson","AMERICAS",41957,66623,2014,"March","Q1"]
["LONG ISLANDS INC","TONIC","Michael Jackson","AMERICAS",41650,13406,2014,"April","Q2"]
["LONG ISLANDS INC","TONIC","Michael Jackson","AMERICAS",41650,73954,2014,"May","Q2"]
["LONG ISLANDS INC","TONIC","Michael Jackson","AMERICAS",41903,50936,2014,"June","Q2"]
["LONG ISLANDS INC","TONIC","Michael Jackson","AMERICAS",41946,67831,2014,"July","Q3"]
["LONG ISLANDS INC","TONIC","Michael Jackson","AMERICAS",41946,23441,2014,"August","Q3"]
["LONG ISLANDS INC","TONIC","Michael Jackson","AMERICAS",41792,96007,2014,"September","Q3"]
["LONG ISLANDS INC","TONIC","Michael Jackson","AMERICAS",41889,59524,2014,"October","Q4"]
["LONG ISLANDS INC","TONIC","Michael Jackson","AMERICAS",41735,46244,2014,"November","Q4"]
["LONG ISLANDS INC","TONIC","Michael Jackson","AMERICAS",41742,56864,2014,"December","Q4"]
["MOJITOS R US","SOFT DRINKS","Ian Wright","EUROPE",41159,83675,2012,"January","Q1"]
["MOJITOS R US","SOFT DRINKS","Ian Wright","EUROPE",41228,90717,2012,"February","Q1"]
["MOJITOS R US","SOFT DRINKS","Ian Wright","EUROPE",41263,32553,2012,"March","Q1"]
["MOJITOS R US","SOFT DRINKS","Ian Wright","EUROPE",41047,73667,2012,"April","Q2"]
["MOJITOS R US","SOFT DRINKS","Ian Wright","EUROPE",40977,73163,2012,"May","Q2"]
["MOJITOS R US","SOFT DRINKS","Ian Wright","EUROPE",41159,37683,2012,"June","Q2"]
["MOJITOS R US","SOFT DRINKS","Ian Wright","EUROPE",41263,58639,2012,"July","Q3"]
["MOJITOS R US","SOFT DRINKS","Ian Wright","EUROPE",41005,93159,2012,"August","Q3"]
["MOJITOS R US","SOFT DRINKS","Ian Wright","EUROPE",40933,46788,2012,"September","Q3"]
["MOJITOS R US","SOFT DRINKS","Ian Wright","EUROPE",41166,74557,2012,"October","Q4"]
["MOJITOS R US","SOFT DRINKS","Ian Wright","EUROPE",41199,12429,2012,"November","Q4"]
["MOJITOS R US","SOFT DRINKS","Ian Wright","EUROPE",41232,65052,2012,"December","Q4"]
["MOJITOS R US","BOTTLES","Ian Wright","EUROPE",41166,56502,2012,"January","Q1"]
["MOJITOS R US","BOTTLES","Ian Wright","EUROPE",41045,59828,2012,"February","Q1"]
["MOJITOS R US","BOTTLES","Ian Wright","EUROPE",40954,20650,2012,"March","Q1"]
["MOJITOS R US","BOTTLES","Ian Wright","EUROPE",41214,38999,2012,"April","Q2"]
["MOJITOS R US","BOTTLES","Ian Wright","EUROPE",40976,51708,2012,"May","Q2"]
["MOJITOS R US","BOTTLES","Ian Wright","EUROPE",41227,94904,2012,"June","Q2"]
["MOJITOS R US","BOTTLES","Ian Wright","EUROPE",41125,44262,2012,"July","Q3"]
["MOJITOS R US","BOTTLES","Ian Wright","EUROPE",41264,35958,2012,"August","Q3"]
["MOJITOS R US","BOTTLES","Ian Wright","EUROPE",41242,20830,2012,"September","Q3"]
["MOJITOS R US","BOTTLES","Ian Wright","EUROPE",41193,99220,2012,"October","Q4"]
["MOJITOS R US","BOTTLES","Ian Wright","EUROPE",41104,84818,2012,"November","Q4"]
["MOJITOS R US","BOTTLES","Ian Wright","EUROPE",41186,64078,2012,"December","Q4"]
["MOJITOS R US","ICE CUBES","Ian Wright","EUROPE",41166,45210,2012,"January","Q1"]
["MOJITOS R US","ICE CUBES","Ian Wright","EUROPE",41166,40833,2012,"February","Q1"]
["MOJITOS R US","ICE CUBES","Ian Wright","EUROPE",41005,47084,2012,"March","Q1"]
["MOJITOS R US","ICE CUBES","Ian Wright","EUROPE",41195,29549,2012,"April","Q2"]
["MOJITOS R US","ICE CUBES","Ian Wright","EUROPE",41241,79534,2012,"May","Q2"]
["MOJITOS R US","ICE CUBES","Ian Wright","EUROPE",41241,43380,2012,"June","Q2"]
["MOJITOS R US","ICE CUBES","Ian Wright","EUROPE",41075,94652,2012,"July","Q3"]
["MOJITOS R US","ICE CUBES","Ian Wright","EUROPE",41207,74024,2012,"August","Q3"]
["MOJITOS R US","ICE CUBES","Ian Wright","EUROPE",41068,33031,2012,"September","Q3"]
["MOJITOS R US","ICE CUBES","Ian Wright","EUROPE",41166,40118,2012,"October","Q4"]
["MOJITOS R US","ICE CUBES","Ian Wright","EUROPE",41131,21680,2012,"November","Q4"]
["MOJITOS R US","ICE CUBES","Ian Wright","EUROPE",40911,61386,2012,"December","Q4"]
["MOJITOS R US","TONIC","Ian Wright","EUROPE",41199,30583,2012,"January","Q1"]
["MOJITOS R US","TONIC","Ian Wright","EUROPE",41193,70994,2012,"February","Q1"]
["MOJITOS R US","TONIC","Ian Wright","EUROPE",41263,12816,2012,"March","Q1"]
["MOJITOS R US","TONIC","Ian Wright","EUROPE",41241,36790,2012,"April","Q2"]
["MOJITOS R US","TONIC","Ian Wright","EUROPE",41235,99542,2012,"May","Q2"]
["MOJITOS R US","TONIC","Ian Wright","EUROPE",41224,99202,2012,"June","Q2"]
["MOJITOS R US","TONIC","Ian Wright","EUROPE",41224,49713,2012,"July","Q3"]
["MOJITOS R US","TONIC","Ian Wright","EUROPE",41131,31876,2012,"August","Q3"]
["MOJITOS R US","TONIC","Ian Wright","EUROPE",41178,74697,2012,"September","Q3"]
["MOJITOS R US","TONIC","Ian Wright","EUROPE",41040,24499,2012,"October","Q4"]
["MOJITOS R US","TONIC","Ian Wright","EUROPE",41186,39431,2012,"November","Q4"]
["MOJITOS R US","TONIC","Ian Wright","EUROPE",41263,79633,2012,"December","Q4"]
["MOJITOS R US","SOFT DRINKS","Ian Wright","EUROPE",41307,94828,2013,"January","Q1"]
["MOJITOS R US","SOFT DRINKS","Ian Wright","EUROPE",41543,60100,2013,"February","Q1"]
["MOJITOS R US","SOFT DRINKS","Ian Wright","EUROPE",41482,88305,2013,"March","Q1"]
["MOJITOS R US","SOFT DRINKS","Ian Wright","EUROPE",41468,76717,2013,"April","Q2"]
["MOJITOS R US","SOFT DRINKS","Ian Wright","EUROPE",41586,44577,2013,"May","Q2"]
["MOJITOS R US","SOFT DRINKS","Ian Wright","EUROPE",41335,58514,2013,"June","Q2"]
["MOJITOS R US","SOFT DRINKS","Ian Wright","EUROPE",41383,33853,2013,"July","Q3"]
["MOJITOS R US","SOFT DRINKS","Ian Wright","EUROPE",41405,32024,2013,"August","Q3"]
["MOJITOS R US","SOFT DRINKS","Ian Wright","EUROPE",41482,76134,2013,"September","Q3"]
["MOJITOS R US","SOFT DRINKS","Ian Wright","EUROPE",41531,10907,2013,"October","Q4"]
["MOJITOS R US","SOFT DRINKS","Ian Wright","EUROPE",41531,62211,2013,"November","Q4"]
["MOJITOS R US","SOFT DRINKS","Ian Wright","EUROPE",41447,78877,2013,"December","Q4"]
["MOJITOS R US","BOTTLES","Ian Wright","EUROPE",41370,49374,2013,"January","Q1"]
["MOJITOS R US","BOTTLES","Ian Wright","EUROPE",41579,51980,2013,"February","Q1"]
["MOJITOS R US","BOTTLES","Ian Wright","EUROPE",41490,30241,2013,"March","Q1"]
["MOJITOS R US","BOTTLES","Ian Wright","EUROPE",41314,92995,2013,"April","Q2"]
["MOJITOS R US","BOTTLES","Ian Wright","EUROPE",41439,20003,2013,"May","Q2"]
["MOJITOS R US","BOTTLES","Ian Wright","EUROPE",41377,48722,2013,"June","Q2"]
["MOJITOS R US","BOTTLES","Ian Wright","EUROPE",41341,48516,2013,"July","Q3"]
["MOJITOS R US","BOTTLES","Ian Wright","EUROPE",41615,71360,2013,"August","Q3"]
["MOJITOS R US","BOTTLES","Ian Wright","EUROPE",41377,59935,2013,"September","Q3"]
["MOJITOS R US","BOTTLES","Ian Wright","EUROPE",41592,38185,2013,"October","Q4"]
["MOJITOS R US","BOTTLES","Ian Wright","EUROPE",41543,18760,2013,"November","Q4"]
["MOJITOS R US","BOTTLES","Ian Wright","EUROPE",41629,49119,2013,"December","Q4"]
["MOJITOS R US","ICE CUBES","Ian Wright","EUROPE",41543,59513,2013,"January","Q1"]
["MOJITOS R US","ICE CUBES","Ian Wright","EUROPE",41454,51073,2013,"February","Q1"]
["MOJITOS R US","ICE CUBES","Ian Wright","EUROPE",41610,76414,2013,"March","Q1"]
["MOJITOS R US","ICE CUBES","Ian Wright","EUROPE",41617,18703,2013,"April","Q2"]
["MOJITOS R US","ICE CUBES","Ian Wright","EUROPE",41629,63177,2013,"May","Q2"]
["MOJITOS R US","ICE CUBES","Ian Wright","EUROPE",41365,49326,2013,"June","Q2"]
["MOJITOS R US","ICE CUBES","Ian Wright","EUROPE",41365,46446,2013,"July","Q3"]
["MOJITOS R US","ICE CUBES","Ian Wright","EUROPE",41365,67999,2013,"August","Q3"]
["MOJITOS R US","ICE CUBES","Ian Wright","EUROPE",41365,70863,2013,"September","Q3"]
["MOJITOS R US","ICE CUBES","Ian Wright","EUROPE",41365,43560,2013,"October","Q4"]
["MOJITOS R US","ICE CUBES","Ian Wright","EUROPE",41365,53093,2013,"November","Q4"]
["MOJITOS R US","ICE CUBES","Ian Wright","EUROPE",41365,80766,2013,"December","Q4"]
["MOJITOS R US","TONIC","Ian Wright","EUROPE",41365,65694,2013,"January","Q1"]
["MOJITOS R US","TONIC","Ian Wright","EUROPE",41365,21039,2013,"February","Q1"]
["MOJITOS R US","TONIC","Ian Wright","EUROPE",41365,50156,2013,"March","Q1"]
["MOJITOS R US","TONIC","Ian Wright","EUROPE",41420,84912,2013,"April","Q2"]
["MOJITOS R US","TONIC","Ian Wright","EUROPE",41420,73803,2013,"May","Q2"]
["MOJITOS R US","TONIC","Ian Wright","EUROPE",41420,96690,2013,"June","Q2"]
["MOJITOS R US","TONIC","Ian Wright","EUROPE",41420,25984,2013,"July","Q3"]
["MOJITOS R US","TONIC","Ian Wright","EUROPE",41420,17186,2013,"August","Q3"]
["MOJITOS R US","TONIC","Ian Wright","EUROPE",41420,74291,2013,"September","Q3"]
["MOJITOS R US","TONIC","Ian Wright","EUROPE",41420,90448,2013,"October","Q4"]
["MOJITOS R US","TONIC","Ian Wright","EUROPE",41592,83252,2013,"November","Q4"]
["MOJITOS R US","TONIC","Ian Wright","EUROPE",41438,61504,2013,"December","Q4"]
["MOJITOS R US","SOFT DRINKS","Ian Wright","EUROPE",41895,65422,2014,"January","Q1"]
["MOJITOS R US","SOFT DRINKS","Ian Wright","EUROPE",41947,20045,2014,"February","Q1"]
["MOJITOS R US","SOFT DRINKS","Ian Wright","EUROPE",41908,96375,2014,"March","Q1"]
["MOJITOS R US","SOFT DRINKS","Ian Wright","EUROPE",41706,72127,2014,"April","Q2"]
["MOJITOS R US","SOFT DRINKS","Ian Wright","EUROPE",41861,40332,2014,"May","Q2"]
["MOJITOS R US","SOFT DRINKS","Ian Wright","EUROPE",41855,67602,2014,"June","Q2"]
["MOJITOS R US","SOFT DRINKS","Ian Wright","EUROPE",41855,23829,2014,"July","Q3"]
["MOJITOS R US","SOFT DRINKS","Ian Wright","EUROPE",41686,18896,2014,"August","Q3"]
["MOJITOS R US","SOFT DRINKS","Ian Wright","EUROPE",41841,31000,2014,"September","Q3"]
["MOJITOS R US","SOFT DRINKS","Ian Wright","EUROPE",41768,86890,2014,"October","Q4"]
["MOJITOS R US","SOFT DRINKS","Ian Wright","EUROPE",41994,33365,2014,"November","Q4"]
["MOJITOS R US","SOFT DRINKS","Ian Wright","EUROPE",42001,70074,2014,"December","Q4"]
["MOJITOS R US","BOTTLES","Ian Wright","EUROPE",41664,95980,2014,"January","Q1"]
["MOJITOS R US","BOTTLES","Ian Wright","EUROPE",41945,23025,2014,"February","Q1"]
["MOJITOS R US","BOTTLES","Ian Wright","EUROPE",41826,94259,2014,"March","Q1"]
["MOJITOS R US","BOTTLES","Ian Wright","EUROPE",41812,31522,2014,"April","Q2"]
["MOJITOS R US","BOTTLES","Ian Wright","EUROPE",41962,86046,2014,"May","Q2"]
["MOJITOS R US","BOTTLES","Ian Wright","EUROPE",41805,41167,2014,"June","Q2"]
["MOJITOS R US","BOTTLES","Ian Wright","EUROPE",41797,48025,2014,"July","Q3"]
["MOJITOS R US","BOTTLES","Ian Wright","EUROPE",41805,26961,2014,"August","Q3"]
["MOJITOS R US","BOTTLES","Ian Wright","EUROPE",41889,85681,2014,"September","Q3"]
["MOJITOS R US","BOTTLES","Ian Wright","EUROPE",41965,72707,2014,"October","Q4"]
["MOJITOS R US","BOTTLES","Ian Wright","EUROPE",41664,25296,2014,"November","Q4"]
["MOJITOS R US","BOTTLES","Ian Wright","EUROPE",41855,72571,2014,"December","Q4"]
["MOJITOS R US","ICE CUBES","Ian Wright","EUROPE",42001,67236,2014,"January","Q1"]
["MOJITOS R US","ICE CUBES","Ian Wright","EUROPE",41971,31745,2014,"February","Q1"]
["MOJITOS R US","ICE CUBES","Ian Wright","EUROPE",41916,16973,2014,"March","Q1"]
["MOJITOS R US","ICE CUBES","Ian Wright","EUROPE",41730,10282,2014,"April","Q2"]
["MOJITOS R US","ICE CUBES","Ian Wright","EUROPE",41730,88743,2014,"May","Q2"]
["MOJITOS R US","ICE CUBES","Ian Wright","EUROPE",41730,46628,2014,"June","Q2"]
["MOJITOS R US","ICE CUBES","Ian Wright","EUROPE",41730,17366,2014,"July","Q3"]
["MOJITOS R US","ICE CUBES","Ian Wright","EUROPE",41730,38089,2014,"August","Q3"]
["MOJITOS R US","ICE CUBES","Ian Wright","EUROPE",41730,89809,2014,"September","Q3"]
["MOJITOS R US","ICE CUBES","Ian Wright","EUROPE",41730,97708,2014,"October","Q4"]
["MOJITOS R US","ICE CUBES","Ian Wright","EUROPE",41730,94596,2014,"November","Q4"]
["MOJITOS R US","ICE CUBES","Ian Wright","EUROPE",41730,30900,2014,"December","Q4"]
["MOJITOS R US","TONIC","Ian Wright","EUROPE",41730,82903,2014,"January","Q1"]
["MOJITOS R US","TONIC","Ian Wright","EUROPE",41785,81835,2014,"February","Q1"]
["MOJITOS R US","TONIC","Ian Wright","EUROPE",41785,71469,2014,"March","Q1"]
["MOJITOS R US","TONIC","Ian Wright","EUROPE",41785,68096,2014,"April","Q2"]
["MOJITOS R US","TONIC","Ian Wright","EUROPE",41785,76399,2014,"May","Q2"]
["MOJITOS R US","TONIC","Ian Wright","EUROPE",41785,18144,2014,"June","Q2"]
["MOJITOS R US","TONIC","Ian Wright","EUROPE",41785,25998,2014,"July","Q3"]
["MOJITOS R US","TONIC","Ian Wright","EUROPE",41785,28516,2014,"August","Q3"]
["MOJITOS R US","TONIC","Ian Wright","EUROPE",41951,86024,2014,"September","Q3"]
["MOJITOS R US","TONIC","Ian Wright","EUROPE",41965,68907,2014,"October","Q4"]
["MOJITOS R US","TONIC","Ian Wright","EUROPE",41824,67683,2014,"November","Q4"]
["MOJITOS R US","TONIC","Ian Wright","EUROPE",41841,40250,2014,"December","Q4"]
["TEQUILA TACOS LTD","SOFT DRINKS","John Michaloudis","ASIA",41125,62350,2012,"January","Q1"]
["TEQUILA TACOS LTD","SOFT DRINKS","John Michaloudis","ASIA",41125,41230,2012,"February","Q1"]
["TEQUILA TACOS LTD","SOFT DRINKS","John Michaloudis","ASIA",40983,37346,2012,"March","Q1"]
["TEQUILA TACOS LTD","SOFT DRINKS","John Michaloudis","ASIA",41262,53158,2012,"April","Q2"]
["TEQUILA TACOS LTD","SOFT DRINKS","John Michaloudis","ASIA",41166,19611,2012,"May","Q2"]
["TEQUILA TACOS LTD","SOFT DRINKS","John Michaloudis","ASIA",40984,22202,2012,"June","Q2"]
["TEQUILA TACOS LTD","SOFT DRINKS","John Michaloudis","ASIA",40954,95925,2012,"July","Q3"]
["TEQUILA TACOS LTD","SOFT DRINKS","John Michaloudis","ASIA",41103,50376,2012,"August","Q3"]
["TEQUILA TACOS LTD","SOFT DRINKS","John Michaloudis","ASIA",41178,88763,2012,"September","Q3"]
["TEQUILA TACOS LTD","SOFT DRINKS","John Michaloudis","ASIA",41104,46063,2012,"October","Q4"]
["TEQUILA TACOS LTD","SOFT DRINKS","John Michaloudis","ASIA",41041,95529,2012,"November","Q4"]
["TEQUILA TACOS LTD","SOFT DRINKS","John Michaloudis","ASIA",41041,27946,2012,"December","Q4"]
["TEQUILA TACOS LTD","BOTTLES","John Michaloudis","ASIA",41144,48278,2012,"January","Q1"]
["TEQUILA TACOS LTD","BOTTLES","John Michaloudis","ASIA",40940,70149,2012,"February","Q1"]
["TEQUILA TACOS LTD","BOTTLES","John Michaloudis","ASIA",41230,55290,2012,"March","Q1"]
["TEQUILA TACOS LTD","BOTTLES","John Michaloudis","ASIA",41264,65622,2012,"April","Q2"]
["TEQUILA TACOS LTD","BOTTLES","John Michaloudis","ASIA",41227,98116,2012,"May","Q2"]
["TEQUILA TACOS LTD","BOTTLES","John Michaloudis","ASIA",41122,14378,2012,"June","Q2"]
["TEQUILA TACOS LTD","BOTTLES","John Michaloudis","ASIA",41241,92891,2012,"July","Q3"]
["TEQUILA TACOS LTD","BOTTLES","John Michaloudis","ASIA",40989,65904,2012,"August","Q3"]
["TEQUILA TACOS LTD","BOTTLES","John Michaloudis","ASIA",41195,53265,2012,"September","Q3"]
["TEQUILA TACOS LTD","BOTTLES","John Michaloudis","ASIA",41131,69052,2012,"October","Q4"]
["TEQUILA TACOS LTD","BOTTLES","John Michaloudis","ASIA",41158,56565,2012,"November","Q4"]
["TEQUILA TACOS LTD","BOTTLES","John Michaloudis","ASIA",40932,24843,2012,"December","Q4"]
["TEQUILA TACOS LTD","ICE CUBES","John Michaloudis","ASIA",41061,18850,2012,"January","Q1"]
["TEQUILA TACOS LTD","ICE CUBES","John Michaloudis","ASIA",40984,17056,2012,"February","Q1"]
["TEQUILA TACOS LTD","ICE CUBES","John Michaloudis","ASIA",41062,32910,2012,"March","Q1"]
["TEQUILA TACOS LTD","ICE CUBES","John Michaloudis","ASIA",40947,87105,2012,"April","Q2"]
["TEQUILA TACOS LTD","ICE CUBES","John Michaloudis","ASIA",41158,27695,2012,"May","Q2"]
["TEQUILA TACOS LTD","ICE CUBES","John Michaloudis","ASIA",41178,41826,2012,"June","Q2"]
["TEQUILA TACOS LTD","ICE CUBES","John Michaloudis","ASIA",41210,68002,2012,"July","Q3"]
["TEQUILA TACOS LTD","ICE CUBES","John Michaloudis","ASIA",41075,10338,2012,"August","Q3"]
["TEQUILA TACOS LTD","ICE CUBES","John Michaloudis","ASIA",41040,53471,2012,"September","Q3"]
["TEQUILA TACOS LTD","ICE CUBES","John Michaloudis","ASIA",41089,59452,2012,"October","Q4"]
["TEQUILA TACOS LTD","ICE CUBES","John Michaloudis","ASIA",41075,23750,2012,"November","Q4"]
["TEQUILA TACOS LTD","ICE CUBES","John Michaloudis","ASIA",41228,69631,2012,"December","Q4"]
["TEQUILA TACOS LTD","TONIC","John Michaloudis","ASIA",41241,87184,2012,"January","Q1"]
["TEQUILA TACOS LTD","TONIC","John Michaloudis","ASIA",40920,13307,2012,"February","Q1"]
["TEQUILA TACOS LTD","TONIC","John Michaloudis","ASIA",41061,76300,2012,"March","Q1"]
["TEQUILA TACOS LTD","TONIC","John Michaloudis","ASIA",41241,87571,2012,"April","Q2"]
["TEQUILA TACOS LTD","TONIC","John Michaloudis","ASIA",41173,46853,2012,"May","Q2"]
["TEQUILA TACOS LTD","TONIC","John Michaloudis","ASIA",41216,94240,2012,"June","Q2"]
["TEQUILA TACOS LTD","TONIC","John Michaloudis","ASIA",41216,18125,2012,"July","Q3"]
["TEQUILA TACOS LTD","TONIC","John Michaloudis","ASIA",41262,34753,2012,"August","Q3"]
["TEQUILA TACOS LTD","TONIC","John Michaloudis","ASIA",40922,61439,2012,"September","Q3"]
["TEQUILA TACOS LTD","TONIC","John Michaloudis","ASIA",41117,66747,2012,"October","Q4"]
["TEQUILA TACOS LTD","TONIC","John Michaloudis","ASIA",41186,88717,2012,"November","Q4"]
["TEQUILA TACOS LTD","TONIC","John Michaloudis","ASIA",41034,26804,2012,"December","Q4"]
["TEQUILA TACOS LTD","SOFT DRINKS","John Michaloudis","ASIA",41610,71362,2013,"January","Q1"]
["TEQUILA TACOS LTD","SOFT DRINKS","John Michaloudis","ASIA",41546,78271,2013,"February","Q1"]
["TEQUILA TACOS LTD","SOFT DRINKS","John Michaloudis","ASIA",41405,64303,2013,"March","Q1"]
["TEQUILA TACOS LTD","SOFT DRINKS","John Michaloudis","ASIA",41469,30259,2013,"April","Q2"]
["TEQUILA TACOS LTD","SOFT DRINKS","John Michaloudis","ASIA",41566,93605,2013,"May","Q2"]
["TEQUILA TACOS LTD","SOFT DRINKS","John Michaloudis","ASIA",41462,81268,2013,"June","Q2"]
["TEQUILA TACOS LTD","SOFT DRINKS","John Michaloudis","ASIA",41391,56176,2013,"July","Q3"]
["TEQUILA TACOS LTD","SOFT DRINKS","John Michaloudis","ASIA",41482,31410,2013,"August","Q3"]
["TEQUILA TACOS LTD","SOFT DRINKS","John Michaloudis","ASIA",41420,10690,2013,"September","Q3"]
["TEQUILA TACOS LTD","SOFT DRINKS","John Michaloudis","ASIA",41503,82307,2013,"October","Q4"]
["TEQUILA TACOS LTD","SOFT DRINKS","John Michaloudis","ASIA",41606,21780,2013,"November","Q4"]
["TEQUILA TACOS LTD","SOFT DRINKS","John Michaloudis","ASIA",41403,55565,2013,"December","Q4"]
["TEQUILA TACOS LTD","BOTTLES","John Michaloudis","ASIA",41494,64360,2013,"January","Q1"]
["TEQUILA TACOS LTD","BOTTLES","John Michaloudis","ASIA",41475,60093,2013,"February","Q1"]
["TEQUILA TACOS LTD","BOTTLES","John Michaloudis","ASIA",41494,76840,2013,"March","Q1"]
["TEQUILA TACOS LTD","BOTTLES","John Michaloudis","ASIA",41524,90362,2013,"April","Q2"]
["TEQUILA TACOS LTD","BOTTLES","John Michaloudis","ASIA",41586,18377,2013,"May","Q2"]
["TEQUILA TACOS LTD","BOTTLES","John Michaloudis","ASIA",41334,41984,2013,"June","Q2"]
["TEQUILA TACOS LTD","BOTTLES","John Michaloudis","ASIA",41298,61540,2013,"July","Q3"]
["TEQUILA TACOS LTD","BOTTLES","John Michaloudis","ASIA",41606,84277,2013,"August","Q3"]
["TEQUILA TACOS LTD","BOTTLES","John Michaloudis","ASIA",41417,35188,2013,"September","Q3"]
["TEQUILA TACOS LTD","BOTTLES","John Michaloudis","ASIA",41524,41087,2013,"October","Q4"]
["TEQUILA TACOS LTD","BOTTLES","John Michaloudis","ASIA",41328,79693,2013,"November","Q4"]
["TEQUILA TACOS LTD","BOTTLES","John Michaloudis","ASIA",41356,56754,2013,"December","Q4"]
["TEQUILA TACOS LTD","ICE CUBES","John Michaloudis","ASIA",41503,30135,2013,"January","Q1"]
["TEQUILA TACOS LTD","ICE CUBES","John Michaloudis","ASIA",41593,54269,2013,"February","Q1"]
["TEQUILA TACOS LTD","ICE CUBES","John Michaloudis","ASIA",41543,78768,2013,"March","Q1"]
["TEQUILA TACOS LTD","ICE CUBES","John Michaloudis","ASIA",41494,79010,2013,"April","Q2"]
["TEQUILA TACOS LTD","ICE CUBES","John Michaloudis","ASIA",41468,54188,2013,"May","Q2"]
["TEQUILA TACOS LTD","ICE CUBES","John Michaloudis","ASIA",41551,44186,2013,"June","Q2"]
["TEQUILA TACOS LTD","ICE CUBES","John Michaloudis","ASIA",41586,44361,2013,"July","Q3"]
["TEQUILA TACOS LTD","ICE CUBES","John Michaloudis","ASIA",41378,89126,2013,"August","Q3"]
["TEQUILA TACOS LTD","ICE CUBES","John Michaloudis","ASIA",41505,50294,2013,"September","Q3"]
["TEQUILA TACOS LTD","ICE CUBES","John Michaloudis","ASIA",41454,85667,2013,"October","Q4"]
["TEQUILA TACOS LTD","ICE CUBES","John Michaloudis","ASIA",41363,74326,2013,"November","Q4"]
["TEQUILA TACOS LTD","ICE CUBES","John Michaloudis","ASIA",41285,54956,2013,"December","Q4"]
["TEQUILA TACOS LTD","TONIC","John Michaloudis","ASIA",41564,74830,2013,"January","Q1"]
["TEQUILA TACOS LTD","TONIC","John Michaloudis","ASIA",41558,73390,2013,"February","Q1"]
["TEQUILA TACOS LTD","TONIC","John Michaloudis","ASIA",41277,18410,2013,"March","Q1"]
["TEQUILA TACOS LTD","TONIC","John Michaloudis","ASIA",41622,96755,2013,"April","Q2"]
["TEQUILA TACOS LTD","TONIC","John Michaloudis","ASIA",41606,61466,2013,"May","Q2"]
["TEQUILA TACOS LTD","TONIC","John Michaloudis","ASIA",41400,31549,2013,"June","Q2"]
["TEQUILA TACOS LTD","TONIC","John Michaloudis","ASIA",41531,91166,2013,"July","Q3"]
["TEQUILA TACOS LTD","TONIC","John Michaloudis","ASIA",41524,88071,2013,"August","Q3"]
["TEQUILA TACOS LTD","TONIC","John Michaloudis","ASIA",41447,61771,2013,"September","Q3"]
["TEQUILA TACOS LTD","TONIC","John Michaloudis","ASIA",41384,81784,2013,"October","Q4"]
["TEQUILA TACOS LTD","TONIC","John Michaloudis","ASIA",41454,27993,2013,"November","Q4"]
["TEQUILA TACOS LTD","TONIC","John Michaloudis","ASIA",41370,45878,2013,"December","Q4"]
["TEQUILA TACOS LTD","SOFT DRINKS","John Michaloudis","ASIA",41646,16425,2014,"January","Q1"]
["TEQUILA TACOS LTD","SOFT DRINKS","John Michaloudis","ASIA",41908,27832,2014,"February","Q1"]
["TEQUILA TACOS LTD","SOFT DRINKS","John Michaloudis","ASIA",41919,80073,2014,"March","Q1"]
["TEQUILA TACOS LTD","SOFT DRINKS","John Michaloudis","ASIA",41855,97319,2014,"April","Q2"]
["TEQUILA TACOS LTD","SOFT DRINKS","John Michaloudis","ASIA",41812,38277,2014,"May","Q2"]
["TEQUILA TACOS LTD","SOFT DRINKS","John Michaloudis","ASIA",41721,44723,2014,"June","Q2"]
["TEQUILA TACOS LTD","SOFT DRINKS","John Michaloudis","ASIA",41775,70630,2014,"July","Q3"]
["TEQUILA TACOS LTD","SOFT DRINKS","John Michaloudis","ASIA",41847,45727,2014,"August","Q3"]
["TEQUILA TACOS LTD","SOFT DRINKS","John Michaloudis","ASIA",41685,81486,2014,"September","Q3"]
["TEQUILA TACOS LTD","SOFT DRINKS","John Michaloudis","ASIA",41742,35158,2014,"October","Q4"]
["TEQUILA TACOS LTD","SOFT DRINKS","John Michaloudis","ASIA",41798,83262,2014,"November","Q4"]
["TEQUILA TACOS LTD","SOFT DRINKS","John Michaloudis","ASIA",41992,74283,2014,"December","Q4"]
["TEQUILA TACOS LTD","BOTTLES","John Michaloudis","ASIA",41706,24805,2014,"January","Q1"]
["TEQUILA TACOS LTD","BOTTLES","John Michaloudis","ASIA",41852,16556,2014,"February","Q1"]
["TEQUILA TACOS LTD","BOTTLES","John Michaloudis","ASIA",41768,48638,2014,"March","Q1"]
["TEQUILA TACOS LTD","BOTTLES","John Michaloudis","ASIA",41840,56001,2014,"April","Q2"]
["TEQUILA TACOS LTD","BOTTLES","John Michaloudis","ASIA",41929,17127,2014,"May","Q2"]
["TEQUILA TACOS LTD","BOTTLES","John Michaloudis","ASIA",41664,89436,2014,"June","Q2"]
["TEQUILA TACOS LTD","BOTTLES","John Michaloudis","ASIA",41958,70047,2014,"July","Q3"]
["TEQUILA TACOS LTD","BOTTLES","John Michaloudis","ASIA",41685,38602,2014,"August","Q3"]
["TEQUILA TACOS LTD","BOTTLES","John Michaloudis","ASIA",41923,74865,2014,"September","Q3"]
["TEQUILA TACOS LTD","BOTTLES","John Michaloudis","ASIA",41932,61380,2014,"October","Q4"]
["TEQUILA TACOS LTD","BOTTLES","John Michaloudis","ASIA",41922,14784,2014,"November","Q4"]
["TEQUILA TACOS LTD","BOTTLES","John Michaloudis","ASIA",41975,73862,2014,"December","Q4"]
["TEQUILA TACOS LTD","ICE CUBES","John Michaloudis","ASIA",41975,83315,2014,"January","Q1"]
["TEQUILA TACOS LTD","ICE CUBES","John Michaloudis","ASIA",41975,68404,2014,"February","Q1"]
["TEQUILA TACOS LTD","ICE CUBES","John Michaloudis","ASIA",41975,90217,2014,"March","Q1"]
["TEQUILA TACOS LTD","ICE CUBES","John Michaloudis","ASIA",41975,90547,2014,"April","Q2"]
["TEQUILA TACOS LTD","ICE CUBES","John Michaloudis","ASIA",41975,14692,2014,"May","Q2"]
["TEQUILA TACOS LTD","ICE CUBES","John Michaloudis","ASIA",41975,49657,2014,"June","Q2"]
["TEQUILA TACOS LTD","ICE CUBES","John Michaloudis","ASIA",41975,33571,2014,"July","Q3"]
["TEQUILA TACOS LTD","ICE CUBES","John Michaloudis","ASIA",41975,49617,2014,"August","Q3"]
["TEQUILA TACOS LTD","ICE CUBES","John Michaloudis","ASIA",41975,62480,2014,"September","Q3"]
["TEQUILA TACOS LTD","ICE CUBES","John Michaloudis","ASIA",41975,47736,2014,"October","Q4"]
["TEQUILA TACOS LTD","ICE CUBES","John Michaloudis","ASIA",41975,77558,2014,"November","Q4"]
["TEQUILA TACOS LTD","ICE CUBES","John Michaloudis","ASIA",41813,55463,2014,"December","Q4"]
["TEQUILA TACOS LTD","TONIC","John Michaloudis","ASIA",41813,94980,2014,"January","Q1"]
["TEQUILA TACOS LTD","TONIC","John Michaloudis","ASIA",41813,10209,2014,"February","Q1"]
["TEQUILA TACOS LTD","TONIC","John Michaloudis","ASIA",41813,53109,2014,"March","Q1"]
["TEQUILA TACOS LTD","TONIC","John Michaloudis","ASIA",41813,83776,2014,"April","Q2"]
["TEQUILA TACOS LTD","TONIC","John Michaloudis","ASIA",41813,30296,2014,"May","Q2"]
["TEQUILA TACOS LTD","TONIC","John Michaloudis","ASIA",41813,99878,2014,"June","Q2"]
["TEQUILA TACOS LTD","TONIC","John Michaloudis","ASIA",41993,85777,2014,"July","Q3"]
["TEQUILA TACOS LTD","TONIC","John Michaloudis","ASIA",41993,42990,2014,"August","Q3"]
["TEQUILA TACOS LTD","TONIC","John Michaloudis","ASIA",41994,31951,2014,"September","Q3"]
["TEQUILA TACOS LTD","TONIC","John Michaloudis","ASIA",41965,52980,2014,"October","Q4"]
["TEQUILA TACOS LTD","TONIC","John Michaloudis","ASIA",42003,32784,2014,"November","Q4"]
["TEQUILA TACOS LTD","TONIC","John Michaloudis","ASIA",41888,87871,2014,"December","Q4"]
["GIN ON THE RUN CO","SOFT DRINKS","Homer Simpson","AFRICA",40977,44719,2012,"January","Q1"]
["GIN ON THE RUN CO","SOFT DRINKS","Homer Simpson","AFRICA",41180,25249,2012,"February","Q1"]
["GIN ON THE RUN CO","SOFT DRINKS","Homer Simpson","AFRICA",41186,86706,2012,"March","Q1"]
["GIN ON THE RUN CO","SOFT DRINKS","Homer Simpson","AFRICA",40955,57670,2012,"April","Q2"]
["GIN ON THE RUN CO","SOFT DRINKS","Homer Simpson","AFRICA",41045,17405,2012,"May","Q2"]
["GIN ON THE RUN CO","SOFT DRINKS","Homer Simpson","AFRICA",41241,71664,2012,"June","Q2"]
["GIN ON THE RUN CO","SOFT DRINKS","Homer Simpson","AFRICA",40940,71644,2012,"July","Q3"]
["GIN ON THE RUN CO","SOFT DRINKS","Homer Simpson","AFRICA",40954,20166,2012,"August","Q3"]
["GIN ON THE RUN CO","SOFT DRINKS","Homer Simpson","AFRICA",41257,99101,2012,"September","Q3"]
["GIN ON THE RUN CO","SOFT DRINKS","Homer Simpson","AFRICA",41082,24921,2012,"October","Q4"]
["GIN ON THE RUN CO","SOFT DRINKS","Homer Simpson","AFRICA",41005,46740,2012,"November","Q4"]
["GIN ON THE RUN CO","SOFT DRINKS","Homer Simpson","AFRICA",41005,57570,2012,"December","Q4"]
["GIN ON THE RUN CO","BOTTLES","Homer Simpson","AFRICA",41241,24997,2012,"January","Q1"]
["GIN ON THE RUN CO","BOTTLES","Homer Simpson","AFRICA",40984,93577,2012,"February","Q1"]
["GIN ON THE RUN CO","BOTTLES","Homer Simpson","AFRICA",41241,31641,2012,"March","Q1"]
["GIN ON THE RUN CO","BOTTLES","Homer Simpson","AFRICA",41186,95561,2012,"April","Q2"]
["GIN ON THE RUN CO","BOTTLES","Homer Simpson","AFRICA",41207,80267,2012,"May","Q2"]
["GIN ON THE RUN CO","BOTTLES","Homer Simpson","AFRICA",40977,71006,2012,"June","Q2"]
["GIN ON THE RUN CO","BOTTLES","Homer Simpson","AFRICA",41039,43061,2012,"July","Q3"]
["GIN ON THE RUN CO","BOTTLES","Homer Simpson","AFRICA",41103,10780,2012,"August","Q3"]
["GIN ON THE RUN CO","BOTTLES","Homer Simpson","AFRICA",41237,71281,2012,"September","Q3"]
["GIN ON THE RUN CO","BOTTLES","Homer Simpson","AFRICA",41159,58557,2012,"October","Q4"]
["GIN ON THE RUN CO","BOTTLES","Homer Simpson","AFRICA",41159,16918,2012,"November","Q4"]
["GIN ON THE RUN CO","BOTTLES","Homer Simpson","AFRICA",41097,96209,2012,"December","Q4"]
["GIN ON THE RUN CO","ICE CUBES","Homer Simpson","AFRICA",41159,90340,2012,"January","Q1"]
["GIN ON THE RUN CO","ICE CUBES","Homer Simpson","AFRICA",41159,89734,2012,"February","Q1"]
["GIN ON THE RUN CO","ICE CUBES","Homer Simpson","AFRICA",40911,95630,2012,"March","Q1"]
["GIN ON THE RUN CO","ICE CUBES","Homer Simpson","AFRICA",41214,30674,2012,"April","Q2"]
["GIN ON THE RUN CO","ICE CUBES","Homer Simpson","AFRICA",40982,72408,2012,"May","Q2"]
["GIN ON THE RUN CO","ICE CUBES","Homer Simpson","AFRICA",41192,66181,2012,"June","Q2"]
["GIN ON THE RUN CO","ICE CUBES","Homer Simpson","AFRICA",41005,28390,2012,"July","Q3"]
["GIN ON THE RUN CO","ICE CUBES","Homer Simpson","AFRICA",41192,45991,2012,"August","Q3"]
["GIN ON THE RUN CO","ICE CUBES","Homer Simpson","AFRICA",41075,14127,2012,"September","Q3"]
["GIN ON THE RUN CO","ICE CUBES","Homer Simpson","AFRICA",41104,91812,2012,"October","Q4"]
["GIN ON THE RUN CO","ICE CUBES","Homer Simpson","AFRICA",41241,77660,2012,"November","Q4"]
["GIN ON THE RUN CO","ICE CUBES","Homer Simpson","AFRICA",41084,30769,2012,"December","Q4"]
["GIN ON THE RUN CO","TONIC","Homer Simpson","AFRICA",41014,10090,2012,"January","Q1"]
["GIN ON THE RUN CO","TONIC","Homer Simpson","AFRICA",41165,85616,2012,"February","Q1"]
["GIN ON THE RUN CO","TONIC","Homer Simpson","AFRICA",41068,98483,2012,"March","Q1"]
["GIN ON THE RUN CO","TONIC","Homer Simpson","AFRICA",41168,45728,2012,"April","Q2"]
["GIN ON THE RUN CO","TONIC","Homer Simpson","AFRICA",41129,21385,2012,"May","Q2"]
["GIN ON THE RUN CO","TONIC","Homer Simpson","AFRICA",41047,29970,2012,"June","Q2"]
["GIN ON THE RUN CO","TONIC","Homer Simpson","AFRICA",41178,74306,2012,"July","Q3"]
["GIN ON THE RUN CO","TONIC","Homer Simpson","AFRICA",40940,35366,2012,"August","Q3"]
["GIN ON THE RUN CO","TONIC","Homer Simpson","AFRICA",41082,71112,2012,"September","Q3"]
["GIN ON THE RUN CO","TONIC","Homer Simpson","AFRICA",41199,54397,2012,"October","Q4"]
["GIN ON THE RUN CO","TONIC","Homer Simpson","AFRICA",41193,59226,2012,"November","Q4"]
["GIN ON THE RUN CO","TONIC","Homer Simpson","AFRICA",41199,11145,2012,"December","Q4"]
["GIN ON THE RUN CO","SOFT DRINKS","Homer Simpson","AFRICA",41461,14169,2013,"January","Q1"]
["GIN ON THE RUN CO","SOFT DRINKS","Homer Simpson","AFRICA",41284,41118,2013,"February","Q1"]
["GIN ON THE RUN CO","SOFT DRINKS","Homer Simpson","AFRICA",41558,84129,2013,"March","Q1"]
["GIN ON THE RUN CO","SOFT DRINKS","Homer Simpson","AFRICA",41594,29008,2013,"April","Q2"]
["GIN ON THE RUN CO","SOFT DRINKS","Homer Simpson","AFRICA",41606,76494,2013,"May","Q2"]
["GIN ON THE RUN CO","SOFT DRINKS","Homer Simpson","AFRICA",41639,89557,2013,"June","Q2"]
["GIN ON THE RUN CO","SOFT DRINKS","Homer Simpson","AFRICA",41639,49012,2013,"July","Q3"]
["GIN ON THE RUN CO","SOFT DRINKS","Homer Simpson","AFRICA",41639,61766,2013,"August","Q3"]
["GIN ON THE RUN CO","SOFT DRINKS","Homer Simpson","AFRICA",41400,39836,2013,"September","Q3"]
["GIN ON THE RUN CO","SOFT DRINKS","Homer Simpson","AFRICA",41517,29506,2013,"October","Q4"]
["GIN ON THE RUN CO","SOFT DRINKS","Homer Simpson","AFRICA",41526,23168,2013,"November","Q4"]
["GIN ON THE RUN CO","SOFT DRINKS","Homer Simpson","AFRICA",41617,97854,2013,"December","Q4"]
["GIN ON THE RUN CO","BOTTLES","Homer Simpson","AFRICA",41412,98852,2013,"January","Q1"]
["GIN ON THE RUN CO","BOTTLES","Homer Simpson","AFRICA",41614,56682,2013,"February","Q1"]
["GIN ON THE RUN CO","BOTTLES","Homer Simpson","AFRICA",41531,54310,2013,"March","Q1"]
["GIN ON THE RUN CO","BOTTLES","Homer Simpson","AFRICA",41277,87683,2013,"April","Q2"]
["GIN ON THE RUN CO","BOTTLES","Homer Simpson","AFRICA",41628,84104,2013,"May","Q2"]
["GIN ON THE RUN CO","BOTTLES","Homer Simpson","AFRICA",41306,91033,2013,"June","Q2"]
["GIN ON THE RUN CO","BOTTLES","Homer Simpson","AFRICA",41383,82085,2013,"July","Q3"]
["GIN ON THE RUN CO","BOTTLES","Homer Simpson","AFRICA",41383,54664,2013,"August","Q3"]
["GIN ON THE RUN CO","BOTTLES","Homer Simpson","AFRICA",41572,31434,2013,"September","Q3"]
["GIN ON THE RUN CO","BOTTLES","Homer Simpson","AFRICA",41572,80306,2013,"October","Q4"]
["GIN ON THE RUN CO","BOTTLES","Homer Simpson","AFRICA",41625,13804,2013,"November","Q4"]
["GIN ON THE RUN CO","BOTTLES","Homer Simpson","AFRICA",41625,92944,2013,"December","Q4"]
["GIN ON THE RUN CO","ICE CUBES","Homer Simpson","AFRICA",41616,61233,2013,"January","Q1"]
["GIN ON THE RUN CO","ICE CUBES","Homer Simpson","AFRICA",41292,69281,2013,"February","Q1"]
["GIN ON THE RUN CO","ICE CUBES","Homer Simpson","AFRICA",41629,94075,2013,"March","Q1"]
["GIN ON THE RUN CO","ICE CUBES","Homer Simpson","AFRICA",41454,43758,2013,"April","Q2"]
["GIN ON THE RUN CO","ICE CUBES","Homer Simpson","AFRICA",41629,56262,2013,"May","Q2"]
["GIN ON THE RUN CO","ICE CUBES","Homer Simpson","AFRICA",41475,42319,2013,"June","Q2"]
["GIN ON THE RUN CO","ICE CUBES","Homer Simpson","AFRICA",41403,82921,2013,"July","Q3"]
["GIN ON THE RUN CO","ICE CUBES","Homer Simpson","AFRICA",41433,56173,2013,"August","Q3"]
["GIN ON THE RUN CO","ICE CUBES","Homer Simpson","AFRICA",41597,66997,2013,"September","Q3"]
["GIN ON THE RUN CO","ICE CUBES","Homer Simpson","AFRICA",41621,28884,2013,"October","Q4"]
["GIN ON THE RUN CO","ICE CUBES","Homer Simpson","AFRICA",41573,74664,2013,"November","Q4"]
["GIN ON THE RUN CO","ICE CUBES","Homer Simpson","AFRICA",41286,71397,2013,"December","Q4"]
["GIN ON THE RUN CO","TONIC","Homer Simpson","AFRICA",41531,41975,2013,"January","Q1"]
["GIN ON THE RUN CO","TONIC","Homer Simpson","AFRICA",41319,88575,2013,"February","Q1"]
["GIN ON THE RUN CO","TONIC","Homer Simpson","AFRICA",41469,74340,2013,"March","Q1"]
["GIN ON THE RUN CO","TONIC","Homer Simpson","AFRICA",41606,72884,2013,"April","Q2"]
["GIN ON THE RUN CO","TONIC","Homer Simpson","AFRICA",41543,59557,2013,"May","Q2"]
["GIN ON THE RUN CO","TONIC","Homer Simpson","AFRICA",41565,86610,2013,"June","Q2"]
["GIN ON THE RUN CO","TONIC","Homer Simpson","AFRICA",41565,22172,2013,"July","Q3"]
["GIN ON THE RUN CO","TONIC","Homer Simpson","AFRICA",41427,89040,2013,"August","Q3"]
["GIN ON THE RUN CO","TONIC","Homer Simpson","AFRICA",41606,38507,2013,"September","Q3"]
["GIN ON THE RUN CO","TONIC","Homer Simpson","AFRICA",41606,94271,2013,"October","Q4"]
["GIN ON THE RUN CO","TONIC","Homer Simpson","AFRICA",41298,36517,2013,"November","Q4"]
["GIN ON THE RUN CO","TONIC","Homer Simpson","AFRICA",41410,71515,2013,"December","Q4"]
["GIN ON THE RUN CO","SOFT DRINKS","Homer Simpson","AFRICA",41993,92590,2014,"January","Q1"]
["GIN ON THE RUN CO","SOFT DRINKS","Homer Simpson","AFRICA",41971,95829,2014,"February","Q1"]
["GIN ON THE RUN CO","SOFT DRINKS","Homer Simpson","AFRICA",41657,75901,2014,"March","Q1"]
["GIN ON THE RUN CO","SOFT DRINKS","Homer Simpson","AFRICA",41804,73045,2014,"April","Q2"]
["GIN ON THE RUN CO","SOFT DRINKS","Homer Simpson","AFRICA",41693,71776,2014,"May","Q2"]
["GIN ON THE RUN CO","SOFT DRINKS","Homer Simpson","AFRICA",41982,29433,2014,"June","Q2"]
["GIN ON THE RUN CO","SOFT DRINKS","Homer Simpson","AFRICA",41768,96341,2014,"July","Q3"]
["GIN ON THE RUN CO","SOFT DRINKS","Homer Simpson","AFRICA",41971,12968,2014,"August","Q3"]
["GIN ON THE RUN CO","SOFT DRINKS","Homer Simpson","AFRICA",42004,53796,2014,"September","Q3"]
["GIN ON THE RUN CO","SOFT DRINKS","Homer Simpson","AFRICA",41987,46195,2014,"October","Q4"]
["GIN ON THE RUN CO","SOFT DRINKS","Homer Simpson","AFRICA",41971,63269,2014,"November","Q4"]
["GIN ON THE RUN CO","SOFT DRINKS","Homer Simpson","AFRICA",41982,67038,2014,"December","Q4"]
["GIN ON THE RUN CO","BOTTLES","Homer Simpson","AFRICA",41938,15201,2014,"January","Q1"]
["GIN ON THE RUN CO","BOTTLES","Homer Simpson","AFRICA",41756,27160,2014,"February","Q1"]
["GIN ON THE RUN CO","BOTTLES","Homer Simpson","AFRICA",41971,67176,2014,"March","Q1"]
["GIN ON THE RUN CO","BOTTLES","Homer Simpson","AFRICA",41777,62135,2014,"April","Q2"]
["GIN ON THE RUN CO","BOTTLES","Homer Simpson","AFRICA",41972,16292,2014,"May","Q2"]
["GIN ON THE RUN CO","BOTTLES","Homer Simpson","AFRICA",41971,77723,2014,"June","Q2"]
["GIN ON THE RUN CO","BOTTLES","Homer Simpson","AFRICA",41834,20106,2014,"July","Q3"]
["GIN ON THE RUN CO","BOTTLES","Homer Simpson","AFRICA",41827,91228,2014,"August","Q3"]
["GIN ON THE RUN CO","BOTTLES","Homer Simpson","AFRICA",41730,31915,2014,"September","Q3"]
["GIN ON THE RUN CO","BOTTLES","Homer Simpson","AFRICA",41730,28137,2014,"October","Q4"]
["GIN ON THE RUN CO","BOTTLES","Homer Simpson","AFRICA",41730,47215,2014,"November","Q4"]
["GIN ON THE RUN CO","BOTTLES","Homer Simpson","AFRICA",41730,78866,2014,"December","Q4"]
["GIN ON THE RUN CO","ICE CUBES","Homer Simpson","AFRICA",41730,97314,2014,"January","Q1"]
["GIN ON THE RUN CO","ICE CUBES","Homer Simpson","AFRICA",41730,66890,2014,"February","Q1"]
["GIN ON THE RUN CO","ICE CUBES","Homer Simpson","AFRICA",41730,63005,2014,"March","Q1"]
["GIN ON THE RUN CO","ICE CUBES","Homer Simpson","AFRICA",41730,37146,2014,"April","Q2"]
["GIN ON THE RUN CO","ICE CUBES","Homer Simpson","AFRICA",41730,40215,2014,"May","Q2"]
["GIN ON THE RUN CO","ICE CUBES","Homer Simpson","AFRICA",41730,39839,2014,"June","Q2"]
["GIN ON THE RUN CO","ICE CUBES","Homer Simpson","AFRICA",41965,79853,2014,"July","Q3"]
["GIN ON THE RUN CO","ICE CUBES","Homer Simpson","AFRICA",41855,11497,2014,"August","Q3"]
["GIN ON THE RUN CO","ICE CUBES","Homer Simpson","AFRICA",41855,65439,2014,"September","Q3"]
["GIN ON THE RUN CO","ICE CUBES","Homer Simpson","AFRICA",41733,96978,2014,"October","Q4"]
["GIN ON THE RUN CO","ICE CUBES","Homer Simpson","AFRICA",41908,95596,2014,"November","Q4"]
["GIN ON THE RUN CO","ICE CUBES","Homer Simpson","AFRICA",41957,28496,2014,"December","Q4"]
["GIN ON THE RUN CO","TONIC","Homer Simpson","AFRICA",41993,78392,2014,"January","Q1"]
["GIN ON THE RUN CO","TONIC","Homer Simpson","AFRICA",41981,61077,2014,"February","Q1"]
["GIN ON THE RUN CO","TONIC","Homer Simpson","AFRICA",41981,50033,2014,"March","Q1"]
["GIN ON THE RUN CO","TONIC","Homer Simpson","AFRICA",41981,50577,2014,"April","Q2"]
["GIN ON THE RUN CO","TONIC","Homer Simpson","AFRICA",41981,54040,2014,"May","Q2"]
["GIN ON THE RUN CO","TONIC","Homer Simpson","AFRICA",41990,45057,2014,"June","Q2"]
["GIN ON THE RUN CO","TONIC","Homer Simpson","AFRICA",41990,35558,2014,"July","Q3"]
["GIN ON THE RUN CO","TONIC","Homer Simpson","AFRICA",41990,21217,2014,"August","Q3"]
["GIN ON THE RUN CO","TONIC","Homer Simpson","AFRICA",41990,60244,2014,"September","Q3"]
["GIN ON THE RUN CO","TONIC","Homer Simpson","AFRICA",41644,76362,2014,"October","Q4"]
["GIN ON THE RUN CO","TONIC","Homer Simpson","AFRICA",41644,60119,2014,"November","Q4"]
["GIN ON THE RUN CO","TONIC","Homer Simpson","AFRICA",41644,45139,2014,"December","Q4"]
["Total",null,null,null,null,{"$f":"SUBTOTAL(103,'#2'!$F$2:$F$577)","v":576},null,null,{"$f":"SUBTOTAL(103,'#2'!$I$2:$I$577)","v":576}]